Workbook

Sheet forside
B4: LCAestimator
B5: vandkunsten 2020
B9: bygning: | C9: min bygning | E9: optional
B10: byggeår: | C10: 2014 | E10: optional
B11: bygningens bruttoareal: | C11: 3000 | D11: m2
B12: betragtningsperiode | C12: 80 | D12: år
B14: bygningsdele | C14: primært materiale | E14: sekundært materiale (optinal)
B15: fundament | C15: beton/cement | E15: vælg materialet | F15: optional
B16: terrændæk | C16: beton/cement | E16: vælg materialet | F16: optional
B17: dæk | C17: træ | E17: vælg materialet | F17: optional
B18: bærende konstruktion | C18: træ | E18: vælg materialet | F18: optional
B19: ydervægge, overflade | C19: træ | E19: vælg materialet | F19: optional
B20: indervægge | C20: træ | E20: vælg materialet | F20: optional
B21: vinduer | C21: træ | E21: vælg materialet | F21: optional
B22: tag, bærende konstruktion | C22: træ | E22: vælg materialet | F22: optional
B23: tag, overflade | C23: metal | E23: vælg materialet | F23: optional
B26: beregn miljøpåvirkning | H26: =v_navn & " i forhold til '60 cases' (SBI2020:04)" -> min bygning i forhold til '60 cases' (SBI2020:04)
B28: vælg påvirkningskategori | C28: GWP
B29: antaget miljøpåvirkning:* | C29: =_xlfn.XLOOKUP(category,beregning!$T$7:$T$15,beregning!U$7:U$15,"-") -> 4.443744746 | D29: =_xlfn.XLOOKUP(category,menuer!J$5:J$13,menuer!L$5:L$13,"") &" "& _xlfn.XLOOKUP(category,menuer!J$5:J$13,menuer!K$5:K$13,"") &" /m2/år" -> kg CO2eq /m2/år
C30: =_xlfn.XLOOKUP(category,beregning!$T$7:$T$15,beregning!W$7:W$15,"-") -> 13.33123424 | D30: =_xlfn.XLOOKUP(category,menuer!J$5:J$13,menuer!M$5:M$13,"") &" "& _xlfn.XLOOKUP(category,menuer!J$5:J$13,menuer!K$5:K$13,"") &" /år" -> tons CO2eq /år
C31: =_xlfn.XLOOKUP(category,beregning!$T$7:$T$15,beregning!X$7:X$15,"-") -> 1066.498739 | D31: =_xlfn.XLOOKUP(category,menuer!J$5:J$13,menuer!M$5:M$13,"") &" "& _xlfn.XLOOKUP(category,menuer!J$5:J$13,menuer!K$5:K$13,"") &" / "&aar&"år" -> tons CO2eq / 80år
B33: varians/skævhed** | C33: =beregning!J7 -> 0.4542392964
H34: =v_navn & " i forhold til de 3 bedste matches fra databasen" -> min bygning i forhold til de 3 bedste matches fra databasen
B36: bedste match*** | C36: =beregning!C7 -> E07
B37: miljøpåvirkning bedste match | C37: =_xlfn.XLOOKUP(category,beregning!$T$7:$T$15,beregning!Z$7:Z$15,"-") -> 3.8 | D37: =_xlfn.XLOOKUP(category,menuer!J$5:J$13,menuer!L$5:L$13,"") &" "& _xlfn.XLOOKUP(category,menuer!J$5:J$13,menuer!K$5:K$13,"") &" /m2/år" -> kg CO2eq /m2/år
C38: =_xlfn.XLOOKUP(category,beregning!$T$7:$T$15,beregning!AB$7:AB$15,"-") -> 11.4 | D38: =_xlfn.XLOOKUP(category,menuer!J$5:J$13,menuer!M$5:M$13,"") &" "& _xlfn.XLOOKUP(category,menuer!J$5:J$13,menuer!K$5:K$13,"") &" /år" -> tons CO2eq /år
C39: =_xlfn.XLOOKUP(category,beregning!$T$7:$T$15,beregning!AC$7:AC$15,"-") -> 912 | D39: =_xlfn.XLOOKUP(category,menuer!J$5:J$13,menuer!M$5:M$13,"") &" "& _xlfn.XLOOKUP(category,menuer!J$5:J$13,menuer!K$5:K$13,"") &" / "&aar&"år" -> tons CO2eq / 80år
B41: varians/skævhed bedste match | C41: =beregning!J8 -> 0
H42: =v_navn&" / andel bygningsdele ***" -> min bygning / andel bygningsdele ***
B45: *alle LCA-data stammer fra SBI rapport 2020:04 ("60 cases")
B46: link: https://sbi.dk/Assets/Klimapaavirkning-fra-60-bygninger/SBi-2020-04.pdf
B47: ** "skævhed" udtrykker hvor nøjagtigt resultatet kan være. En lav skævhed er udtryk for en bedre match mellem de indtastede data og databasen.
B49: *** se SBI-rapport 2020_04
B51: data for bygningdele og materialer kan for eksisterende byggeri findes i BBR-meddelelsen

Sheet license
B5: Begin license text.
B8: Copyright 2021 / vandkunsten architects (Jan S. Kauschen)
B10: Permission is hereby granted, free of charge, to any person obtaining a copy of this software and associated documentation files (the "Software"), to deal in the Software without restriction, including without limitation the rights to use, copy, modify, merge, publish, distribute, sublicense, and/or sell copies of the Software, and to permit persons to whom the Software is furnished to do so, subject to the following conditions:
B12: The above copyright notice and this permission notice shall be included in all copies or substantial portions of the Software.
B14: THE SOFTWARE IS PROVIDED "AS IS", WITHOUT WARRANTY OF ANY KIND, EXPRESS OR IMPLIED, INCLUDING BUT NOT LIMITED TO THE WARRANTIES OF MERCHANTABILITY, FITNESS FOR A PARTICULAR PURPOSE AND NONINFRINGEMENT. IN NO EVENT SHALL THE AUTHORS OR COPYRIGHT HOLDERS BE LIABLE FOR ANY CLAIM, DAMAGES OR OTHER LIABILITY, WHETHER IN AN ACTION OF CONTRACT, TORT OR OTHERWISE, ARISING FROM, OUT OF OR IN CONNECTION WITH THE SOFTWARE OR THE USE OR OTHER DEALINGS IN THE SOFTWARE.
B18: End license text.
B24: to see all sheets or get access to the formuals, use the password "vandkunsten"
B25: the sheet is locked only to prohibit errors that usually happen when formuals are accessible i cells

Sheet db_LCA (hidden)
A1: 1 | B1: 2 | C1: 3 | D1: 4 | E1: 5 | F1: 6 | G1: 7 | H1: 8 | I1: 9 | J1: 10 | K1: 11 | L1: 12 | M1: 13 | N1: 14 | O1: 15 | P1: 16 | Q1: 17 | R1: 18 | S1: 19 | T1: 20 | U1: 21 | V1: 22 | W1: 23 | Y1: 24 | Z1: 25 | AB1: 26 | AC1: 27 | AE1: 28 | AF1: 29 | AH1: 30 | AI1: 31 | AK1: 32 | AL1: 33 | AN1: 34 | AO1: 35 | AQ1: 36 | AR1: 37 | AT1: 38 | AU1: 39 | AV1: 40 | AW1: 41 | AX1: 42
E2: type | V2: GWP | Y2: ODP | AB2: AP | AE2: EP | AH2: POCP | AK2: ADPe | AN2: ADPf | AQ2: Petot | AT2: Sek
V3: A1-3, B4, C3-4 | Y3: A1-3, B4, C3-4 | AB3: A1-3, B4, C3-4 | AE3: A1-3, B4, C3-4 | AH3: A1-3, B4, C3-4 | AK3: A1-3, B4, C3-4 | AN3: A1-3, B4, C3-4 | AQ3: A1-3, B4, C3-4 | AT3: A1-3, B4, C3-4
V4: kg CO2eq/m2 | Y4: kg R11eq/m2 | AB4: kg SO2eq/m2 | AE4: kg PO4eq/m2 | AH4: kg ethen eq/m2 | AK4: kg Sb eq/m2 | AN4: MJ/m2 | AQ4: kWh/m2 | AT4: kWh/m2
D5: størrelse | E5: fundament | F5: terrændæk | G5: terrændæk | H5: dæk | I5: dæk | J5: ydervægge, bærende konstruktion | K5: ydervægge, bærende konstruktion | L5: ydervægge, overflade | M5: ydervægge, overflade | N5: indervægge | O5: indervægge | P5: vinduer | Q5: vinduer | R5: tag, bærende konstruktion | S5: tag, bærende konstruktion | T5: tag, overfalde | U5: tag, overfalde | V5: 50 år | W5: 80år | Y5: 50 år | Z5: 80år | AB5: 50 år | AC5: 80år | AE5: 50 år | AF5: 80år | AH5: 50 år | AI5: 80år | AK5: 50 år | AL5: 80år | AN5: 50 år | AO5: 80år | AQ5: 50 år | AR5: 80år | AT5: 50 år | AU5: 80år
A6: A05 | D6: stor | E6: beton/cement | F6: beton/cement | H6: beton/cement | J6: beton/cement | L6: metal | N6: beton/cement | P6: metal | R6: beton/cement | T6: tagpap | V6: =_xlfn.XLOOKUP($A6,db_LCA50!$A:$A,db_LCA50!C:C) -> 6.62 | W6: =_xlfn.XLOOKUP($A6,db_LCA80!$A:$A,db_LCA80!C:C) -> 5.66 | Y6: =_xlfn.XLOOKUP($A6,db_LCA50!$A:$A,db_LCA50!F:F) -> 2.64e-08 | Z6: =_xlfn.XLOOKUP($A6,db_LCA80!$A:$A,db_LCA80!F:F) -> 2.13e-08 | AB6: =_xlfn.XLOOKUP($A6,db_LCA50!$A:$A,db_LCA50!I:I) -> 0.0214 | AC6: =_xlfn.XLOOKUP($A6,db_LCA80!$A:$A,db_LCA80!I:I) -> 0.0188 | AE6: =_xlfn.XLOOKUP($A6,db_LCA50!$A:$A,db_LCA50!L:L) -> 0.00285 | AF6: =_xlfn.XLOOKUP($A6,db_LCA80!$A:$A,db_LCA80!L:L) -> 0.00246 | AH6: =_xlfn.XLOOKUP($A6,db_LCA50!$A:$A,db_LCA50!O:O) -> 0.00255 | AI6: =_xlfn.XLOOKUP($A6,db_LCA80!$A:$A,db_LCA80!O:O) -> 0.0022 | AK6: =_xlfn.XLOOKUP($A6,db_LCA50!$A:$A,db_LCA50!R:R) -> 0.000281 | AL6: =_xlfn.XLOOKUP($A6,db_LCA80!$A:$A,db_LCA80!R:R) -> 0.00026 | AN6: =_xlfn.XLOOKUP($A6,db_LCA50!$A:$A,db_LCA50!U:U) -> 71.8 | AO6: =_xlfn.XLOOKUP($A6,db_LCA80!$A:$A,db_LCA80!U:U) -> 63.5 | AQ6: =_xlfn.XLOOKUP($A6,db_LCA50!$A:$A,db_LCA50!X:X) -> 30 | AR6: =_xlfn.XLOOKUP($A6,db_LCA80!$A:$A,db_LCA80!X:X) -> 25.9 | AT6: =_xlfn.XLOOKUP($A6,db_LCA50!$A:$A,db_LCA50!AA:AA) -> 0.569 | AU6: =_xlfn.XLOOKUP($A6,db_LCA80!$A:$A,db_LCA80!AA:AA) -> 0.357
A7: A06 | D7: stor | E7: beton/cement | F7: beton/cement | H7: beton/cement | J7: metal | L7: metal | N7: beton/cement | P7: metal | R7: beton/cement | T7: tagpap | V7: =_xlfn.XLOOKUP(A7,db_LCA50!A:A,db_LCA50!C:C) -> 6.25 | W7: =_xlfn.XLOOKUP($A7,db_LCA80!$A:$A,db_LCA80!C:C) -> 5.48 | Y7: =_xlfn.XLOOKUP($A7,db_LCA50!$A:$A,db_LCA50!F:F) -> 2.66e-08 | Z7: =_xlfn.XLOOKUP($A7,db_LCA80!$A:$A,db_LCA80!F:F) -> 2.04e-08 | AB7: =_xlfn.XLOOKUP($A7,db_LCA50!$A:$A,db_LCA50!I:I) -> 0.0204 | AC7: =_xlfn.XLOOKUP($A7,db_LCA80!$A:$A,db_LCA80!I:I) -> 0.0183 | AE7: =_xlfn.XLOOKUP($A7,db_LCA50!$A:$A,db_LCA50!L:L) -> 0.00288 | AF7: =_xlfn.XLOOKUP($A7,db_LCA80!$A:$A,db_LCA80!L:L) -> 0.00254 | AH7: =_xlfn.XLOOKUP($A7,db_LCA50!$A:$A,db_LCA50!O:O) -> 0.00244 | AI7: =_xlfn.XLOOKUP($A7,db_LCA80!$A:$A,db_LCA80!O:O) -> 0.00214 | AK7: =_xlfn.XLOOKUP($A7,db_LCA50!$A:$A,db_LCA50!R:R) -> 0.000281 | AL7: =_xlfn.XLOOKUP($A7,db_LCA80!$A:$A,db_LCA80!R:R) -> 0.00026 | AN7: =_xlfn.XLOOKUP($A7,db_LCA50!$A:$A,db_LCA50!U:U) -> 71.7 | AO7: =_xlfn.XLOOKUP($A7,db_LCA80!$A:$A,db_LCA80!U:U) -> 65.6 | AQ7: =_xlfn.XLOOKUP($A7,db_LCA50!$A:$A,db_LCA50!X:X) -> 33.2 | AR7: =_xlfn.XLOOKUP($A7,db_LCA80!$A:$A,db_LCA80!X:X) -> 30.5 | AT7: =_xlfn.XLOOKUP($A7,db_LCA50!$A:$A,db_LCA50!AA:AA) -> 0.429 | AU7: =_xlfn.XLOOKUP($A7,db_LCA80!$A:$A,db_LCA80!AA:AA) -> 0.269
A8: A07 | D8: mellem | E8: beton/cement | F8: beton/cement | H8: beton/cement | J8: beton/cement | L8: metal | N8: beton/cement | P8: træ | Q8: metal | R8: beton/cement | T8: tagpap | V8: =_xlfn.XLOOKUP(A8,db_LCA50!A:A,db_LCA50!C:C) -> 10.1 | W8: =_xlfn.XLOOKUP($A8,db_LCA80!$A:$A,db_LCA80!C:C) -> 7.24 | Y8: =_xlfn.XLOOKUP($A8,db_LCA50!$A:$A,db_LCA50!F:F) -> 1.34e-08 | Z8: =_xlfn.XLOOKUP($A8,db_LCA80!$A:$A,db_LCA80!F:F) -> 1e-08 | AB8: =_xlfn.XLOOKUP($A8,db_LCA50!$A:$A,db_LCA50!I:I) -> 0.0297 | AC8: =_xlfn.XLOOKUP($A8,db_LCA80!$A:$A,db_LCA80!I:I) -> 0.0217 | AE8: =_xlfn.XLOOKUP($A8,db_LCA50!$A:$A,db_LCA50!L:L) -> 0.00306 | AF8: =_xlfn.XLOOKUP($A8,db_LCA80!$A:$A,db_LCA80!L:L) -> 0.00239 | AH8: =_xlfn.XLOOKUP($A8,db_LCA50!$A:$A,db_LCA50!O:O) -> 0.00379 | AI8: =_xlfn.XLOOKUP($A8,db_LCA80!$A:$A,db_LCA80!O:O) -> 0.00269 | AK8: =_xlfn.XLOOKUP($A8,db_LCA50!$A:$A,db_LCA50!R:R) -> 7.2e-05 | AL8: =_xlfn.XLOOKUP($A8,db_LCA80!$A:$A,db_LCA80!R:R) -> 6.62e-05 | AN8: =_xlfn.XLOOKUP($A8,db_LCA50!$A:$A,db_LCA50!U:U) -> 94.8 | AO8: =_xlfn.XLOOKUP($A8,db_LCA80!$A:$A,db_LCA80!U:U) -> 69.8 | AQ8: =_xlfn.XLOOKUP($A8,db_LCA50!$A:$A,db_LCA50!X:X) -> 37.2 | AR8: =_xlfn.XLOOKUP($A8,db_LCA80!$A:$A,db_LCA80!X:X) -> 27.4 | AT8: =_xlfn.XLOOKUP($A8,db_LCA50!$A:$A,db_LCA50!AA:AA) -> 1.47 | AU8: =_xlfn.XLOOKUP($A8,db_LCA80!$A:$A,db_LCA80!AA:AA) -> 0.924
A9: A08 | D9: stor | E9: beton/cement | F9: beton/cement | H9: beton/cement | J9: beton/cement | L9: tegl | N9: beton/cement | O9: metal | P9: metal | R9: beton/cement | T9: tagpap | V9: =_xlfn.XLOOKUP(A9,db_LCA50!A:A,db_LCA50!C:C) -> 7.61 | W9: =_xlfn.XLOOKUP($A9,db_LCA80!$A:$A,db_LCA80!C:C) -> 6.05 | Y9: =_xlfn.XLOOKUP($A9,db_LCA50!$A:$A,db_LCA50!F:F) -> 1.05e-08 | Z9: =_xlfn.XLOOKUP($A9,db_LCA80!$A:$A,db_LCA80!F:F) -> 7.36e-09 | AB9: =_xlfn.XLOOKUP($A9,db_LCA50!$A:$A,db_LCA50!I:I) -> 0.0196 | AC9: =_xlfn.XLOOKUP($A9,db_LCA80!$A:$A,db_LCA80!I:I) -> 0.0166 | AE9: =_xlfn.XLOOKUP($A9,db_LCA50!$A:$A,db_LCA50!L:L) -> 0.00254 | AF9: =_xlfn.XLOOKUP($A9,db_LCA80!$A:$A,db_LCA80!L:L) -> 0.00219 | AH9: =_xlfn.XLOOKUP($A9,db_LCA50!$A:$A,db_LCA50!O:O) -> 0.00285 | AI9: =_xlfn.XLOOKUP($A9,db_LCA80!$A:$A,db_LCA80!O:O) -> 0.00219 | AK9: =_xlfn.XLOOKUP($A9,db_LCA50!$A:$A,db_LCA50!R:R) -> 9.25e-05 | AL9: =_xlfn.XLOOKUP($A9,db_LCA80!$A:$A,db_LCA80!R:R) -> 8.83e-05 | AN9: =_xlfn.XLOOKUP($A9,db_LCA50!$A:$A,db_LCA50!U:U) -> 69.1 | AO9: =_xlfn.XLOOKUP($A9,db_LCA80!$A:$A,db_LCA80!U:U) -> 58.5 | AQ9: =_xlfn.XLOOKUP($A9,db_LCA50!$A:$A,db_LCA50!X:X) -> 24.1 | AR9: =_xlfn.XLOOKUP($A9,db_LCA80!$A:$A,db_LCA80!X:X) -> 20.4 | AT9: =_xlfn.XLOOKUP($A9,db_LCA50!$A:$A,db_LCA50!AA:AA) -> 1.73 | AU9: =_xlfn.XLOOKUP($A9,db_LCA80!$A:$A,db_LCA80!AA:AA) -> 1.1
A10: K01 | D10: mellem | E10: beton/cement | F10: beton/cement | H10: beton/cement | J10: metal | L10: beton/cement | N10: beton/cement | O10: træ | P10: træ | Q10: metal | R10: beton/cement | S10: metal | T10: tagpap | V10: =_xlfn.XLOOKUP(A10,db_LCA50!A:A,db_LCA50!C:C) -> 7.14 | W10: =_xlfn.XLOOKUP($A10,db_LCA80!$A:$A,db_LCA80!C:C) -> 6.14 | Y10: =_xlfn.XLOOKUP($A10,db_LCA50!$A:$A,db_LCA50!F:F) -> 8.62e-09 | Z10: =_xlfn.XLOOKUP($A10,db_LCA80!$A:$A,db_LCA80!F:F) -> 5.63e-09 | AB10: =_xlfn.XLOOKUP($A10,db_LCA50!$A:$A,db_LCA50!I:I) -> 0.0209 | AC10: =_xlfn.XLOOKUP($A10,db_LCA80!$A:$A,db_LCA80!I:I) -> 0.0188 | AE10: =_xlfn.XLOOKUP($A10,db_LCA50!$A:$A,db_LCA50!L:L) -> 0.00236 | AF10: =_xlfn.XLOOKUP($A10,db_LCA80!$A:$A,db_LCA80!L:L) -> 0.00204 | AH10: =_xlfn.XLOOKUP($A10,db_LCA50!$A:$A,db_LCA50!O:O) -> 0.00364 | AI10: =_xlfn.XLOOKUP($A10,db_LCA80!$A:$A,db_LCA80!O:O) -> 0.00284 | AK10: =_xlfn.XLOOKUP($A10,db_LCA50!$A:$A,db_LCA50!R:R) -> 0.000322 | AL10: =_xlfn.XLOOKUP($A10,db_LCA80!$A:$A,db_LCA80!R:R) -> 0.000343 | AN10: =_xlfn.XLOOKUP($A10,db_LCA50!$A:$A,db_LCA50!U:U) -> 67.9 | AO10: =_xlfn.XLOOKUP($A10,db_LCA80!$A:$A,db_LCA80!U:U) -> 61.5 | AQ10: =_xlfn.XLOOKUP($A10,db_LCA50!$A:$A,db_LCA50!X:X) -> 24.8 | AR10: =_xlfn.XLOOKUP($A10,db_LCA80!$A:$A,db_LCA80!X:X) -> 22.7 | AT10: =_xlfn.XLOOKUP($A10,db_LCA50!$A:$A,db_LCA50!AA:AA) -> 1.13 | AU10: =_xlfn.XLOOKUP($A10,db_LCA80!$A:$A,db_LCA80!AA:AA) -> 0.721
A11: K02 | D11: stor | E11: beton/cement | F11: beton/cement | H11: beton/cement | J11: beton/cement | L11: metal | N11: beton/cement | O11: metal | P11: træ | Q11: metal | R11: beton/cement | T11: tagpap | V11: =_xlfn.XLOOKUP(A11,db_LCA50!A:A,db_LCA50!C:C) -> 6.09 | W11: =_xlfn.XLOOKUP($A11,db_LCA80!$A:$A,db_LCA80!C:C) -> 4.24 | Y11: =_xlfn.XLOOKUP($A11,db_LCA50!$A:$A,db_LCA50!F:F) -> 1.15e-08 | Z11: =_xlfn.XLOOKUP($A11,db_LCA80!$A:$A,db_LCA80!F:F) -> 7.3e-09 | AB11: =_xlfn.XLOOKUP($A11,db_LCA50!$A:$A,db_LCA50!I:I) -> 0.0138 | AC11: =_xlfn.XLOOKUP($A11,db_LCA80!$A:$A,db_LCA80!I:I) -> 0.0102 | AE11: =_xlfn.XLOOKUP($A11,db_LCA50!$A:$A,db_LCA50!L:L) -> 0.00177 | AF11: =_xlfn.XLOOKUP($A11,db_LCA80!$A:$A,db_LCA80!L:L) -> 0.0013 | AH11: =_xlfn.XLOOKUP($A11,db_LCA50!$A:$A,db_LCA50!O:O) -> 0.0025 | AI11: =_xlfn.XLOOKUP($A11,db_LCA80!$A:$A,db_LCA80!O:O) -> 0.00179 | AK11: =_xlfn.XLOOKUP($A11,db_LCA50!$A:$A,db_LCA50!R:R) -> 0.00011 | AL11: =_xlfn.XLOOKUP($A11,db_LCA80!$A:$A,db_LCA80!R:R) -> 7.85e-05 | AN11: =_xlfn.XLOOKUP($A11,db_LCA50!$A:$A,db_LCA50!U:U) -> 45.8 | AO11: =_xlfn.XLOOKUP($A11,db_LCA80!$A:$A,db_LCA80!U:U) -> 34.8 | AQ11: =_xlfn.XLOOKUP($A11,db_LCA50!$A:$A,db_LCA50!X:X) -> 19.6 | AR11: =_xlfn.XLOOKUP($A11,db_LCA80!$A:$A,db_LCA80!X:X) -> 14.9 | AT11: =_xlfn.XLOOKUP($A11,db_LCA50!$A:$A,db_LCA50!AA:AA) -> 2.25 | AU11: =_xlfn.XLOOKUP($A11,db_LCA80!$A:$A,db_LCA80!AA:AA) -> 1.4
A12: K03 | D12: mellem | E12: beton/cement | F12: beton/cement | H12: beton/cement | J12: beton/cement | L12: beton/cement | M12: metal | N12: beton/cement | O12: metal | P12: metal | R12: beton/cement | T12: tagpap | V12: =_xlfn.XLOOKUP(A12,db_LCA50!A:A,db_LCA50!C:C) -> 8.13 | W12: =_xlfn.XLOOKUP($A12,db_LCA80!$A:$A,db_LCA80!C:C) -> 6.95 | Y12: =_xlfn.XLOOKUP($A12,db_LCA50!$A:$A,db_LCA50!F:F) -> 6.98e-08 | Z12: =_xlfn.XLOOKUP($A12,db_LCA80!$A:$A,db_LCA80!F:F) -> 8.12e-08 | AB12: =_xlfn.XLOOKUP($A12,db_LCA50!$A:$A,db_LCA50!I:I) -> 0.0221 | AC12: =_xlfn.XLOOKUP($A12,db_LCA80!$A:$A,db_LCA80!I:I) -> 0.0202 | AE12: =_xlfn.XLOOKUP($A12,db_LCA50!$A:$A,db_LCA50!L:L) -> 0.00249 | AF12: =_xlfn.XLOOKUP($A12,db_LCA80!$A:$A,db_LCA80!L:L) -> 0.00218 | AH12: =_xlfn.XLOOKUP($A12,db_LCA50!$A:$A,db_LCA50!O:O) -> 0.00302 | AI12: =_xlfn.XLOOKUP($A12,db_LCA80!$A:$A,db_LCA80!O:O) -> 0.00287 | AK12: =_xlfn.XLOOKUP($A12,db_LCA50!$A:$A,db_LCA50!R:R) -> 8.18e-05 | AL12: =_xlfn.XLOOKUP($A12,db_LCA80!$A:$A,db_LCA80!R:R) -> 7.35e-05 | AN12: =_xlfn.XLOOKUP($A12,db_LCA50!$A:$A,db_LCA50!U:U) -> 78.6 | AO12: =_xlfn.XLOOKUP($A12,db_LCA80!$A:$A,db_LCA80!U:U) -> 73 | AQ12: =_xlfn.XLOOKUP($A12,db_LCA50!$A:$A,db_LCA50!X:X) -> 26.6 | AR12: =_xlfn.XLOOKUP($A12,db_LCA80!$A:$A,db_LCA80!X:X) -> 24.5 | AT12: =_xlfn.XLOOKUP($A12,db_LCA50!$A:$A,db_LCA50!AA:AA) -> 1.76 | AU12: =_xlfn.XLOOKUP($A12,db_LCA80!$A:$A,db_LCA80!AA:AA) -> 1.12
A13: K04 | D13: mellem | E13: beton/cement | F13: beton/cement | H13: beton/cement | J13: beton/cement | L13: metal | M13: tegl | N13: beton/cement | O13: metal | P13: metal | R13: beton/cement | T13: tagpap | V13: =_xlfn.XLOOKUP(A13,db_LCA50!A:A,db_LCA50!C:C) -> 6.68 | W13: =_xlfn.XLOOKUP($A13,db_LCA80!$A:$A,db_LCA80!C:C) -> 5.33 | Y13: =_xlfn.XLOOKUP($A13,db_LCA50!$A:$A,db_LCA50!F:F) -> 1.04e-08 | Z13: =_xlfn.XLOOKUP($A13,db_LCA80!$A:$A,db_LCA80!F:F) -> 8.04e-09 | AB13: =_xlfn.XLOOKUP($A13,db_LCA50!$A:$A,db_LCA50!I:I) -> 0.0144 | AC13: =_xlfn.XLOOKUP($A13,db_LCA80!$A:$A,db_LCA80!I:I) -> 0.0122 | AE13: =_xlfn.XLOOKUP($A13,db_LCA50!$A:$A,db_LCA50!L:L) -> 0.00176 | AF13: =_xlfn.XLOOKUP($A13,db_LCA80!$A:$A,db_LCA80!L:L) -> 0.00141 | AH13: =_xlfn.XLOOKUP($A13,db_LCA50!$A:$A,db_LCA50!O:O) -> 0.00436 | AI13: =_xlfn.XLOOKUP($A13,db_LCA80!$A:$A,db_LCA80!O:O) -> 0.00404 | AK13: =_xlfn.XLOOKUP($A13,db_LCA50!$A:$A,db_LCA50!R:R) -> 3.27 | AL13: =_xlfn.XLOOKUP($A13,db_LCA80!$A:$A,db_LCA80!R:R) -> 4.09 | AN13: =_xlfn.XLOOKUP($A13,db_LCA50!$A:$A,db_LCA50!U:U) -> 60.6 | AO13: =_xlfn.XLOOKUP($A13,db_LCA80!$A:$A,db_LCA80!U:U) -> 52.4 | AQ13: =_xlfn.XLOOKUP($A13,db_LCA50!$A:$A,db_LCA50!X:X) -> 20.4 | AR13: =_xlfn.XLOOKUP($A13,db_LCA80!$A:$A,db_LCA80!X:X) -> 17.8 | AT13: =_xlfn.XLOOKUP($A13,db_LCA50!$A:$A,db_LCA50!AA:AA) -> 1.58 | AU13: =_xlfn.XLOOKUP($A13,db_LCA80!$A:$A,db_LCA80!AA:AA) -> 0.99
A14: K05 | D14: mellem | E14: beton/cement | F14: beton/cement | H14: beton/cement | J14: beton/cement | L14: tegl | N14: træ | P14: træ | Q14: metal | R14: beton/cement | T14: tagpap | V14: =_xlfn.XLOOKUP(A14,db_LCA50!A:A,db_LCA50!C:C) -> 8.64 | W14: =_xlfn.XLOOKUP($A14,db_LCA80!$A:$A,db_LCA80!C:C) -> 7.31 | Y14: =_xlfn.XLOOKUP($A14,db_LCA50!$A:$A,db_LCA50!F:F) -> 2.27e-08 | Z14: =_xlfn.XLOOKUP($A14,db_LCA80!$A:$A,db_LCA80!F:F) -> 1.67e-08 | AB14: =_xlfn.XLOOKUP($A14,db_LCA50!$A:$A,db_LCA50!I:I) -> 0.0281 | AC14: =_xlfn.XLOOKUP($A14,db_LCA80!$A:$A,db_LCA80!I:I) -> 0.0244 | AE14: =_xlfn.XLOOKUP($A14,db_LCA50!$A:$A,db_LCA50!L:L) -> 0.00325 | AF14: =_xlfn.XLOOKUP($A14,db_LCA80!$A:$A,db_LCA80!L:L) -> 0.00289 | AH14: =_xlfn.XLOOKUP($A14,db_LCA50!$A:$A,db_LCA50!O:O) -> 0.00301 | AI14: =_xlfn.XLOOKUP($A14,db_LCA80!$A:$A,db_LCA80!O:O) -> 0.00255 | AK14: =_xlfn.XLOOKUP($A14,db_LCA50!$A:$A,db_LCA50!R:R) -> 0.000285 | AL14: =_xlfn.XLOOKUP($A14,db_LCA80!$A:$A,db_LCA80!R:R) -> 0.00026 | AN14: =_xlfn.XLOOKUP($A14,db_LCA50!$A:$A,db_LCA50!U:U) -> 90.3 | AO14: =_xlfn.XLOOKUP($A14,db_LCA80!$A:$A,db_LCA80!U:U) -> 77.9 | AQ14: =_xlfn.XLOOKUP($A14,db_LCA50!$A:$A,db_LCA50!X:X) -> 34.8 | AR14: =_xlfn.XLOOKUP($A14,db_LCA80!$A:$A,db_LCA80!X:X) -> 29.5 | AT14: =_xlfn.XLOOKUP($A14,db_LCA50!$A:$A,db_LCA50!AA:AA) -> 1.39 | AU14: =_xlfn.XLOOKUP($A14,db_LCA80!$A:$A,db_LCA80!AA:AA) -> 0.894
A15: K06 | D15: stor | E15: beton/cement | F15: beton/cement | H15: beton/cement | I15: metal | J15: beton/cement | L15: metal | N15: beton/cement | O15: metal | P15: træ | Q15: metal | R15: metal | T15: tagpap | V15: =_xlfn.XLOOKUP(A15,db_LCA50!A:A,db_LCA50!C:C) -> 6.26 | W15: =_xlfn.XLOOKUP($A15,db_LCA80!$A:$A,db_LCA80!C:C) -> 5.11 | Y15: =_xlfn.XLOOKUP($A15,db_LCA50!$A:$A,db_LCA50!F:F) -> 1.04e-08 | Z15: =_xlfn.XLOOKUP($A15,db_LCA80!$A:$A,db_LCA80!F:F) -> 7.28e-09 | AB15: =_xlfn.XLOOKUP($A15,db_LCA50!$A:$A,db_LCA50!I:I) -> 0.0168 | AC15: =_xlfn.XLOOKUP($A15,db_LCA80!$A:$A,db_LCA80!I:I) -> 0.0138 | AE15: =_xlfn.XLOOKUP($A15,db_LCA50!$A:$A,db_LCA50!L:L) -> 0.00182 | AF15: =_xlfn.XLOOKUP($A15,db_LCA80!$A:$A,db_LCA80!L:L) -> 0.00149 | AH15: =_xlfn.XLOOKUP($A15,db_LCA50!$A:$A,db_LCA50!O:O) -> 0.00295 | AI15: =_xlfn.XLOOKUP($A15,db_LCA80!$A:$A,db_LCA80!O:O) -> 0.00243 | AK15: =_xlfn.XLOOKUP($A15,db_LCA50!$A:$A,db_LCA50!R:R) -> 0.000172 | AL15: =_xlfn.XLOOKUP($A15,db_LCA80!$A:$A,db_LCA80!R:R) -> 0.000125 | AN15: =_xlfn.XLOOKUP($A15,db_LCA50!$A:$A,db_LCA50!U:U) -> 64.8 | AO15: =_xlfn.XLOOKUP($A15,db_LCA80!$A:$A,db_LCA80!U:U) -> 56.8 | AQ15: =_xlfn.XLOOKUP($A15,db_LCA50!$A:$A,db_LCA50!X:X) -> 22.9 | AR15: =_xlfn.XLOOKUP($A15,db_LCA80!$A:$A,db_LCA80!X:X) -> 20.3 | AT15: =_xlfn.XLOOKUP($A15,db_LCA50!$A:$A,db_LCA50!AA:AA) -> 1.09 | AU15: =_xlfn.XLOOKUP($A15,db_LCA80!$A:$A,db_LCA80!AA:AA) -> 0.681
A16: K07 | D16: mellem | E16: beton/cement | F16: beton/cement | H16: beton/cement | J16: beton/cement | L16: metal | M16: tegl | N16: beton/cement | O16: metal | P16: metal | R16: beton/cement | T16: tagpap | V16: =_xlfn.XLOOKUP(A16,db_LCA50!A:A,db_LCA50!C:C) -> 10.3 | W16: =_xlfn.XLOOKUP($A16,db_LCA80!$A:$A,db_LCA80!C:C) -> 8.32 | Y16: =_xlfn.XLOOKUP($A16,db_LCA50!$A:$A,db_LCA50!F:F) -> 1.94e-08 | Z16: =_xlfn.XLOOKUP($A16,db_LCA80!$A:$A,db_LCA80!F:F) -> 1.4e-08 | AB16: =_xlfn.XLOOKUP($A16,db_LCA50!$A:$A,db_LCA50!I:I) -> 0.0219 | AC16: =_xlfn.XLOOKUP($A16,db_LCA80!$A:$A,db_LCA80!I:I) -> 0.0178 | AE16: =_xlfn.XLOOKUP($A16,db_LCA50!$A:$A,db_LCA50!L:L) -> 0.00279 | AF16: =_xlfn.XLOOKUP($A16,db_LCA80!$A:$A,db_LCA80!L:L) -> 0.00221 | AH16: =_xlfn.XLOOKUP($A16,db_LCA50!$A:$A,db_LCA50!O:O) -> 0.0142 | AI16: =_xlfn.XLOOKUP($A16,db_LCA80!$A:$A,db_LCA80!O:O) -> 0.0145 | AK16: =_xlfn.XLOOKUP($A16,db_LCA50!$A:$A,db_LCA50!R:R) -> 0.000106 | AL16: =_xlfn.XLOOKUP($A16,db_LCA80!$A:$A,db_LCA80!R:R) -> 9.57e-05 | AN16: =_xlfn.XLOOKUP($A16,db_LCA50!$A:$A,db_LCA50!U:U) -> 102 | AO16: =_xlfn.XLOOKUP($A16,db_LCA80!$A:$A,db_LCA80!U:U) -> 89.1 | AQ16: =_xlfn.XLOOKUP($A16,db_LCA50!$A:$A,db_LCA50!X:X) -> 34 | AR16: =_xlfn.XLOOKUP($A16,db_LCA80!$A:$A,db_LCA80!X:X) -> 29.5 | AT16: =_xlfn.XLOOKUP($A16,db_LCA50!$A:$A,db_LCA50!AA:AA) -> 2.25 | AU16: =_xlfn.XLOOKUP($A16,db_LCA80!$A:$A,db_LCA80!AA:AA) -> 1.42
A17: K08 | D17: mellem | E17: beton/cement | F17: beton/cement | H17: beton/cement | I17: metal | J17: beton/cement | L17: tegl | N17: beton/cement | O17: træ | P17: træ | R17: beton/cement | S17: metal | T17: tagpap | V17: =_xlfn.XLOOKUP(A17,db_LCA50!A:A,db_LCA50!C:C) -> 8.96 | W17: =_xlfn.XLOOKUP($A17,db_LCA80!$A:$A,db_LCA80!C:C) -> 7.9 | Y17: =_xlfn.XLOOKUP($A17,db_LCA50!$A:$A,db_LCA50!F:F) -> 9.37e-09 | Z17: =_xlfn.XLOOKUP($A17,db_LCA80!$A:$A,db_LCA80!F:F) -> 7.89e-09 | AB17: =_xlfn.XLOOKUP($A17,db_LCA50!$A:$A,db_LCA50!I:I) -> 0.027 | AC17: =_xlfn.XLOOKUP($A17,db_LCA80!$A:$A,db_LCA80!I:I) -> 0.0238 | AE17: =_xlfn.XLOOKUP($A17,db_LCA50!$A:$A,db_LCA50!L:L) -> 0.00346 | AF17: =_xlfn.XLOOKUP($A17,db_LCA80!$A:$A,db_LCA80!L:L) -> 0.00311 | AH17: =_xlfn.XLOOKUP($A17,db_LCA50!$A:$A,db_LCA50!O:O) -> 0.00621 | AI17: =_xlfn.XLOOKUP($A17,db_LCA80!$A:$A,db_LCA80!O:O) -> 0.00598 | AK17: =_xlfn.XLOOKUP($A17,db_LCA50!$A:$A,db_LCA50!R:R) -> 0.000167 | AL17: =_xlfn.XLOOKUP($A17,db_LCA80!$A:$A,db_LCA80!R:R) -> 0.000154 | AN17: =_xlfn.XLOOKUP($A17,db_LCA50!$A:$A,db_LCA50!U:U) -> 97.4 | AO17: =_xlfn.XLOOKUP($A17,db_LCA80!$A:$A,db_LCA80!U:U) -> 90.3 | AQ17: =_xlfn.XLOOKUP($A17,db_LCA50!$A:$A,db_LCA50!X:X) -> 36.2 | AR17: =_xlfn.XLOOKUP($A17,db_LCA80!$A:$A,db_LCA80!X:X) -> 34.8 | AT17: =_xlfn.XLOOKUP($A17,db_LCA50!$A:$A,db_LCA50!AA:AA) -> 0.796 | AU17: =_xlfn.XLOOKUP($A17,db_LCA80!$A:$A,db_LCA80!AA:AA) -> 0.499
A18: K09 | D18: stor | E18: beton/cement | F18: beton/cement | H18: beton/cement | J18: beton/cement | L18: tegl | N18: beton/cement | P18: træ | Q18: metal | R18: beton/cement | T18: tagpap | V18: =_xlfn.XLOOKUP(A18,db_LCA50!A:A,db_LCA50!C:C) -> 7.84 | W18: =_xlfn.XLOOKUP($A18,db_LCA80!$A:$A,db_LCA80!C:C) -> 6.04 | Y18: =_xlfn.XLOOKUP($A18,db_LCA50!$A:$A,db_LCA50!F:F) -> 9.29e-09 | Z18: =_xlfn.XLOOKUP($A18,db_LCA80!$A:$A,db_LCA80!F:F) -> 6.26e-09 | AB18: =_xlfn.XLOOKUP($A18,db_LCA50!$A:$A,db_LCA50!I:I) -> 0.0207 | AC18: =_xlfn.XLOOKUP($A18,db_LCA80!$A:$A,db_LCA80!I:I) -> 0.0169 | AE18: =_xlfn.XLOOKUP($A18,db_LCA50!$A:$A,db_LCA50!L:L) -> 0.00284 | AF18: =_xlfn.XLOOKUP($A18,db_LCA80!$A:$A,db_LCA80!L:L) -> 0.00236 | AH18: =_xlfn.XLOOKUP($A18,db_LCA50!$A:$A,db_LCA50!O:O) -> 0.00295 | AI18: =_xlfn.XLOOKUP($A18,db_LCA80!$A:$A,db_LCA80!O:O) -> 0.00234 | AK18: =_xlfn.XLOOKUP($A18,db_LCA50!$A:$A,db_LCA50!R:R) -> 0.000229 | AL18: =_xlfn.XLOOKUP($A18,db_LCA80!$A:$A,db_LCA80!R:R) -> 0.000167 | AN18: =_xlfn.XLOOKUP($A18,db_LCA50!$A:$A,db_LCA50!U:U) -> 73.3 | AO18: =_xlfn.XLOOKUP($A18,db_LCA80!$A:$A,db_LCA80!U:U) -> 59.8 | AQ18: =_xlfn.XLOOKUP($A18,db_LCA50!$A:$A,db_LCA50!X:X) -> 27.1 | AR18: =_xlfn.XLOOKUP($A18,db_LCA80!$A:$A,db_LCA80!X:X) -> 22.5 | AT18: =_xlfn.XLOOKUP($A18,db_LCA50!$A:$A,db_LCA50!AA:AA) -> 1.62 | AU18: =_xlfn.XLOOKUP($A18,db_LCA80!$A:$A,db_LCA80!AA:AA) -> 1.02
A19: K10 | D19: mellem | E19: beton/cement | F19: beton/cement | H19: beton/cement | J19: beton/cement | L19: beton/cement | M19: tegl | N19: beton/cement | P19: metal | R19: beton/cement | T19: tagpap | V19: =_xlfn.XLOOKUP(A19,db_LCA50!A:A,db_LCA50!C:C) -> 10.8 | W19: =_xlfn.XLOOKUP($A19,db_LCA80!$A:$A,db_LCA80!C:C) -> 9.27 | Y19: =_xlfn.XLOOKUP($A19,db_LCA50!$A:$A,db_LCA50!F:F) -> 2.06e-08 | Z19: =_xlfn.XLOOKUP($A19,db_LCA80!$A:$A,db_LCA80!F:F) -> 1.6e-08 | AB19: =_xlfn.XLOOKUP($A19,db_LCA50!$A:$A,db_LCA50!I:I) -> 0.0279 | AC19: =_xlfn.XLOOKUP($A19,db_LCA80!$A:$A,db_LCA80!I:I) -> 0.0237 | AE19: =_xlfn.XLOOKUP($A19,db_LCA50!$A:$A,db_LCA50!L:L) -> 0.00366 | AF19: =_xlfn.XLOOKUP($A19,db_LCA80!$A:$A,db_LCA80!L:L) -> 0.00312 | AH19: =_xlfn.XLOOKUP($A19,db_LCA50!$A:$A,db_LCA50!O:O) -> 0.00522 | AI19: =_xlfn.XLOOKUP($A19,db_LCA80!$A:$A,db_LCA80!O:O) -> 0.00525 | AK19: =_xlfn.XLOOKUP($A19,db_LCA50!$A:$A,db_LCA50!R:R) -> 0.000239 | AL19: =_xlfn.XLOOKUP($A19,db_LCA80!$A:$A,db_LCA80!R:R) -> 0.000195 | AN19: =_xlfn.XLOOKUP($A19,db_LCA50!$A:$A,db_LCA50!U:U) -> 115 | AO19: =_xlfn.XLOOKUP($A19,db_LCA80!$A:$A,db_LCA80!U:U) -> 105 | AQ19: =_xlfn.XLOOKUP($A19,db_LCA50!$A:$A,db_LCA50!X:X) -> 39.6 | AR19: =_xlfn.XLOOKUP($A19,db_LCA80!$A:$A,db_LCA80!X:X) -> 35.2 | AT19: =_xlfn.XLOOKUP($A19,db_LCA50!$A:$A,db_LCA50!AA:AA) -> 1.71 | AU19: =_xlfn.XLOOKUP($A19,db_LCA80!$A:$A,db_LCA80!AA:AA) -> 1.09
A20: K11 | D20: stor | E20: beton/cement | F20: beton/cement | H20: beton/cement | J20: beton/cement | L20: tegl | N20: beton/cement | P20: metal | R20: beton/cement | S20: metal | T20: tagpap | V20: =_xlfn.XLOOKUP(A20,db_LCA50!A:A,db_LCA50!C:C) -> 5.32 | W20: =_xlfn.XLOOKUP($A20,db_LCA80!$A:$A,db_LCA80!C:C) -> 3.71 | Y20: =_xlfn.XLOOKUP($A20,db_LCA50!$A:$A,db_LCA50!F:F) -> 1.9e-08 | Z20: =_xlfn.XLOOKUP($A20,db_LCA80!$A:$A,db_LCA80!F:F) -> 1.19e-08 | AB20: =_xlfn.XLOOKUP($A20,db_LCA50!$A:$A,db_LCA50!I:I) -> 0.013 | AC20: =_xlfn.XLOOKUP($A20,db_LCA80!$A:$A,db_LCA80!I:I) -> 0.00931 | AE20: =_xlfn.XLOOKUP($A20,db_LCA50!$A:$A,db_LCA50!L:L) -> 0.00169 | AF20: =_xlfn.XLOOKUP($A20,db_LCA80!$A:$A,db_LCA80!L:L) -> 0.00122 | AH20: =_xlfn.XLOOKUP($A20,db_LCA50!$A:$A,db_LCA50!O:O) -> 0.00132 | AI20: =_xlfn.XLOOKUP($A20,db_LCA80!$A:$A,db_LCA80!O:O) -> 0.000947 | AK20: =_xlfn.XLOOKUP($A20,db_LCA50!$A:$A,db_LCA50!R:R) -> 3.67e-05 | AL20: =_xlfn.XLOOKUP($A20,db_LCA80!$A:$A,db_LCA80!R:R) -> 3.04e-05 | AN20: =_xlfn.XLOOKUP($A20,db_LCA50!$A:$A,db_LCA50!U:U) -> 44.4 | AO20: =_xlfn.XLOOKUP($A20,db_LCA80!$A:$A,db_LCA80!U:U) -> 33.1 | AQ20: =_xlfn.XLOOKUP($A20,db_LCA50!$A:$A,db_LCA50!X:X) -> 16.4 | AR20: =_xlfn.XLOOKUP($A20,db_LCA80!$A:$A,db_LCA80!X:X) -> 12 | AT20: =_xlfn.XLOOKUP($A20,db_LCA50!$A:$A,db_LCA50!AA:AA) -> 1.62 | AU20: =_xlfn.XLOOKUP($A20,db_LCA80!$A:$A,db_LCA80!AA:AA) -> 1.02
A21: K12 | D21: mellem | E21: beton/cement | F21: beton/cement | H21: beton/cement | J21: beton/cement | L21: metal | M21: tegl | N21: beton/cement | P21: metal | R21: beton/cement | T21: tagpap | V21: =_xlfn.XLOOKUP(A21,db_LCA50!A:A,db_LCA50!C:C) -> 6.41 | W21: =_xlfn.XLOOKUP($A21,db_LCA80!$A:$A,db_LCA80!C:C) -> 5.28 | Y21: =_xlfn.XLOOKUP($A21,db_LCA50!$A:$A,db_LCA50!F:F) -> 5.91e-09 | Z21: =_xlfn.XLOOKUP($A21,db_LCA80!$A:$A,db_LCA80!F:F) -> 4.16e-09 | AB21: =_xlfn.XLOOKUP($A21,db_LCA50!$A:$A,db_LCA50!I:I) -> 0.0187 | AC21: =_xlfn.XLOOKUP($A21,db_LCA80!$A:$A,db_LCA80!I:I) -> 0.0162 | AE21: =_xlfn.XLOOKUP($A21,db_LCA50!$A:$A,db_LCA50!L:L) -> 0.00283 | AF21: =_xlfn.XLOOKUP($A21,db_LCA80!$A:$A,db_LCA80!L:L) -> 0.00248 | AH21: =_xlfn.XLOOKUP($A21,db_LCA50!$A:$A,db_LCA50!O:O) -> 0.00222 | AI21: =_xlfn.XLOOKUP($A21,db_LCA80!$A:$A,db_LCA80!O:O) -> 0.0018 | AK21: =_xlfn.XLOOKUP($A21,db_LCA50!$A:$A,db_LCA50!R:R) -> 0.000123 | AL21: =_xlfn.XLOOKUP($A21,db_LCA80!$A:$A,db_LCA80!R:R) -> 8.72e-05 | AN21: =_xlfn.XLOOKUP($A21,db_LCA50!$A:$A,db_LCA50!U:U) -> 61.4 | AO21: =_xlfn.XLOOKUP($A21,db_LCA80!$A:$A,db_LCA80!U:U) -> 53.6 | AQ21: =_xlfn.XLOOKUP($A21,db_LCA50!$A:$A,db_LCA50!X:X) -> 20.2 | AR21: =_xlfn.XLOOKUP($A21,db_LCA80!$A:$A,db_LCA80!X:X) -> 17.4 | AT21: =_xlfn.XLOOKUP($A21,db_LCA50!$A:$A,db_LCA50!AA:AA) -> 1.17 | AU21: =_xlfn.XLOOKUP($A21,db_LCA80!$A:$A,db_LCA80!AA:AA) -> 0.74
A22: K13 | D22: stor | E22: beton/cement | F22: beton/cement | H22: beton/cement | J22: beton/cement | L22: metal | N22: beton/cement | O22: metal | P22: træ | Q22: metal | R22: beton/cement | T22: tagpap | V22: =_xlfn.XLOOKUP(A22,db_LCA50!A:A,db_LCA50!C:C) -> 4.86 | W22: =_xlfn.XLOOKUP($A22,db_LCA80!$A:$A,db_LCA80!C:C) -> 4.13 | Y22: =_xlfn.XLOOKUP($A22,db_LCA50!$A:$A,db_LCA50!F:F) -> 5.93e-09 | Z22: =_xlfn.XLOOKUP($A22,db_LCA80!$A:$A,db_LCA80!F:F) -> 4.14e-09 | AB22: =_xlfn.XLOOKUP($A22,db_LCA50!$A:$A,db_LCA50!I:I) -> 0.0133 | AC22: =_xlfn.XLOOKUP($A22,db_LCA80!$A:$A,db_LCA80!I:I) -> 0.012 | AE22: =_xlfn.XLOOKUP($A22,db_LCA50!$A:$A,db_LCA50!L:L) -> 0.00167 | AF22: =_xlfn.XLOOKUP($A22,db_LCA80!$A:$A,db_LCA80!L:L) -> 0.00149 | AH22: =_xlfn.XLOOKUP($A22,db_LCA50!$A:$A,db_LCA50!O:O) -> 0.00246 | AI22: =_xlfn.XLOOKUP($A22,db_LCA80!$A:$A,db_LCA80!O:O) -> 0.00199 | AK22: =_xlfn.XLOOKUP($A22,db_LCA50!$A:$A,db_LCA50!R:R) -> 0.000103 | AL22: =_xlfn.XLOOKUP($A22,db_LCA80!$A:$A,db_LCA80!R:R) -> 9.22e-05 | AN22: =_xlfn.XLOOKUP($A22,db_LCA50!$A:$A,db_LCA50!U:U) -> 43.5 | AO22: =_xlfn.XLOOKUP($A22,db_LCA80!$A:$A,db_LCA80!U:U) -> 39.4 | AQ22: =_xlfn.XLOOKUP($A22,db_LCA50!$A:$A,db_LCA50!X:X) -> 16.6 | AR22: =_xlfn.XLOOKUP($A22,db_LCA80!$A:$A,db_LCA80!X:X) -> 15.7 | AT22: =_xlfn.XLOOKUP($A22,db_LCA50!$A:$A,db_LCA50!AA:AA) -> 1.06 | AU22: =_xlfn.XLOOKUP($A22,db_LCA80!$A:$A,db_LCA80!AA:AA) -> 0.668
A23: K14 | D23: mellem | E23: beton/cement | F23: beton/cement | H23: beton/cement | J23: beton/cement | L23: metal | M23: tegl | N23: beton/cement | O23: metal | P23: metal | R23: beton/cement | T23: tagpap | V23: =_xlfn.XLOOKUP(A23,db_LCA50!A:A,db_LCA50!C:C) -> 7.75 | W23: =_xlfn.XLOOKUP($A23,db_LCA80!$A:$A,db_LCA80!C:C) -> 6.37 | Y23: =_xlfn.XLOOKUP($A23,db_LCA50!$A:$A,db_LCA50!F:F) -> 1.24e-08 | Z23: =_xlfn.XLOOKUP($A23,db_LCA80!$A:$A,db_LCA80!F:F) -> 9.09e-09 | AB23: =_xlfn.XLOOKUP($A23,db_LCA50!$A:$A,db_LCA50!I:I) -> 0.0163 | AC23: =_xlfn.XLOOKUP($A23,db_LCA80!$A:$A,db_LCA80!I:I) -> 0.0134 | AE23: =_xlfn.XLOOKUP($A23,db_LCA50!$A:$A,db_LCA50!L:L) -> 0.00218 | AF23: =_xlfn.XLOOKUP($A23,db_LCA80!$A:$A,db_LCA80!L:L) -> 0.00181 | AH23: =_xlfn.XLOOKUP($A23,db_LCA50!$A:$A,db_LCA50!O:O) -> 0.00744 | AI23: =_xlfn.XLOOKUP($A23,db_LCA80!$A:$A,db_LCA80!O:O) -> 0.0065 | AK23: =_xlfn.XLOOKUP($A23,db_LCA50!$A:$A,db_LCA50!R:R) -> 6.95e-05 | AL23: =_xlfn.XLOOKUP($A23,db_LCA80!$A:$A,db_LCA80!R:R) -> 5.9e-05 | AN23: =_xlfn.XLOOKUP($A23,db_LCA50!$A:$A,db_LCA50!U:U) -> 79.5 | AO23: =_xlfn.XLOOKUP($A23,db_LCA80!$A:$A,db_LCA80!U:U) -> 68.8 | AQ23: =_xlfn.XLOOKUP($A23,db_LCA50!$A:$A,db_LCA50!X:X) -> 26.3 | AR23: =_xlfn.XLOOKUP($A23,db_LCA80!$A:$A,db_LCA80!X:X) -> 22.7 | AT23: =_xlfn.XLOOKUP($A23,db_LCA50!$A:$A,db_LCA50!AA:AA) -> 1.45 | AU23: =_xlfn.XLOOKUP($A23,db_LCA80!$A:$A,db_LCA80!AA:AA) -> 0.909
A24: K15 | D24: mellem | E24: beton/cement | F24: beton/cement | H24: beton/cement | J24: beton/cement | K24: metal | L24: metal | M24: tegl | N24: beton/cement | O24: metal | P24: metal | R24: beton/cement | T24: tagpap | V24: =_xlfn.XLOOKUP(A24,db_LCA50!A:A,db_LCA50!C:C) -> 6.58 | W24: =_xlfn.XLOOKUP($A24,db_LCA80!$A:$A,db_LCA80!C:C) -> 4.8 | Y24: =_xlfn.XLOOKUP($A24,db_LCA50!$A:$A,db_LCA50!F:F) -> 1.17e-08 | Z24: =_xlfn.XLOOKUP($A24,db_LCA80!$A:$A,db_LCA80!F:F) -> 8.21e-09 | AB24: =_xlfn.XLOOKUP($A24,db_LCA50!$A:$A,db_LCA50!I:I) -> 0.0149 | AC24: =_xlfn.XLOOKUP($A24,db_LCA80!$A:$A,db_LCA80!I:I) -> 0.0112 | AE24: =_xlfn.XLOOKUP($A24,db_LCA50!$A:$A,db_LCA50!L:L) -> 0.00186 | AF24: =_xlfn.XLOOKUP($A24,db_LCA80!$A:$A,db_LCA80!L:L) -> 0.0014 | AH24: =_xlfn.XLOOKUP($A24,db_LCA50!$A:$A,db_LCA50!O:O) -> 0.00432 | AI24: =_xlfn.XLOOKUP($A24,db_LCA80!$A:$A,db_LCA80!O:O) -> 0.00327 | AK24: =_xlfn.XLOOKUP($A24,db_LCA50!$A:$A,db_LCA50!R:R) -> 7.96e-05 | AL24: =_xlfn.XLOOKUP($A24,db_LCA80!$A:$A,db_LCA80!R:R) -> 7.09e-05 | AN24: =_xlfn.XLOOKUP($A24,db_LCA50!$A:$A,db_LCA50!U:U) -> 59.2 | AO24: =_xlfn.XLOOKUP($A24,db_LCA80!$A:$A,db_LCA80!U:U) -> 46.1 | AQ24: =_xlfn.XLOOKUP($A24,db_LCA50!$A:$A,db_LCA50!X:X) -> 20.4 | AR24: =_xlfn.XLOOKUP($A24,db_LCA80!$A:$A,db_LCA80!X:X) -> 15.8 | AT24: =_xlfn.XLOOKUP($A24,db_LCA50!$A:$A,db_LCA50!AA:AA) -> 1.67 | AU24: =_xlfn.XLOOKUP($A24,db_LCA80!$A:$A,db_LCA80!AA:AA) -> 1.04
A25: K16 | D25: stor | E25: beton/cement | F25: beton/cement | H25: beton/cement | I25: metal | J25: beton/cement | L25: beton/cement | N25: beton/cement | O25: metal | P25: metal | R25: beton/cement | T25: tagpap | V25: =_xlfn.XLOOKUP(A25,db_LCA50!A:A,db_LCA50!C:C) -> 6.7 | W25: =_xlfn.XLOOKUP($A25,db_LCA80!$A:$A,db_LCA80!C:C) -> 5.56 | Y25: =_xlfn.XLOOKUP($A25,db_LCA50!$A:$A,db_LCA50!F:F) -> 9.79e-09 | Z25: =_xlfn.XLOOKUP($A25,db_LCA80!$A:$A,db_LCA80!F:F) -> 7.37e-09 | AB25: =_xlfn.XLOOKUP($A25,db_LCA50!$A:$A,db_LCA50!I:I) -> 0.0171 | AC25: =_xlfn.XLOOKUP($A25,db_LCA80!$A:$A,db_LCA80!I:I) -> 0.0153 | AE25: =_xlfn.XLOOKUP($A25,db_LCA50!$A:$A,db_LCA50!L:L) -> 0.0024 | AF25: =_xlfn.XLOOKUP($A25,db_LCA80!$A:$A,db_LCA80!L:L) -> 0.00212 | AH25: =_xlfn.XLOOKUP($A25,db_LCA50!$A:$A,db_LCA50!O:O) -> 0.00348 | AI25: =_xlfn.XLOOKUP($A25,db_LCA80!$A:$A,db_LCA80!O:O) -> 0.00305 | AK25: =_xlfn.XLOOKUP($A25,db_LCA50!$A:$A,db_LCA50!R:R) -> 9.48e-05 | AL25: =_xlfn.XLOOKUP($A25,db_LCA80!$A:$A,db_LCA80!R:R) -> 8.44e-05 | AN25: =_xlfn.XLOOKUP($A25,db_LCA50!$A:$A,db_LCA50!U:U) -> 60 | AO25: =_xlfn.XLOOKUP($A25,db_LCA80!$A:$A,db_LCA80!U:U) -> 53.4 | AQ25: =_xlfn.XLOOKUP($A25,db_LCA50!$A:$A,db_LCA50!X:X) -> 22.2 | AR25: =_xlfn.XLOOKUP($A25,db_LCA80!$A:$A,db_LCA80!X:X) -> 20.1 | AT25: =_xlfn.XLOOKUP($A25,db_LCA50!$A:$A,db_LCA50!AA:AA) -> 1.4 | AU25: =_xlfn.XLOOKUP($A25,db_LCA80!$A:$A,db_LCA80!AA:AA) -> 0.874
A26: K17 | D26: mellem | E26: beton/cement | F26: beton/cement | H26: beton/cement | J26: beton/cement | L26: tegl | N26: beton/cement | O26: metal | P26: træ | Q26: metal | R26: metal | T26: tagpap | V26: =_xlfn.XLOOKUP(A26,db_LCA50!A:A,db_LCA50!C:C) -> 6.98 | W26: =_xlfn.XLOOKUP($A26,db_LCA80!$A:$A,db_LCA80!C:C) -> 5.88 | Y26: =_xlfn.XLOOKUP($A26,db_LCA50!$A:$A,db_LCA50!F:F) -> 9.64e-09 | Z26: =_xlfn.XLOOKUP($A26,db_LCA80!$A:$A,db_LCA80!F:F) -> 7.04e-09 | AB26: =_xlfn.XLOOKUP($A26,db_LCA50!$A:$A,db_LCA50!I:I) -> 0.0159 | AC26: =_xlfn.XLOOKUP($A26,db_LCA80!$A:$A,db_LCA80!I:I) -> 0.0138 | AE26: =_xlfn.XLOOKUP($A26,db_LCA50!$A:$A,db_LCA50!L:L) -> 0.00222 | AF26: =_xlfn.XLOOKUP($A26,db_LCA80!$A:$A,db_LCA80!L:L) -> 0.00192 | AH26: =_xlfn.XLOOKUP($A26,db_LCA50!$A:$A,db_LCA50!O:O) -> 0.00565 | AI26: =_xlfn.XLOOKUP($A26,db_LCA80!$A:$A,db_LCA80!O:O) -> 0.00511 | AK26: =_xlfn.XLOOKUP($A26,db_LCA50!$A:$A,db_LCA50!R:R) -> 9.46e-05 | AL26: =_xlfn.XLOOKUP($A26,db_LCA80!$A:$A,db_LCA80!R:R) -> 8.01e-05 | AN26: =_xlfn.XLOOKUP($A26,db_LCA50!$A:$A,db_LCA50!U:U) -> 70 | AO26: =_xlfn.XLOOKUP($A26,db_LCA80!$A:$A,db_LCA80!U:U) -> 63.1 | AQ26: =_xlfn.XLOOKUP($A26,db_LCA50!$A:$A,db_LCA50!X:X) -> 26.9 | AR26: =_xlfn.XLOOKUP($A26,db_LCA80!$A:$A,db_LCA80!X:X) -> 24.5 | AT26: =_xlfn.XLOOKUP($A26,db_LCA50!$A:$A,db_LCA50!AA:AA) -> 1.36 | AU26: =_xlfn.XLOOKUP($A26,db_LCA80!$A:$A,db_LCA80!AA:AA) -> 0.856
A27: K18 | D27: mellem | E27: beton/cement | F27: beton/cement | H27: beton/cement | J27: beton/cement | K27: træ | L27: beton/cement | N27: beton/cement | P27: træ | Q27: metal | R27: beton/cement | S27: metal | T27: tagpap | V27: =_xlfn.XLOOKUP(A27,db_LCA50!A:A,db_LCA50!C:C) -> 10.3 | W27: =_xlfn.XLOOKUP($A27,db_LCA80!$A:$A,db_LCA80!C:C) -> 7.88 | Y27: =_xlfn.XLOOKUP($A27,db_LCA50!$A:$A,db_LCA50!F:F) -> 8.45e-09 | Z27: =_xlfn.XLOOKUP($A27,db_LCA80!$A:$A,db_LCA80!F:F) -> 5.42e-09 | AB27: =_xlfn.XLOOKUP($A27,db_LCA50!$A:$A,db_LCA50!I:I) -> 0.0245 | AC27: =_xlfn.XLOOKUP($A27,db_LCA80!$A:$A,db_LCA80!I:I) -> 0.0195 | AE27: =_xlfn.XLOOKUP($A27,db_LCA50!$A:$A,db_LCA50!L:L) -> 0.00304 | AF27: =_xlfn.XLOOKUP($A27,db_LCA80!$A:$A,db_LCA80!L:L) -> 0.00236 | AH27: =_xlfn.XLOOKUP($A27,db_LCA50!$A:$A,db_LCA50!O:O) -> 0.00424 | AI27: =_xlfn.XLOOKUP($A27,db_LCA80!$A:$A,db_LCA80!O:O) -> 0.00312 | AK27: =_xlfn.XLOOKUP($A27,db_LCA50!$A:$A,db_LCA50!R:R) -> 7.54e-05 | AL27: =_xlfn.XLOOKUP($A27,db_LCA80!$A:$A,db_LCA80!R:R) -> 5.82e-05 | AN27: =_xlfn.XLOOKUP($A27,db_LCA50!$A:$A,db_LCA50!U:U) -> 85.6 | AO27: =_xlfn.XLOOKUP($A27,db_LCA80!$A:$A,db_LCA80!U:U) -> 70.6 | AQ27: =_xlfn.XLOOKUP($A27,db_LCA50!$A:$A,db_LCA50!X:X) -> 31.2 | AR27: =_xlfn.XLOOKUP($A27,db_LCA80!$A:$A,db_LCA80!X:X) -> 26 | AT27: =_xlfn.XLOOKUP($A27,db_LCA50!$A:$A,db_LCA50!AA:AA) -> 2.82 | AU27: =_xlfn.XLOOKUP($A27,db_LCA80!$A:$A,db_LCA80!AA:AA) -> 1.77
A28: K19 | D28: mellem | E28: beton/cement | F28: beton/cement | H28: beton/cement | J28: beton/cement | K28: træ | L28: træ | M28: tegl | N28: beton/cement | O28: metal | P28: metal | R28: beton/cement | T28: tagpap | V28: =_xlfn.XLOOKUP(A28,db_LCA50!A:A,db_LCA50!C:C) -> 6.9 | W28: =_xlfn.XLOOKUP($A28,db_LCA80!$A:$A,db_LCA80!C:C) -> 5.3 | Y28: =_xlfn.XLOOKUP($A28,db_LCA50!$A:$A,db_LCA50!F:F) -> 3.65e-08 | Z28: =_xlfn.XLOOKUP($A28,db_LCA80!$A:$A,db_LCA80!F:F) -> 3.61e-08 | AB28: =_xlfn.XLOOKUP($A28,db_LCA50!$A:$A,db_LCA50!I:I) -> 0.016 | AC28: =_xlfn.XLOOKUP($A28,db_LCA80!$A:$A,db_LCA80!I:I) -> 0.0132 | AE28: =_xlfn.XLOOKUP($A28,db_LCA50!$A:$A,db_LCA50!L:L) -> 0.00226 | AF28: =_xlfn.XLOOKUP($A28,db_LCA80!$A:$A,db_LCA80!L:L) -> 0.00184 | AH28: =_xlfn.XLOOKUP($A28,db_LCA50!$A:$A,db_LCA50!O:O) -> 0.0032 | AI28: =_xlfn.XLOOKUP($A28,db_LCA80!$A:$A,db_LCA80!O:O) -> 0.00287 | AK28: =_xlfn.XLOOKUP($A28,db_LCA50!$A:$A,db_LCA50!R:R) -> 0.000183 | AL28: =_xlfn.XLOOKUP($A28,db_LCA80!$A:$A,db_LCA80!R:R) -> 0.000209 | AN28: =_xlfn.XLOOKUP($A28,db_LCA50!$A:$A,db_LCA50!U:U) -> 56.1 | AO28: =_xlfn.XLOOKUP($A28,db_LCA80!$A:$A,db_LCA80!U:U) -> 47.5 | AQ28: =_xlfn.XLOOKUP($A28,db_LCA50!$A:$A,db_LCA50!X:X) -> 22.7 | AR28: =_xlfn.XLOOKUP($A28,db_LCA80!$A:$A,db_LCA80!X:X) -> 20.1 | AT28: =_xlfn.XLOOKUP($A28,db_LCA50!$A:$A,db_LCA50!AA:AA) -> 2.12 | AU28: =_xlfn.XLOOKUP($A28,db_LCA80!$A:$A,db_LCA80!AA:AA) -> 1.34
A29: K20 | D29: stor | E29: beton/cement | F29: beton/cement | H29: beton/cement | J29: beton/cement | L29: beton/cement | N29: beton/cement | O29: metal | P29: træ | Q29: metal | R29: beton/cement | T29: tagpap | V29: =_xlfn.XLOOKUP(A29,db_LCA50!A:A,db_LCA50!C:C) -> 8.53 | W29: =_xlfn.XLOOKUP($A29,db_LCA80!$A:$A,db_LCA80!C:C) -> 6.86 | Y29: =_xlfn.XLOOKUP($A29,db_LCA50!$A:$A,db_LCA50!F:F) -> 1.91e-08 | Z29: =_xlfn.XLOOKUP($A29,db_LCA80!$A:$A,db_LCA80!F:F) -> 1.57e-08 | AB29: =_xlfn.XLOOKUP($A29,db_LCA50!$A:$A,db_LCA50!I:I) -> 0.0233 | AC29: =_xlfn.XLOOKUP($A29,db_LCA80!$A:$A,db_LCA80!I:I) -> 0.0203 | AE29: =_xlfn.XLOOKUP($A29,db_LCA50!$A:$A,db_LCA50!L:L) -> 0.00347 | AF29: =_xlfn.XLOOKUP($A29,db_LCA80!$A:$A,db_LCA80!L:L) -> 0.003 | AH29: =_xlfn.XLOOKUP($A29,db_LCA50!$A:$A,db_LCA50!O:O) -> 0.00278 | AI29: =_xlfn.XLOOKUP($A29,db_LCA80!$A:$A,db_LCA80!O:O) -> 0.00233 | AK29: =_xlfn.XLOOKUP($A29,db_LCA50!$A:$A,db_LCA50!R:R) -> 0.000106 | AL29: =_xlfn.XLOOKUP($A29,db_LCA80!$A:$A,db_LCA80!R:R) -> 9.28e-05 | AN29: =_xlfn.XLOOKUP($A29,db_LCA50!$A:$A,db_LCA50!U:U) -> 82.5 | AO29: =_xlfn.XLOOKUP($A29,db_LCA80!$A:$A,db_LCA80!U:U) -> 72.8 | AQ29: =_xlfn.XLOOKUP($A29,db_LCA50!$A:$A,db_LCA50!X:X) -> 27.6 | AR29: =_xlfn.XLOOKUP($A29,db_LCA80!$A:$A,db_LCA80!X:X) -> 24.3 | AT29: =_xlfn.XLOOKUP($A29,db_LCA50!$A:$A,db_LCA50!AA:AA) -> 2.21 | AU29: =_xlfn.XLOOKUP($A29,db_LCA80!$A:$A,db_LCA80!AA:AA) -> 1.41
A30: K21 | D30: stor | E30: beton/cement | F30: beton/cement | H30: beton/cement | J30: beton/cement | L30: metal | N30: beton/cement | O30: metal | P30: træ | Q30: metal | R30: beton/cement | T30: tagpap | V30: =_xlfn.XLOOKUP(A30,db_LCA50!A:A,db_LCA50!C:C) -> 6.46 | W30: =_xlfn.XLOOKUP($A30,db_LCA80!$A:$A,db_LCA80!C:C) -> 4.76 | Y30: =_xlfn.XLOOKUP($A30,db_LCA50!$A:$A,db_LCA50!F:F) -> 1.03e-08 | Z30: =_xlfn.XLOOKUP($A30,db_LCA80!$A:$A,db_LCA80!F:F) -> 6.5e-09 | AB30: =_xlfn.XLOOKUP($A30,db_LCA50!$A:$A,db_LCA50!I:I) -> 0.0148 | AC30: =_xlfn.XLOOKUP($A30,db_LCA80!$A:$A,db_LCA80!I:I) -> 0.0116 | AE30: =_xlfn.XLOOKUP($A30,db_LCA50!$A:$A,db_LCA50!L:L) -> 0.00191 | AF30: =_xlfn.XLOOKUP($A30,db_LCA80!$A:$A,db_LCA80!L:L) -> 0.00147 | AH30: =_xlfn.XLOOKUP($A30,db_LCA50!$A:$A,db_LCA50!O:O) -> 0.00294 | AI30: =_xlfn.XLOOKUP($A30,db_LCA80!$A:$A,db_LCA80!O:O) -> 0.0021 | AK30: =_xlfn.XLOOKUP($A30,db_LCA50!$A:$A,db_LCA50!R:R) -> 9.09e-05 | AL30: =_xlfn.XLOOKUP($A30,db_LCA80!$A:$A,db_LCA80!R:R) -> 7.97e-05 | AN30: =_xlfn.XLOOKUP($A30,db_LCA50!$A:$A,db_LCA50!U:U) -> 54.1 | AO30: =_xlfn.XLOOKUP($A30,db_LCA80!$A:$A,db_LCA80!U:U) -> 42.7 | AQ30: =_xlfn.XLOOKUP($A30,db_LCA50!$A:$A,db_LCA50!X:X) -> 18.7 | AR30: =_xlfn.XLOOKUP($A30,db_LCA80!$A:$A,db_LCA80!X:X) -> 14.7 | AT30: =_xlfn.XLOOKUP($A30,db_LCA50!$A:$A,db_LCA50!AA:AA) -> 1.92 | AU30: =_xlfn.XLOOKUP($A30,db_LCA80!$A:$A,db_LCA80!AA:AA) -> 1.2
A31: K22 | D31: mellem | E31: beton/cement | F31: beton/cement | H31: beton/cement | J31: beton/cement | L31: beton/cement | N31: beton/cement | P31: træ | Q31: metal | R31: metal | T31: tagpap | V31: =_xlfn.XLOOKUP(A31,db_LCA50!A:A,db_LCA50!C:C) -> 5.8 | W31: =_xlfn.XLOOKUP($A31,db_LCA80!$A:$A,db_LCA80!C:C) -> 4.6 | Y31: =_xlfn.XLOOKUP($A31,db_LCA50!$A:$A,db_LCA50!F:F) -> 8.22e-09 | Z31: =_xlfn.XLOOKUP($A31,db_LCA80!$A:$A,db_LCA80!F:F) -> 5.53e-09 | AB31: =_xlfn.XLOOKUP($A31,db_LCA50!$A:$A,db_LCA50!I:I) -> 0.0147 | AC31: =_xlfn.XLOOKUP($A31,db_LCA80!$A:$A,db_LCA80!I:I) -> 0.0124 | AE31: =_xlfn.XLOOKUP($A31,db_LCA50!$A:$A,db_LCA50!L:L) -> 0.00191 | AF31: =_xlfn.XLOOKUP($A31,db_LCA80!$A:$A,db_LCA80!L:L) -> 0.00156 | AH31: =_xlfn.XLOOKUP($A31,db_LCA50!$A:$A,db_LCA50!O:O) -> 0.00224 | AI31: =_xlfn.XLOOKUP($A31,db_LCA80!$A:$A,db_LCA80!O:O) -> 0.00164 | AK31: =_xlfn.XLOOKUP($A31,db_LCA50!$A:$A,db_LCA50!R:R) -> 0.000192 | AL31: =_xlfn.XLOOKUP($A31,db_LCA80!$A:$A,db_LCA80!R:R) -> 0.000162 | AN31: =_xlfn.XLOOKUP($A31,db_LCA50!$A:$A,db_LCA50!U:U) -> 55 | AO31: =_xlfn.XLOOKUP($A31,db_LCA80!$A:$A,db_LCA80!U:U) -> 46.7 | AQ31: =_xlfn.XLOOKUP($A31,db_LCA50!$A:$A,db_LCA50!X:X) -> 20.4 | AR31: =_xlfn.XLOOKUP($A31,db_LCA80!$A:$A,db_LCA80!X:X) -> 17.2 | AT31: =_xlfn.XLOOKUP($A31,db_LCA50!$A:$A,db_LCA50!AA:AA) -> 1.28 | AU31: =_xlfn.XLOOKUP($A31,db_LCA80!$A:$A,db_LCA80!AA:AA) -> 0.8
A32: E01 | D32: stor | E32: beton/cement | F32: beton/cement | H32: beton/cement | J32: beton/cement | L32: tegl | N32: beton/cement | O32: metal | P32: træ | Q32: metal | R32: træ | T32: tagpap | V32: =_xlfn.XLOOKUP(A32,db_LCA50!A:A,db_LCA50!C:C) -> 6.95 | W32: =_xlfn.XLOOKUP($A32,db_LCA80!$A:$A,db_LCA80!C:C) -> 5.04 | Y32: =_xlfn.XLOOKUP($A32,db_LCA50!$A:$A,db_LCA50!F:F) -> 2.27e-08 | Z32: =_xlfn.XLOOKUP($A32,db_LCA80!$A:$A,db_LCA80!F:F) -> 1.63e-08 | AB32: =_xlfn.XLOOKUP($A32,db_LCA50!$A:$A,db_LCA50!I:I) -> 0.0178 | AC32: =_xlfn.XLOOKUP($A32,db_LCA80!$A:$A,db_LCA80!I:I) -> 0.0128 | AE32: =_xlfn.XLOOKUP($A32,db_LCA50!$A:$A,db_LCA50!L:L) -> 0.00204 | AF32: =_xlfn.XLOOKUP($A32,db_LCA80!$A:$A,db_LCA80!L:L) -> 0.0015 | AH32: =_xlfn.XLOOKUP($A32,db_LCA50!$A:$A,db_LCA50!O:O) -> 0.00281 | AI32: =_xlfn.XLOOKUP($A32,db_LCA80!$A:$A,db_LCA80!O:O) -> 0.0023 | AK32: =_xlfn.XLOOKUP($A32,db_LCA50!$A:$A,db_LCA50!R:R) -> 0.00011 | AL32: =_xlfn.XLOOKUP($A32,db_LCA80!$A:$A,db_LCA80!R:R) -> 7.97e-05 | AN32: =_xlfn.XLOOKUP($A32,db_LCA50!$A:$A,db_LCA50!U:U) -> 64.3 | AO32: =_xlfn.XLOOKUP($A32,db_LCA80!$A:$A,db_LCA80!U:U) -> 48.8 | AQ32: =_xlfn.XLOOKUP($A32,db_LCA50!$A:$A,db_LCA50!X:X) -> 24.1 | AR32: =_xlfn.XLOOKUP($A32,db_LCA80!$A:$A,db_LCA80!X:X) -> 18.7 | AT32: =_xlfn.XLOOKUP($A32,db_LCA50!$A:$A,db_LCA50!AA:AA) -> 1.74 | AU32: =_xlfn.XLOOKUP($A32,db_LCA80!$A:$A,db_LCA80!AA:AA) -> 1.1
A33: E02 | D33: stor | E33: beton/cement | F33: beton/cement | H33: beton/cement | I33: træ | J33: beton/cement | L33: metal | M33: tegl | N33: beton/cement | O33: metal | P33: træ | Q33: metal | R33: beton/cement | T33: tagpap | V33: =_xlfn.XLOOKUP(A33,db_LCA50!A:A,db_LCA50!C:C) -> 7.05 | W33: =_xlfn.XLOOKUP($A33,db_LCA80!$A:$A,db_LCA80!C:C) -> 5.11 | Y33: =_xlfn.XLOOKUP($A33,db_LCA50!$A:$A,db_LCA50!F:F) -> 1.13e-08 | Z33: =_xlfn.XLOOKUP($A33,db_LCA80!$A:$A,db_LCA80!F:F) -> 7.34e-09 | AB33: =_xlfn.XLOOKUP($A33,db_LCA50!$A:$A,db_LCA50!I:I) -> 0.0155 | AC33: =_xlfn.XLOOKUP($A33,db_LCA80!$A:$A,db_LCA80!I:I) -> 0.0119 | AE33: =_xlfn.XLOOKUP($A33,db_LCA50!$A:$A,db_LCA50!L:L) -> 0.00195 | AF33: =_xlfn.XLOOKUP($A33,db_LCA80!$A:$A,db_LCA80!L:L) -> 0.00151 | AH33: =_xlfn.XLOOKUP($A33,db_LCA50!$A:$A,db_LCA50!O:O) -> 0.00441 | AI33: =_xlfn.XLOOKUP($A33,db_LCA80!$A:$A,db_LCA80!O:O) -> 0.0032 | AK33: =_xlfn.XLOOKUP($A33,db_LCA50!$A:$A,db_LCA50!R:R) -> 6.29e-05 | AL33: =_xlfn.XLOOKUP($A33,db_LCA80!$A:$A,db_LCA80!R:R) -> 5.67e-05 | AN33: =_xlfn.XLOOKUP($A33,db_LCA50!$A:$A,db_LCA50!U:U) -> 62.6 | AO33: =_xlfn.XLOOKUP($A33,db_LCA80!$A:$A,db_LCA80!U:U) -> 47.7 | AQ33: =_xlfn.XLOOKUP($A33,db_LCA50!$A:$A,db_LCA50!X:X) -> 21.9 | AR33: =_xlfn.XLOOKUP($A33,db_LCA80!$A:$A,db_LCA80!X:X) -> 16.9 | AT33: =_xlfn.XLOOKUP($A33,db_LCA50!$A:$A,db_LCA50!AA:AA) -> 1.88 | AU33: =_xlfn.XLOOKUP($A33,db_LCA80!$A:$A,db_LCA80!AA:AA) -> 1.18
A34: E03 | D34: stor | E34: beton/cement | F34: beton/cement | H34: beton/cement | J34: beton/cement | L34: tegl | N34: beton/cement | P34: træ | Q34: metal | R34: beton/cement | T34: tagpap | V34: =_xlfn.XLOOKUP(A34,db_LCA50!A:A,db_LCA50!C:C) -> 6.32 | W34: =_xlfn.XLOOKUP($A34,db_LCA80!$A:$A,db_LCA80!C:C) -> 4.8 | Y34: =_xlfn.XLOOKUP($A34,db_LCA50!$A:$A,db_LCA50!F:F) -> 1.49e-08 | Z34: =_xlfn.XLOOKUP($A34,db_LCA80!$A:$A,db_LCA80!F:F) -> 1.21e-08 | AB34: =_xlfn.XLOOKUP($A34,db_LCA50!$A:$A,db_LCA50!I:I) -> 0.0151 | AC34: =_xlfn.XLOOKUP($A34,db_LCA80!$A:$A,db_LCA80!I:I) -> 0.0126 | AE34: =_xlfn.XLOOKUP($A34,db_LCA50!$A:$A,db_LCA50!L:L) -> 0.0021 | AF34: =_xlfn.XLOOKUP($A34,db_LCA80!$A:$A,db_LCA80!L:L) -> 0.00171 | AH34: =_xlfn.XLOOKUP($A34,db_LCA50!$A:$A,db_LCA50!O:O) -> 0.00252 | AI34: =_xlfn.XLOOKUP($A34,db_LCA80!$A:$A,db_LCA80!O:O) -> 0.00226 | AK34: =_xlfn.XLOOKUP($A34,db_LCA50!$A:$A,db_LCA50!R:R) -> 7.22e-05 | AL34: =_xlfn.XLOOKUP($A34,db_LCA80!$A:$A,db_LCA80!R:R) -> 6.16e-05 | AN34: =_xlfn.XLOOKUP($A34,db_LCA50!$A:$A,db_LCA50!U:U) -> 50.4 | AO34: =_xlfn.XLOOKUP($A34,db_LCA80!$A:$A,db_LCA80!U:U) -> 41.9 | AQ34: =_xlfn.XLOOKUP($A34,db_LCA50!$A:$A,db_LCA50!X:X) -> 17.3 | AR34: =_xlfn.XLOOKUP($A34,db_LCA80!$A:$A,db_LCA80!X:X) -> 14.6 | AT34: =_xlfn.XLOOKUP($A34,db_LCA50!$A:$A,db_LCA50!AA:AA) -> 2.08 | AU34: =_xlfn.XLOOKUP($A34,db_LCA80!$A:$A,db_LCA80!AA:AA) -> 1.32
A35: E04 | D35: stor | E35: beton/cement | F35: beton/cement | H35: beton/cement | J35: beton/cement | L35: tegl | N35: beton/cement | O35: metal | P35: træ | Q35: metal | R35: beton/cement | T35: beton/cement | V35: =_xlfn.XLOOKUP(A35,db_LCA50!A:A,db_LCA50!C:C) -> 7.03 | W35: =_xlfn.XLOOKUP($A35,db_LCA80!$A:$A,db_LCA80!C:C) -> 5.52 | Y35: =_xlfn.XLOOKUP($A35,db_LCA50!$A:$A,db_LCA50!F:F) -> 1.25e-08 | Z35: =_xlfn.XLOOKUP($A35,db_LCA80!$A:$A,db_LCA80!F:F) -> 8.48e-09 | AB35: =_xlfn.XLOOKUP($A35,db_LCA50!$A:$A,db_LCA50!I:I) -> 0.0188 | AC35: =_xlfn.XLOOKUP($A35,db_LCA80!$A:$A,db_LCA80!I:I) -> 0.0164 | AE35: =_xlfn.XLOOKUP($A35,db_LCA50!$A:$A,db_LCA50!L:L) -> 0.00253 | AF35: =_xlfn.XLOOKUP($A35,db_LCA80!$A:$A,db_LCA80!L:L) -> 0.00215 | AH35: =_xlfn.XLOOKUP($A35,db_LCA50!$A:$A,db_LCA50!O:O) -> 0.00208 | AI35: =_xlfn.XLOOKUP($A35,db_LCA80!$A:$A,db_LCA80!O:O) -> 0.00187 | AK35: =_xlfn.XLOOKUP($A35,db_LCA50!$A:$A,db_LCA50!R:R) -> 7.99e-05 | AL35: =_xlfn.XLOOKUP($A35,db_LCA80!$A:$A,db_LCA80!R:R) -> 7.17e-05 | AN35: =_xlfn.XLOOKUP($A35,db_LCA50!$A:$A,db_LCA50!U:U) -> 58.1 | AO35: =_xlfn.XLOOKUP($A35,db_LCA80!$A:$A,db_LCA80!U:U) -> 49.5 | AQ35: =_xlfn.XLOOKUP($A35,db_LCA50!$A:$A,db_LCA50!X:X) -> 22.8 | AR35: =_xlfn.XLOOKUP($A35,db_LCA80!$A:$A,db_LCA80!X:X) -> 20.1 | AT35: =_xlfn.XLOOKUP($A35,db_LCA50!$A:$A,db_LCA50!AA:AA) -> 2.02 | AU35: =_xlfn.XLOOKUP($A35,db_LCA80!$A:$A,db_LCA80!AA:AA) -> 1.28
A36: E05 | D36: mellem | E36: beton/cement | F36: beton/cement | H36: beton/cement | J36: beton/cement | L36: beton/cement | M36: træ | N36: beton/cement | P36: træ | Q36: metal | R36: beton/cement | T36: tagpap | V36: =_xlfn.XLOOKUP(A36,db_LCA50!A:A,db_LCA50!C:C) -> 8.8 | W36: =_xlfn.XLOOKUP($A36,db_LCA80!$A:$A,db_LCA80!C:C) -> 7.15 | Y36: =_xlfn.XLOOKUP($A36,db_LCA50!$A:$A,db_LCA50!F:F) -> 2.19e-08 | Z36: =_xlfn.XLOOKUP($A36,db_LCA80!$A:$A,db_LCA80!F:F) -> 1.47e-08 | AB36: =_xlfn.XLOOKUP($A36,db_LCA50!$A:$A,db_LCA50!I:I) -> 0.0177 | AC36: =_xlfn.XLOOKUP($A36,db_LCA80!$A:$A,db_LCA80!I:I) -> 0.0151 | AE36: =_xlfn.XLOOKUP($A36,db_LCA50!$A:$A,db_LCA50!L:L) -> 0.00246 | AF36: =_xlfn.XLOOKUP($A36,db_LCA80!$A:$A,db_LCA80!L:L) -> 0.00202 | AH36: =_xlfn.XLOOKUP($A36,db_LCA50!$A:$A,db_LCA50!O:O) -> 0.00358 | AI36: =_xlfn.XLOOKUP($A36,db_LCA80!$A:$A,db_LCA80!O:O) -> 0.00275 | AK36: =_xlfn.XLOOKUP($A36,db_LCA50!$A:$A,db_LCA50!R:R) -> 0.000134 | AL36: =_xlfn.XLOOKUP($A36,db_LCA80!$A:$A,db_LCA80!R:R) -> 0.000112 | AN36: =_xlfn.XLOOKUP($A36,db_LCA50!$A:$A,db_LCA50!U:U) -> 71.2 | AO36: =_xlfn.XLOOKUP($A36,db_LCA80!$A:$A,db_LCA80!U:U) -> 64.5 | AQ36: =_xlfn.XLOOKUP($A36,db_LCA50!$A:$A,db_LCA50!X:X) -> 25.5 | AR36: =_xlfn.XLOOKUP($A36,db_LCA80!$A:$A,db_LCA80!X:X) -> 23 | AT36: =_xlfn.XLOOKUP($A36,db_LCA50!$A:$A,db_LCA50!AA:AA) -> 2.8 | AU36: =_xlfn.XLOOKUP($A36,db_LCA80!$A:$A,db_LCA80!AA:AA) -> 1.76
A37: E06 | D37: mellem | E37: beton/cement | F37: beton/cement | H37: beton/cement | J37: beton/cement | L37: træ | N37: beton/cement | P37: træ | Q37: metal | R37: beton/cement | T37: tagpap | V37: =_xlfn.XLOOKUP(A37,db_LCA50!A:A,db_LCA50!C:C) -> 9.17 | W37: =_xlfn.XLOOKUP($A37,db_LCA80!$A:$A,db_LCA80!C:C) -> 7.33 | Y37: =_xlfn.XLOOKUP($A37,db_LCA50!$A:$A,db_LCA50!F:F) -> 4.92e-09 | Z37: =_xlfn.XLOOKUP($A37,db_LCA80!$A:$A,db_LCA80!F:F) -> 3.14e-09 | AB37: =_xlfn.XLOOKUP($A37,db_LCA50!$A:$A,db_LCA50!I:I) -> 0.0219 | AC37: =_xlfn.XLOOKUP($A37,db_LCA80!$A:$A,db_LCA80!I:I) -> 0.0177 | AE37: =_xlfn.XLOOKUP($A37,db_LCA50!$A:$A,db_LCA50!L:L) -> 0.00265 | AF37: =_xlfn.XLOOKUP($A37,db_LCA80!$A:$A,db_LCA80!L:L) -> 0.00208 | AH37: =_xlfn.XLOOKUP($A37,db_LCA50!$A:$A,db_LCA50!O:O) -> 0.00224 | AI37: =_xlfn.XLOOKUP($A37,db_LCA80!$A:$A,db_LCA80!O:O) -> 0.00184 | AK37: =_xlfn.XLOOKUP($A37,db_LCA50!$A:$A,db_LCA50!R:R) -> 0.000596 | AL37: =_xlfn.XLOOKUP($A37,db_LCA80!$A:$A,db_LCA80!R:R) -> 0.000394 | AN37: =_xlfn.XLOOKUP($A37,db_LCA50!$A:$A,db_LCA50!U:U) -> 89.5 | AO37: =_xlfn.XLOOKUP($A37,db_LCA80!$A:$A,db_LCA80!U:U) -> 75 | AQ37: =_xlfn.XLOOKUP($A37,db_LCA50!$A:$A,db_LCA50!X:X) -> 33.2 | AR37: =_xlfn.XLOOKUP($A37,db_LCA80!$A:$A,db_LCA80!X:X) -> 26.8 | AT37: =_xlfn.XLOOKUP($A37,db_LCA50!$A:$A,db_LCA50!AA:AA) -> 1.41 | AU37: =_xlfn.XLOOKUP($A37,db_LCA80!$A:$A,db_LCA80!AA:AA) -> 0.892
A38: E07 | D38: mellem | E38: beton/cement | F38: beton/cement | H38: træ | J38: træ | L38: træ | N38: træ | P38: træ | R38: træ | T38: metal | V38: =_xlfn.XLOOKUP(A38,db_LCA50!A:A,db_LCA50!C:C) -> 5.14 | W38: =_xlfn.XLOOKUP($A38,db_LCA80!$A:$A,db_LCA80!C:C) -> 3.8 | Y38: =_xlfn.XLOOKUP($A38,db_LCA50!$A:$A,db_LCA50!F:F) -> 1.07e-07 | Z38: =_xlfn.XLOOKUP($A38,db_LCA80!$A:$A,db_LCA80!F:F) -> 7.38e-08 | AB38: =_xlfn.XLOOKUP($A38,db_LCA50!$A:$A,db_LCA50!I:I) -> 0.0157 | AC38: =_xlfn.XLOOKUP($A38,db_LCA80!$A:$A,db_LCA80!I:I) -> 0.012 | AE38: =_xlfn.XLOOKUP($A38,db_LCA50!$A:$A,db_LCA50!L:L) -> 0.00236 | AF38: =_xlfn.XLOOKUP($A38,db_LCA80!$A:$A,db_LCA80!L:L) -> 0.00176 | AH38: =_xlfn.XLOOKUP($A38,db_LCA50!$A:$A,db_LCA50!O:O) -> 0.00213 | AI38: =_xlfn.XLOOKUP($A38,db_LCA80!$A:$A,db_LCA80!O:O) -> 0.00166 | AK38: =_xlfn.XLOOKUP($A38,db_LCA50!$A:$A,db_LCA50!R:R) -> 0.000162 | AL38: =_xlfn.XLOOKUP($A38,db_LCA80!$A:$A,db_LCA80!R:R) -> 0.000114 | AN38: =_xlfn.XLOOKUP($A38,db_LCA50!$A:$A,db_LCA50!U:U) -> 58.4 | AO38: =_xlfn.XLOOKUP($A38,db_LCA80!$A:$A,db_LCA80!U:U) -> 47.3 | AQ38: =_xlfn.XLOOKUP($A38,db_LCA50!$A:$A,db_LCA50!X:X) -> 36.6 | AR38: =_xlfn.XLOOKUP($A38,db_LCA80!$A:$A,db_LCA80!X:X) -> 28.4 | AT38: =_xlfn.XLOOKUP($A38,db_LCA50!$A:$A,db_LCA50!AA:AA) -> 0.695 | AU38: =_xlfn.XLOOKUP($A38,db_LCA80!$A:$A,db_LCA80!AA:AA) -> 0.441
A39: E08 | D39: mellem | E39: beton/cement | F39: beton/cement | H39: beton/cement | J39: beton/cement | L39: tegl | N39: metal | P39: træ | Q39: metal | R39: beton/cement | S39: metal | T39: tagpap | V39: =_xlfn.XLOOKUP(A39,db_LCA50!A:A,db_LCA50!C:C) -> 8.61 | W39: =_xlfn.XLOOKUP($A39,db_LCA80!$A:$A,db_LCA80!C:C) -> 6.85 | Y39: =_xlfn.XLOOKUP($A39,db_LCA50!$A:$A,db_LCA50!F:F) -> 1.15e-08 | Z39: =_xlfn.XLOOKUP($A39,db_LCA80!$A:$A,db_LCA80!F:F) -> 7.95e-09 | AB39: =_xlfn.XLOOKUP($A39,db_LCA50!$A:$A,db_LCA50!I:I) -> 0.0206 | AC39: =_xlfn.XLOOKUP($A39,db_LCA80!$A:$A,db_LCA80!I:I) -> 0.0166 | AE39: =_xlfn.XLOOKUP($A39,db_LCA50!$A:$A,db_LCA50!L:L) -> 0.00238 | AF39: =_xlfn.XLOOKUP($A39,db_LCA80!$A:$A,db_LCA80!L:L) -> 0.00188 | AH39: =_xlfn.XLOOKUP($A39,db_LCA50!$A:$A,db_LCA50!O:O) -> 0.00609 | AI39: =_xlfn.XLOOKUP($A39,db_LCA80!$A:$A,db_LCA80!O:O) -> 0.00506 | AK39: =_xlfn.XLOOKUP($A39,db_LCA50!$A:$A,db_LCA50!R:R) -> 0.000236 | AL39: =_xlfn.XLOOKUP($A39,db_LCA80!$A:$A,db_LCA80!R:R) -> 0.000181 | AN39: =_xlfn.XLOOKUP($A39,db_LCA50!$A:$A,db_LCA50!U:U) -> 84.2 | AO39: =_xlfn.XLOOKUP($A39,db_LCA80!$A:$A,db_LCA80!U:U) -> 72 | AQ39: =_xlfn.XLOOKUP($A39,db_LCA50!$A:$A,db_LCA50!X:X) -> 29.4 | AR39: =_xlfn.XLOOKUP($A39,db_LCA80!$A:$A,db_LCA80!X:X) -> 25.6 | AT39: =_xlfn.XLOOKUP($A39,db_LCA50!$A:$A,db_LCA50!AA:AA) -> 1.76 | AU39: =_xlfn.XLOOKUP($A39,db_LCA80!$A:$A,db_LCA80!AA:AA) -> 1.1
A40: E09 | D40: stor | E40: beton/cement | F40: beton/cement | H40: beton/cement | J40: beton/cement | L40: tegl | N40: beton/cement | P40: træ | Q40: metal | R40: beton/cement | T40: tagpap | V40: =_xlfn.XLOOKUP(A40,db_LCA50!A:A,db_LCA50!C:C) -> 6.64 | W40: =_xlfn.XLOOKUP($A40,db_LCA80!$A:$A,db_LCA80!C:C) -> 5.04 | Y40: =_xlfn.XLOOKUP($A40,db_LCA50!$A:$A,db_LCA50!F:F) -> 9.67e-09 | Z40: =_xlfn.XLOOKUP($A40,db_LCA80!$A:$A,db_LCA80!F:F) -> 6.79e-09 | AB40: =_xlfn.XLOOKUP($A40,db_LCA50!$A:$A,db_LCA50!I:I) -> 0.0147 | AC40: =_xlfn.XLOOKUP($A40,db_LCA80!$A:$A,db_LCA80!I:I) -> 0.0112 | AE40: =_xlfn.XLOOKUP($A40,db_LCA50!$A:$A,db_LCA50!L:L) -> 0.00191 | AF40: =_xlfn.XLOOKUP($A40,db_LCA80!$A:$A,db_LCA80!L:L) -> 0.00144 | AH40: =_xlfn.XLOOKUP($A40,db_LCA50!$A:$A,db_LCA50!O:O) -> 0.00331 | AI40: =_xlfn.XLOOKUP($A40,db_LCA80!$A:$A,db_LCA80!O:O) -> 0.00236 | AK40: =_xlfn.XLOOKUP($A40,db_LCA50!$A:$A,db_LCA50!R:R) -> 7.85e-05 | AL40: =_xlfn.XLOOKUP($A40,db_LCA80!$A:$A,db_LCA80!R:R) -> 6.67e-05 | AN40: =_xlfn.XLOOKUP($A40,db_LCA50!$A:$A,db_LCA50!U:U) -> 63.3 | AO40: =_xlfn.XLOOKUP($A40,db_LCA80!$A:$A,db_LCA80!U:U) -> 50.9 | AQ40: =_xlfn.XLOOKUP($A40,db_LCA50!$A:$A,db_LCA50!X:X) -> 21.2 | AR40: =_xlfn.XLOOKUP($A40,db_LCA80!$A:$A,db_LCA80!X:X) -> 17.2 | AT40: =_xlfn.XLOOKUP($A40,db_LCA50!$A:$A,db_LCA50!AA:AA) -> 1.43 | AU40: =_xlfn.XLOOKUP($A40,db_LCA80!$A:$A,db_LCA80!AA:AA) -> 0.895
A41: E10 | D41: mellem | E41: beton/cement | F41: beton/cement | H41: beton/cement | J41: beton/cement | L41: tegl | N41: beton/cement | P41: metal | R41: beton/cement | T41: tagpap | V41: =_xlfn.XLOOKUP(A41,db_LCA50!A:A,db_LCA50!C:C) -> 7.97 | W41: =_xlfn.XLOOKUP($A41,db_LCA80!$A:$A,db_LCA80!C:C) -> 6.26 | Y41: =_xlfn.XLOOKUP($A41,db_LCA50!$A:$A,db_LCA50!F:F) -> 2.47e-08 | Z41: =_xlfn.XLOOKUP($A41,db_LCA80!$A:$A,db_LCA80!F:F) -> 1.72e-08 | AB41: =_xlfn.XLOOKUP($A41,db_LCA50!$A:$A,db_LCA50!I:I) -> 0.0169 | AC41: =_xlfn.XLOOKUP($A41,db_LCA80!$A:$A,db_LCA80!I:I) -> 0.0138 | AE41: =_xlfn.XLOOKUP($A41,db_LCA50!$A:$A,db_LCA50!L:L) -> 0.00227 | AF41: =_xlfn.XLOOKUP($A41,db_LCA80!$A:$A,db_LCA80!L:L) -> 0.00177 | AH41: =_xlfn.XLOOKUP($A41,db_LCA50!$A:$A,db_LCA50!O:O) -> 0.0024 | AI41: =_xlfn.XLOOKUP($A41,db_LCA80!$A:$A,db_LCA80!O:O) -> 0.00179 | AK41: =_xlfn.XLOOKUP($A41,db_LCA50!$A:$A,db_LCA50!R:R) -> 6.64e-05 | AL41: =_xlfn.XLOOKUP($A41,db_LCA80!$A:$A,db_LCA80!R:R) -> 6.66e-05 | AN41: =_xlfn.XLOOKUP($A41,db_LCA50!$A:$A,db_LCA50!U:U) -> 66.8 | AO41: =_xlfn.XLOOKUP($A41,db_LCA80!$A:$A,db_LCA80!U:U) -> 58.6 | AQ41: =_xlfn.XLOOKUP($A41,db_LCA50!$A:$A,db_LCA50!X:X) -> 24.1 | AR41: =_xlfn.XLOOKUP($A41,db_LCA80!$A:$A,db_LCA80!X:X) -> 20.8 | AT41: =_xlfn.XLOOKUP($A41,db_LCA50!$A:$A,db_LCA50!AA:AA) -> 2.37 | AU41: =_xlfn.XLOOKUP($A41,db_LCA80!$A:$A,db_LCA80!AA:AA) -> 1.48
A42: E11 | D42: mellem | E42: beton/cement | F42: beton/cement | H42: beton/cement | J42: beton/cement | L42: metal | N42: beton/cement | P42: metal | R42: beton/cement | T42: tagpap | V42: =_xlfn.XLOOKUP(A42,db_LCA50!A:A,db_LCA50!C:C) -> 8.77 | W42: =_xlfn.XLOOKUP($A42,db_LCA80!$A:$A,db_LCA80!C:C) -> 6.33 | Y42: =_xlfn.XLOOKUP($A42,db_LCA50!$A:$A,db_LCA50!F:F) -> 5.06e-08 | Z42: =_xlfn.XLOOKUP($A42,db_LCA80!$A:$A,db_LCA80!F:F) -> 5.32e-08 | AB42: =_xlfn.XLOOKUP($A42,db_LCA50!$A:$A,db_LCA50!I:I) -> 0.0221 | AC42: =_xlfn.XLOOKUP($A42,db_LCA80!$A:$A,db_LCA80!I:I) -> 0.0168 | AE42: =_xlfn.XLOOKUP($A42,db_LCA50!$A:$A,db_LCA50!L:L) -> 0.00257 | AF42: =_xlfn.XLOOKUP($A42,db_LCA80!$A:$A,db_LCA80!L:L) -> 0.00197 | AH42: =_xlfn.XLOOKUP($A42,db_LCA50!$A:$A,db_LCA50!O:O) -> 0.00301 | AI42: =_xlfn.XLOOKUP($A42,db_LCA80!$A:$A,db_LCA80!O:O) -> 0.00217 | AK42: =_xlfn.XLOOKUP($A42,db_LCA50!$A:$A,db_LCA50!R:R) -> 5.76e-05 | AL42: =_xlfn.XLOOKUP($A42,db_LCA80!$A:$A,db_LCA80!R:R) -> 4.81e-05 | AN42: =_xlfn.XLOOKUP($A42,db_LCA50!$A:$A,db_LCA50!U:U) -> 89 | AO42: =_xlfn.XLOOKUP($A42,db_LCA80!$A:$A,db_LCA80!U:U) -> 65.9 | AQ42: =_xlfn.XLOOKUP($A42,db_LCA50!$A:$A,db_LCA50!X:X) -> 32.5 | AR42: =_xlfn.XLOOKUP($A42,db_LCA80!$A:$A,db_LCA80!X:X) -> 24.2 | AT42: =_xlfn.XLOOKUP($A42,db_LCA50!$A:$A,db_LCA50!AA:AA) -> 1.93 | AU42: =_xlfn.XLOOKUP($A42,db_LCA80!$A:$A,db_LCA80!AA:AA) -> 1.69
A43: Enf01 | D43: lille | E43: beton/cement | F43: beton/cement | H43: træ | J43: beton/cement | L43: beton/cement | M43: træ | N43: metal | P43: træ | Q43: metal | R43: metal | T43: tagpap | V43: =_xlfn.XLOOKUP(A43,db_LCA50!A:A,db_LCA50!C:C) -> 6.16 | W43: =_xlfn.XLOOKUP($A43,db_LCA80!$A:$A,db_LCA80!C:C) -> 4.95 | Y43: =_xlfn.XLOOKUP($A43,db_LCA50!$A:$A,db_LCA50!F:F) -> 3.82e-08 | Z43: =_xlfn.XLOOKUP($A43,db_LCA80!$A:$A,db_LCA80!F:F) -> 2.6e-08 | AB43: =_xlfn.XLOOKUP($A43,db_LCA50!$A:$A,db_LCA50!I:I) -> 0.0183 | AC43: =_xlfn.XLOOKUP($A43,db_LCA80!$A:$A,db_LCA80!I:I) -> 0.0145 | AE43: =_xlfn.XLOOKUP($A43,db_LCA50!$A:$A,db_LCA50!L:L) -> 0.00216 | AF43: =_xlfn.XLOOKUP($A43,db_LCA80!$A:$A,db_LCA80!L:L) -> 0.00177 | AH43: =_xlfn.XLOOKUP($A43,db_LCA50!$A:$A,db_LCA50!O:O) -> 0.00324 | AI43: =_xlfn.XLOOKUP($A43,db_LCA80!$A:$A,db_LCA80!O:O) -> 0.00234 | AK43: =_xlfn.XLOOKUP($A43,db_LCA50!$A:$A,db_LCA50!R:R) -> 6.79e-05 | AL43: =_xlfn.XLOOKUP($A43,db_LCA80!$A:$A,db_LCA80!R:R) -> 5.19e-05 | AN43: =_xlfn.XLOOKUP($A43,db_LCA50!$A:$A,db_LCA50!U:U) -> 59.6 | AO43: =_xlfn.XLOOKUP($A43,db_LCA80!$A:$A,db_LCA80!U:U) -> 50.4 | AQ43: =_xlfn.XLOOKUP($A43,db_LCA50!$A:$A,db_LCA50!X:X) -> 24.7 | AR43: =_xlfn.XLOOKUP($A43,db_LCA80!$A:$A,db_LCA80!X:X) -> 19.9 | AT43: =_xlfn.XLOOKUP($A43,db_LCA50!$A:$A,db_LCA50!AA:AA) -> 0.781 | AU43: =_xlfn.XLOOKUP($A43,db_LCA80!$A:$A,db_LCA80!AA:AA) -> 0.504
A44: Enf02 | D44: lille | E44: beton/cement | F44: beton/cement | J44: beton/cement | L44: tegl | N44: tegl | P44: træ | Q44: metal | R44: træ | T44: tegl | V44: =_xlfn.XLOOKUP(A44,db_LCA50!A:A,db_LCA50!C:C) -> 7.1 | W44: =_xlfn.XLOOKUP($A44,db_LCA80!$A:$A,db_LCA80!C:C) -> 5.19 | Y44: =_xlfn.XLOOKUP($A44,db_LCA50!$A:$A,db_LCA50!F:F) -> 5.16e-08 | Z44: =_xlfn.XLOOKUP($A44,db_LCA80!$A:$A,db_LCA80!F:F) -> 3.23e-08 | AB44: =_xlfn.XLOOKUP($A44,db_LCA50!$A:$A,db_LCA50!I:I) -> 0.0174 | AC44: =_xlfn.XLOOKUP($A44,db_LCA80!$A:$A,db_LCA80!I:I) -> 0.0128 | AE44: =_xlfn.XLOOKUP($A44,db_LCA50!$A:$A,db_LCA50!L:L) -> 0.00235 | AF44: =_xlfn.XLOOKUP($A44,db_LCA80!$A:$A,db_LCA80!L:L) -> 0.00174 | AH44: =_xlfn.XLOOKUP($A44,db_LCA50!$A:$A,db_LCA50!O:O) -> 0.00446 | AI44: =_xlfn.XLOOKUP($A44,db_LCA80!$A:$A,db_LCA80!O:O) -> 0.00296 | AK44: =_xlfn.XLOOKUP($A44,db_LCA50!$A:$A,db_LCA50!R:R) -> 5.34e-05 | AL44: =_xlfn.XLOOKUP($A44,db_LCA80!$A:$A,db_LCA80!R:R) -> 5.39e-05 | AN44: =_xlfn.XLOOKUP($A44,db_LCA50!$A:$A,db_LCA50!U:U) -> 82.1 | AO44: =_xlfn.XLOOKUP($A44,db_LCA80!$A:$A,db_LCA80!U:U) -> 61.1 | AQ44: =_xlfn.XLOOKUP($A44,db_LCA50!$A:$A,db_LCA50!X:X) -> 34.1 | AR44: =_xlfn.XLOOKUP($A44,db_LCA80!$A:$A,db_LCA80!X:X) -> 24.4 | AT44: =_xlfn.XLOOKUP($A44,db_LCA50!$A:$A,db_LCA50!AA:AA) -> 0.794 | AU44: =_xlfn.XLOOKUP($A44,db_LCA80!$A:$A,db_LCA80!AA:AA) -> 0.496
A45: Enf03 | D45: lille | E45: beton/cement | F45: træ | H45: træ | J45: træ | L45: træ | N45: træ | P45: træ | R45: træ | T45: beton/cement | V45: =_xlfn.XLOOKUP(A45,db_LCA50!A:A,db_LCA50!C:C) -> 5.79 | W45: =_xlfn.XLOOKUP($A45,db_LCA80!$A:$A,db_LCA80!C:C) -> 4.56 | Y45: =_xlfn.XLOOKUP($A45,db_LCA50!$A:$A,db_LCA50!F:F) -> 8.87e-08 | Z45: =_xlfn.XLOOKUP($A45,db_LCA80!$A:$A,db_LCA80!F:F) -> 7.65e-08 | AB45: =_xlfn.XLOOKUP($A45,db_LCA50!$A:$A,db_LCA50!I:I) -> 0.0254 | AC45: =_xlfn.XLOOKUP($A45,db_LCA80!$A:$A,db_LCA80!I:I) -> 0.0195 | AE45: =_xlfn.XLOOKUP($A45,db_LCA50!$A:$A,db_LCA50!L:L) -> 0.00356 | AF45: =_xlfn.XLOOKUP($A45,db_LCA80!$A:$A,db_LCA80!L:L) -> 0.00284 | AH45: =_xlfn.XLOOKUP($A45,db_LCA50!$A:$A,db_LCA50!O:O) -> 0.000889 | AI45: =_xlfn.XLOOKUP($A45,db_LCA80!$A:$A,db_LCA80!O:O) -> 0.000959 | AK45: =_xlfn.XLOOKUP($A45,db_LCA50!$A:$A,db_LCA50!R:R) -> 0.000302 | AL45: =_xlfn.XLOOKUP($A45,db_LCA80!$A:$A,db_LCA80!R:R) -> 0.000202 | AN45: =_xlfn.XLOOKUP($A45,db_LCA50!$A:$A,db_LCA50!U:U) -> 72.1 | AO45: =_xlfn.XLOOKUP($A45,db_LCA80!$A:$A,db_LCA80!U:U) -> 56.3 | AQ45: =_xlfn.XLOOKUP($A45,db_LCA50!$A:$A,db_LCA50!X:X) -> 36.9 | AR45: =_xlfn.XLOOKUP($A45,db_LCA80!$A:$A,db_LCA80!X:X) -> 29.9 | AT45: =_xlfn.XLOOKUP($A45,db_LCA50!$A:$A,db_LCA50!AA:AA) -> 0.182 | AU45: =_xlfn.XLOOKUP($A45,db_LCA80!$A:$A,db_LCA80!AA:AA) -> 0.121
A46: Enf04 | D46: lille | E46: beton/cement | F46: beton/cement | J46: beton/cement | K46: træ | L46: træ | M46: tegl | N46: beton/cement | O46: tegl | P46: træ | Q46: metal | R46: træ | T46: tagpap | V46: =_xlfn.XLOOKUP(A46,db_LCA50!A:A,db_LCA50!C:C) -> 7.4 | W46: =_xlfn.XLOOKUP($A46,db_LCA80!$A:$A,db_LCA80!C:C) -> 6.26 | Y46: =_xlfn.XLOOKUP($A46,db_LCA50!$A:$A,db_LCA50!F:F) -> 4.38e-08 | Z46: =_xlfn.XLOOKUP($A46,db_LCA80!$A:$A,db_LCA80!F:F) -> 4.38e-08 | AB46: =_xlfn.XLOOKUP($A46,db_LCA50!$A:$A,db_LCA50!I:I) -> 0.0158 | AC46: =_xlfn.XLOOKUP($A46,db_LCA80!$A:$A,db_LCA80!I:I) -> 0.0127 | AE46: =_xlfn.XLOOKUP($A46,db_LCA50!$A:$A,db_LCA50!L:L) -> 0.00221 | AF46: =_xlfn.XLOOKUP($A46,db_LCA80!$A:$A,db_LCA80!L:L) -> 0.00182 | AH46: =_xlfn.XLOOKUP($A46,db_LCA50!$A:$A,db_LCA50!O:O) -> 0.00535 | AI46: =_xlfn.XLOOKUP($A46,db_LCA80!$A:$A,db_LCA80!O:O) -> 0.00369 | AK46: =_xlfn.XLOOKUP($A46,db_LCA50!$A:$A,db_LCA50!R:R) -> 9.71e-05 | AL46: =_xlfn.XLOOKUP($A46,db_LCA80!$A:$A,db_LCA80!R:R) -> 6.88e-05 | AN46: =_xlfn.XLOOKUP($A46,db_LCA50!$A:$A,db_LCA50!U:U) -> 80.3 | AO46: =_xlfn.XLOOKUP($A46,db_LCA80!$A:$A,db_LCA80!U:U) -> 67.9 | AQ46: =_xlfn.XLOOKUP($A46,db_LCA50!$A:$A,db_LCA50!X:X) -> 33.1 | AR46: =_xlfn.XLOOKUP($A46,db_LCA80!$A:$A,db_LCA80!X:X) -> 28.7 | AT46: =_xlfn.XLOOKUP($A46,db_LCA50!$A:$A,db_LCA50!AA:AA) -> 0.688 | AU46: =_xlfn.XLOOKUP($A46,db_LCA80!$A:$A,db_LCA80!AA:AA) -> 0.43
A47: Enf05 | D47: lille | E47: beton/cement | F47: træ | J47: træ | L47: træ | N47: træ | P47: træ | R47: træ | T47: metal | V47: =_xlfn.XLOOKUP(A47,db_LCA50!A:A,db_LCA50!C:C) -> 3.67 | W47: =_xlfn.XLOOKUP($A47,db_LCA80!$A:$A,db_LCA80!C:C) -> 3.11 | Y47: =_xlfn.XLOOKUP($A47,db_LCA50!$A:$A,db_LCA50!F:F) -> 1.13e-07 | Z47: =_xlfn.XLOOKUP($A47,db_LCA80!$A:$A,db_LCA80!F:F) -> 7.15e-08 | AB47: =_xlfn.XLOOKUP($A47,db_LCA50!$A:$A,db_LCA50!I:I) -> 0.0135 | AC47: =_xlfn.XLOOKUP($A47,db_LCA80!$A:$A,db_LCA80!I:I) -> 0.0111 | AE47: =_xlfn.XLOOKUP($A47,db_LCA50!$A:$A,db_LCA50!L:L) -> 0.00224 | AF47: =_xlfn.XLOOKUP($A47,db_LCA80!$A:$A,db_LCA80!L:L) -> 0.00172 | AH47: =_xlfn.XLOOKUP($A47,db_LCA50!$A:$A,db_LCA50!O:O) -> 0.00184 | AI47: =_xlfn.XLOOKUP($A47,db_LCA80!$A:$A,db_LCA80!O:O) -> 0.0015 | AK47: =_xlfn.XLOOKUP($A47,db_LCA50!$A:$A,db_LCA50!R:R) -> 8.54e-05 | AL47: =_xlfn.XLOOKUP($A47,db_LCA80!$A:$A,db_LCA80!R:R) -> 7.19e-05 | AN47: =_xlfn.XLOOKUP($A47,db_LCA50!$A:$A,db_LCA50!U:U) -> 41.5 | AO47: =_xlfn.XLOOKUP($A47,db_LCA80!$A:$A,db_LCA80!U:U) -> 35.8 | AQ47: =_xlfn.XLOOKUP($A47,db_LCA50!$A:$A,db_LCA50!X:X) -> 34.1 | AR47: =_xlfn.XLOOKUP($A47,db_LCA80!$A:$A,db_LCA80!X:X) -> 25 | AT47: =_xlfn.XLOOKUP($A47,db_LCA50!$A:$A,db_LCA50!AA:AA) -> 0.323 | AU47: =_xlfn.XLOOKUP($A47,db_LCA80!$A:$A,db_LCA80!AA:AA) -> 0.227
A48: Enf06 | D48: lille | E48: beton/cement | F48: beton/cement | J48: beton/cement | L48: tegl | N48: beton/cement | O48: træ | P48: træ | R48: træ | T48: tegl | V48: =_xlfn.XLOOKUP(A48,db_LCA50!A:A,db_LCA50!C:C) -> 7.98 | W48: =_xlfn.XLOOKUP($A48,db_LCA80!$A:$A,db_LCA80!C:C) -> 5.82 | Y48: =_xlfn.XLOOKUP($A48,db_LCA50!$A:$A,db_LCA50!F:F) -> 4.51e-08 | Z48: =_xlfn.XLOOKUP($A48,db_LCA80!$A:$A,db_LCA80!F:F) -> 4.36e-08 | AB48: =_xlfn.XLOOKUP($A48,db_LCA50!$A:$A,db_LCA50!I:I) -> 0.0193 | AC48: =_xlfn.XLOOKUP($A48,db_LCA80!$A:$A,db_LCA80!I:I) -> 0.0153 | AE48: =_xlfn.XLOOKUP($A48,db_LCA50!$A:$A,db_LCA50!L:L) -> 0.00271 | AF48: =_xlfn.XLOOKUP($A48,db_LCA80!$A:$A,db_LCA80!L:L) -> 0.00217 | AH48: =_xlfn.XLOOKUP($A48,db_LCA50!$A:$A,db_LCA50!O:O) -> 0.0051 | AI48: =_xlfn.XLOOKUP($A48,db_LCA80!$A:$A,db_LCA80!O:O) -> 0.00356 | AK48: =_xlfn.XLOOKUP($A48,db_LCA50!$A:$A,db_LCA50!R:R) -> 5.09e-05 | AL48: =_xlfn.XLOOKUP($A48,db_LCA80!$A:$A,db_LCA80!R:R) -> 4.45e-05 | AN48: =_xlfn.XLOOKUP($A48,db_LCA50!$A:$A,db_LCA50!U:U) -> 91.4 | AO48: =_xlfn.XLOOKUP($A48,db_LCA80!$A:$A,db_LCA80!U:U) -> 66.5 | AQ48: =_xlfn.XLOOKUP($A48,db_LCA50!$A:$A,db_LCA50!X:X) -> 35 | AR48: =_xlfn.XLOOKUP($A48,db_LCA80!$A:$A,db_LCA80!X:X) -> 26.8 | AT48: =_xlfn.XLOOKUP($A48,db_LCA50!$A:$A,db_LCA50!AA:AA) -> 0.659 | AU48: =_xlfn.XLOOKUP($A48,db_LCA80!$A:$A,db_LCA80!AA:AA) -> 0.456
A49: Enf07 | D49: lille | E49: beton/cement | F49: beton/cement | J49: beton/cement | L49: beton/cement | N49: metal | P49: træ | Q49: metal | R49: træ | T49: tagpap | V49: =_xlfn.XLOOKUP(A49,db_LCA50!A:A,db_LCA50!C:C) -> 7.62 | W49: =_xlfn.XLOOKUP($A49,db_LCA80!$A:$A,db_LCA80!C:C) -> 6.61 | Y49: =_xlfn.XLOOKUP($A49,db_LCA50!$A:$A,db_LCA50!F:F) -> 1.07e-07 | Z49: =_xlfn.XLOOKUP($A49,db_LCA80!$A:$A,db_LCA80!F:F) -> 1.22e-07 | AB49: =_xlfn.XLOOKUP($A49,db_LCA50!$A:$A,db_LCA50!I:I) -> 0.0148 | AC49: =_xlfn.XLOOKUP($A49,db_LCA80!$A:$A,db_LCA80!I:I) -> 0.0129 | AE49: =_xlfn.XLOOKUP($A49,db_LCA50!$A:$A,db_LCA50!L:L) -> 0.00195 | AF49: =_xlfn.XLOOKUP($A49,db_LCA80!$A:$A,db_LCA80!L:L) -> 0.00166 | AH49: =_xlfn.XLOOKUP($A49,db_LCA50!$A:$A,db_LCA50!O:O) -> 0.00698 | AI49: =_xlfn.XLOOKUP($A49,db_LCA80!$A:$A,db_LCA80!O:O) -> 0.00525 | AK49: =_xlfn.XLOOKUP($A49,db_LCA50!$A:$A,db_LCA50!R:R) -> 6.8e-05 | AL49: =_xlfn.XLOOKUP($A49,db_LCA80!$A:$A,db_LCA80!R:R) -> 6.37e-05 | AN49: =_xlfn.XLOOKUP($A49,db_LCA50!$A:$A,db_LCA50!U:U) -> 87.3 | AO49: =_xlfn.XLOOKUP($A49,db_LCA80!$A:$A,db_LCA80!U:U) -> 80.9 | AQ49: =_xlfn.XLOOKUP($A49,db_LCA50!$A:$A,db_LCA50!X:X) -> 38.6 | AR49: =_xlfn.XLOOKUP($A49,db_LCA80!$A:$A,db_LCA80!X:X) -> 37.8 | AT49: =_xlfn.XLOOKUP($A49,db_LCA50!$A:$A,db_LCA50!AA:AA) -> 1.06 | AU49: =_xlfn.XLOOKUP($A49,db_LCA80!$A:$A,db_LCA80!AA:AA) -> 0.674
A50: Enf08 | D50: lille | E50: beton/cement | F50: beton/cement | J50: beton/cement | L50: træ | N50: træ | P50: træ | Q50: metal | R50: træ | T50: tagpap | V50: =_xlfn.XLOOKUP(A50,db_LCA50!A:A,db_LCA50!C:C) -> 9.36 | W50: =_xlfn.XLOOKUP($A50,db_LCA80!$A:$A,db_LCA80!C:C) -> 8.54 | Y50: =_xlfn.XLOOKUP($A50,db_LCA50!$A:$A,db_LCA50!F:F) -> 1.85e-07 | Z50: =_xlfn.XLOOKUP($A50,db_LCA80!$A:$A,db_LCA80!F:F) -> 1.99e-07 | AB50: =_xlfn.XLOOKUP($A50,db_LCA50!$A:$A,db_LCA50!I:I) -> 0.0254 | AC50: =_xlfn.XLOOKUP($A50,db_LCA80!$A:$A,db_LCA80!I:I) -> 0.0244 | AE50: =_xlfn.XLOOKUP($A50,db_LCA50!$A:$A,db_LCA50!L:L) -> 0.00334 | AF50: =_xlfn.XLOOKUP($A50,db_LCA80!$A:$A,db_LCA80!L:L) -> 0.00312 | AH50: =_xlfn.XLOOKUP($A50,db_LCA50!$A:$A,db_LCA50!O:O) -> 0.00768 | AI50: =_xlfn.XLOOKUP($A50,db_LCA80!$A:$A,db_LCA80!O:O) -> 0.00606 | AK50: =_xlfn.XLOOKUP($A50,db_LCA50!$A:$A,db_LCA50!R:R) -> 5.4e-05 | AL50: =_xlfn.XLOOKUP($A50,db_LCA80!$A:$A,db_LCA80!R:R) -> 5.19e-05 | AN50: =_xlfn.XLOOKUP($A50,db_LCA50!$A:$A,db_LCA50!U:U) -> 99.1 | AO50: =_xlfn.XLOOKUP($A50,db_LCA80!$A:$A,db_LCA80!U:U) -> 93.4 | AQ50: =_xlfn.XLOOKUP($A50,db_LCA50!$A:$A,db_LCA50!X:X) -> 41.1 | AR50: =_xlfn.XLOOKUP($A50,db_LCA80!$A:$A,db_LCA80!X:X) -> 36.8 | AT50: =_xlfn.XLOOKUP($A50,db_LCA50!$A:$A,db_LCA50!AA:AA) -> 1.01 | AU50: =_xlfn.XLOOKUP($A50,db_LCA80!$A:$A,db_LCA80!AA:AA) -> 0.639
A51: Enf09 | D51: lille | E51: beton/cement | F51: beton/cement | J51: træ | L51: træ | N51: træ | P51: træ | R51: træ | T51: tegl | V51: =_xlfn.XLOOKUP(A51,db_LCA50!A:A,db_LCA50!C:C) -> 6.6 | W51: =_xlfn.XLOOKUP($A51,db_LCA80!$A:$A,db_LCA80!C:C) -> 5.53 | Y51: =_xlfn.XLOOKUP($A51,db_LCA50!$A:$A,db_LCA50!F:F) -> 7.98e-08 | Z51: =_xlfn.XLOOKUP($A51,db_LCA80!$A:$A,db_LCA80!F:F) -> 5.21e-08 | AB51: =_xlfn.XLOOKUP($A51,db_LCA50!$A:$A,db_LCA50!I:I) -> 0.0173 | AC51: =_xlfn.XLOOKUP($A51,db_LCA80!$A:$A,db_LCA80!I:I) -> 0.0149 | AE51: =_xlfn.XLOOKUP($A51,db_LCA50!$A:$A,db_LCA50!L:L) -> 0.00269 | AF51: =_xlfn.XLOOKUP($A51,db_LCA80!$A:$A,db_LCA80!L:L) -> 0.00227 | AH51: =_xlfn.XLOOKUP($A51,db_LCA50!$A:$A,db_LCA50!O:O) -> 0.00444 | AI51: =_xlfn.XLOOKUP($A51,db_LCA80!$A:$A,db_LCA80!O:O) -> 0.00317 | AK51: =_xlfn.XLOOKUP($A51,db_LCA50!$A:$A,db_LCA50!R:R) -> 5.11e-05 | AL51: =_xlfn.XLOOKUP($A51,db_LCA80!$A:$A,db_LCA80!R:R) -> 4.26e-05 | AN51: =_xlfn.XLOOKUP($A51,db_LCA50!$A:$A,db_LCA50!U:U) -> 74.6 | AO51: =_xlfn.XLOOKUP($A51,db_LCA80!$A:$A,db_LCA80!U:U) -> 63.8 | AQ51: =_xlfn.XLOOKUP($A51,db_LCA50!$A:$A,db_LCA50!X:X) -> 38.2 | AR51: =_xlfn.XLOOKUP($A51,db_LCA80!$A:$A,db_LCA80!X:X) -> 30.5 | AT51: =_xlfn.XLOOKUP($A51,db_LCA50!$A:$A,db_LCA50!AA:AA) -> 0.567 | AU51: =_xlfn.XLOOKUP($A51,db_LCA80!$A:$A,db_LCA80!AA:AA) -> 0.36
A52: Enf10 | D52: lille | E52: beton/cement | F52: beton/cement | J52: beton/cement | L52: tegl | N52: beton/cement | P52: træ | Q52: metal | R52: træ | T52: tegl | V52: =_xlfn.XLOOKUP(A52,db_LCA50!A:A,db_LCA50!C:C) -> 8.52 | W52: =_xlfn.XLOOKUP($A52,db_LCA80!$A:$A,db_LCA80!C:C) -> 6.76 | Y52: =_xlfn.XLOOKUP($A52,db_LCA50!$A:$A,db_LCA50!F:F) -> 1.31e-07 | Z52: =_xlfn.XLOOKUP($A52,db_LCA80!$A:$A,db_LCA80!F:F) -> 1.48e-07 | AB52: =_xlfn.XLOOKUP($A52,db_LCA50!$A:$A,db_LCA50!I:I) -> 0.0209 | AC52: =_xlfn.XLOOKUP($A52,db_LCA80!$A:$A,db_LCA80!I:I) -> 0.018 | AE52: =_xlfn.XLOOKUP($A52,db_LCA50!$A:$A,db_LCA50!L:L) -> 0.00284 | AF52: =_xlfn.XLOOKUP($A52,db_LCA80!$A:$A,db_LCA80!L:L) -> 0.00246 | AH52: =_xlfn.XLOOKUP($A52,db_LCA50!$A:$A,db_LCA50!O:O) -> 0.0065 | AI52: =_xlfn.XLOOKUP($A52,db_LCA80!$A:$A,db_LCA80!O:O) -> 0.00482 | AK52: =_xlfn.XLOOKUP($A52,db_LCA50!$A:$A,db_LCA50!R:R) -> 4.89e-05 | AL52: =_xlfn.XLOOKUP($A52,db_LCA80!$A:$A,db_LCA80!R:R) -> 4.29e-05 | AN52: =_xlfn.XLOOKUP($A52,db_LCA50!$A:$A,db_LCA50!U:U) -> 94.9 | AO52: =_xlfn.XLOOKUP($A52,db_LCA80!$A:$A,db_LCA80!U:U) -> 76.7 | AQ52: =_xlfn.XLOOKUP($A52,db_LCA50!$A:$A,db_LCA50!X:X) -> 35.3 | AR52: =_xlfn.XLOOKUP($A52,db_LCA80!$A:$A,db_LCA80!X:X) -> 29.1 | AT52: =_xlfn.XLOOKUP($A52,db_LCA50!$A:$A,db_LCA50!AA:AA) -> 1.02 | AU52: =_xlfn.XLOOKUP($A52,db_LCA80!$A:$A,db_LCA80!AA:AA) -> 0.647
A53: Enf11 | D53: lille | E53: beton/cement | F53: beton/cement | J53: beton/cement | L53: træ | M53: tegl | N53: beton/cement | P53: træ | Q53: metal | R53: træ | T53: beton/cement | V53: =_xlfn.XLOOKUP(A53,db_LCA50!A:A,db_LCA50!C:C) -> 9.12 | W53: =_xlfn.XLOOKUP($A53,db_LCA80!$A:$A,db_LCA80!C:C) -> 7.3 | Y53: =_xlfn.XLOOKUP($A53,db_LCA50!$A:$A,db_LCA50!F:F) -> 1.18e-07 | Z53: =_xlfn.XLOOKUP($A53,db_LCA80!$A:$A,db_LCA80!F:F) -> 1.12e-07 | AB53: =_xlfn.XLOOKUP($A53,db_LCA50!$A:$A,db_LCA50!I:I) -> 0.0241 | AC53: =_xlfn.XLOOKUP($A53,db_LCA80!$A:$A,db_LCA80!I:I) -> 0.0203 | AE53: =_xlfn.XLOOKUP($A53,db_LCA50!$A:$A,db_LCA50!L:L) -> 0.00316 | AF53: =_xlfn.XLOOKUP($A53,db_LCA80!$A:$A,db_LCA80!L:L) -> 0.00257 | AH53: =_xlfn.XLOOKUP($A53,db_LCA50!$A:$A,db_LCA50!O:O) -> 0.00711 | AI53: =_xlfn.XLOOKUP($A53,db_LCA80!$A:$A,db_LCA80!O:O) -> 0.0055 | AK53: =_xlfn.XLOOKUP($A53,db_LCA50!$A:$A,db_LCA50!R:R) -> 0.000244 | AL53: =_xlfn.XLOOKUP($A53,db_LCA80!$A:$A,db_LCA80!R:R) -> 0.000224 | AN53: =_xlfn.XLOOKUP($A53,db_LCA50!$A:$A,db_LCA50!U:U) -> 97.1 | AO53: =_xlfn.XLOOKUP($A53,db_LCA80!$A:$A,db_LCA80!U:U) -> 80 | AQ53: =_xlfn.XLOOKUP($A53,db_LCA50!$A:$A,db_LCA50!X:X) -> 46.4 | AR53: =_xlfn.XLOOKUP($A53,db_LCA80!$A:$A,db_LCA80!X:X) -> 38 | AT53: =_xlfn.XLOOKUP($A53,db_LCA50!$A:$A,db_LCA50!AA:AA) -> 1.06 | AU53: =_xlfn.XLOOKUP($A53,db_LCA80!$A:$A,db_LCA80!AA:AA) -> 0.666
A54: R01 | D54: lille | E54: beton/cement | F54: beton/cement | H54: beton/cement | J54: beton/cement | L54: tegl | N54: beton/cement | P54: træ | Q54: metal | R54: træ | T54: tagpap | V54: =_xlfn.XLOOKUP(A54,db_LCA50!A:A,db_LCA50!C:C) -> 8.17 | W54: =_xlfn.XLOOKUP($A54,db_LCA80!$A:$A,db_LCA80!C:C) -> 6.47 | Y54: =_xlfn.XLOOKUP($A54,db_LCA50!$A:$A,db_LCA50!F:F) -> 1.33e-08 | Z54: =_xlfn.XLOOKUP($A54,db_LCA80!$A:$A,db_LCA80!F:F) -> 8.67e-09 | AB54: =_xlfn.XLOOKUP($A54,db_LCA50!$A:$A,db_LCA50!I:I) -> 0.0298 | AC54: =_xlfn.XLOOKUP($A54,db_LCA80!$A:$A,db_LCA80!I:I) -> 0.0224 | AE54: =_xlfn.XLOOKUP($A54,db_LCA50!$A:$A,db_LCA50!L:L) -> 0.00286 | AF54: =_xlfn.XLOOKUP($A54,db_LCA80!$A:$A,db_LCA80!L:L) -> 0.00225 | AH54: =_xlfn.XLOOKUP($A54,db_LCA50!$A:$A,db_LCA50!O:O) -> 0.00409 | AI54: =_xlfn.XLOOKUP($A54,db_LCA80!$A:$A,db_LCA80!O:O) -> 0.00313 | AK54: =_xlfn.XLOOKUP($A54,db_LCA50!$A:$A,db_LCA50!R:R) -> 0.000149 | AL54: =_xlfn.XLOOKUP($A54,db_LCA80!$A:$A,db_LCA80!R:R) -> 0.000136 | AN54: =_xlfn.XLOOKUP($A54,db_LCA50!$A:$A,db_LCA50!U:U) -> 84.3 | AO54: =_xlfn.XLOOKUP($A54,db_LCA80!$A:$A,db_LCA80!U:U) -> 70.2 | AQ54: =_xlfn.XLOOKUP($A54,db_LCA50!$A:$A,db_LCA50!X:X) -> 32.2 | AR54: =_xlfn.XLOOKUP($A54,db_LCA80!$A:$A,db_LCA80!X:X) -> 27.3 | AT54: =_xlfn.XLOOKUP($A54,db_LCA50!$A:$A,db_LCA50!AA:AA) -> 0.774 | AU54: =_xlfn.XLOOKUP($A54,db_LCA80!$A:$A,db_LCA80!AA:AA) -> 0.488
A55: R02 | D55: lille | E55: beton/cement | F55: beton/cement | H55: træ | J55: træ | L55: træ | N55: træ | P55: metal | R55: træ | T55: tagpap | V55: =_xlfn.XLOOKUP(A55,db_LCA50!A:A,db_LCA50!C:C) -> 7.44 | W55: =_xlfn.XLOOKUP($A55,db_LCA80!$A:$A,db_LCA80!C:C) -> 6.37 | Y55: =_xlfn.XLOOKUP($A55,db_LCA50!$A:$A,db_LCA50!F:F) -> 3.53e-08 | Z55: =_xlfn.XLOOKUP($A55,db_LCA80!$A:$A,db_LCA80!F:F) -> 2.26e-08 | AB55: =_xlfn.XLOOKUP($A55,db_LCA50!$A:$A,db_LCA50!I:I) -> 0.0255 | AC55: =_xlfn.XLOOKUP($A55,db_LCA80!$A:$A,db_LCA80!I:I) -> 0.0218 | AE55: =_xlfn.XLOOKUP($A55,db_LCA50!$A:$A,db_LCA50!L:L) -> 0.00312 | AF55: =_xlfn.XLOOKUP($A55,db_LCA80!$A:$A,db_LCA80!L:L) -> 0.00265 | AH55: =_xlfn.XLOOKUP($A55,db_LCA50!$A:$A,db_LCA50!O:O) -> 0.00434 | AI55: =_xlfn.XLOOKUP($A55,db_LCA80!$A:$A,db_LCA80!O:O) -> 0.00333 | AK55: =_xlfn.XLOOKUP($A55,db_LCA50!$A:$A,db_LCA50!R:R) -> 0.000271 | AL55: =_xlfn.XLOOKUP($A55,db_LCA80!$A:$A,db_LCA80!R:R) -> 0.000225 | AN55: =_xlfn.XLOOKUP($A55,db_LCA50!$A:$A,db_LCA50!U:U) -> 82.4 | AO55: =_xlfn.XLOOKUP($A55,db_LCA80!$A:$A,db_LCA80!U:U) -> 71.7 | AQ55: =_xlfn.XLOOKUP($A55,db_LCA50!$A:$A,db_LCA50!X:X) -> 36.3 | AR55: =_xlfn.XLOOKUP($A55,db_LCA80!$A:$A,db_LCA80!X:X) -> 29.7 | AT55: =_xlfn.XLOOKUP($A55,db_LCA50!$A:$A,db_LCA50!AA:AA) -> 0.455 | AU55: =_xlfn.XLOOKUP($A55,db_LCA80!$A:$A,db_LCA80!AA:AA) -> 0.306
A56: R03 | D56: lille | E56: beton/cement | F56: beton/cement | H56: træ | J56: beton/cement | L56: beton/cement | M56: træ | N56: beton/cement | O56: træ | P56: metal | R56: træ | T56: tagpap | V56: =_xlfn.XLOOKUP(A56,db_LCA50!A:A,db_LCA50!C:C) -> 8.11 | W56: =_xlfn.XLOOKUP($A56,db_LCA80!$A:$A,db_LCA80!C:C) -> 6.72 | Y56: =_xlfn.XLOOKUP($A56,db_LCA50!$A:$A,db_LCA50!F:F) -> 9.74e-09 | Z56: =_xlfn.XLOOKUP($A56,db_LCA80!$A:$A,db_LCA80!F:F) -> 6.89e-09 | AB56: =_xlfn.XLOOKUP($A56,db_LCA50!$A:$A,db_LCA50!I:I) -> 0.0244 | AC56: =_xlfn.XLOOKUP($A56,db_LCA80!$A:$A,db_LCA80!I:I) -> 0.0198 | AE56: =_xlfn.XLOOKUP($A56,db_LCA50!$A:$A,db_LCA50!L:L) -> 0.00242 | AF56: =_xlfn.XLOOKUP($A56,db_LCA80!$A:$A,db_LCA80!L:L) -> 0.00193 | AH56: =_xlfn.XLOOKUP($A56,db_LCA50!$A:$A,db_LCA50!O:O) -> 0.0053 | AI56: =_xlfn.XLOOKUP($A56,db_LCA80!$A:$A,db_LCA80!O:O) -> 0.00373 | AK56: =_xlfn.XLOOKUP($A56,db_LCA50!$A:$A,db_LCA50!R:R) -> 0.000229 | AL56: =_xlfn.XLOOKUP($A56,db_LCA80!$A:$A,db_LCA80!R:R) -> 0.000186 | AN56: =_xlfn.XLOOKUP($A56,db_LCA50!$A:$A,db_LCA50!U:U) -> 94.5 | AO56: =_xlfn.XLOOKUP($A56,db_LCA80!$A:$A,db_LCA80!U:U) -> 80.3 | AQ56: =_xlfn.XLOOKUP($A56,db_LCA50!$A:$A,db_LCA50!X:X) -> 33.1 | AR56: =_xlfn.XLOOKUP($A56,db_LCA80!$A:$A,db_LCA80!X:X) -> 27.8 | AT56: =_xlfn.XLOOKUP($A56,db_LCA50!$A:$A,db_LCA50!AA:AA) -> 0.759 | AU56: =_xlfn.XLOOKUP($A56,db_LCA80!$A:$A,db_LCA80!AA:AA) -> 0.478
A57: R04 | D57: lille | E57: beton/cement | F57: beton/cement | J57: beton/cement | K57: træ | L57: træ | M57: tegl | N57: beton/cement | O57: metal | P57: træ | Q57: metal | R57: beton/cement | S57: metal | T57: tagpap | V57: =_xlfn.XLOOKUP(A57,db_LCA50!A:A,db_LCA50!C:C) -> 10.8 | W57: =_xlfn.XLOOKUP($A57,db_LCA80!$A:$A,db_LCA80!C:C) -> 9.06 | Y57: =_xlfn.XLOOKUP($A57,db_LCA50!$A:$A,db_LCA50!F:F) -> 1.4e-08 | Z57: =_xlfn.XLOOKUP($A57,db_LCA80!$A:$A,db_LCA80!F:F) -> 1.35e-08 | AB57: =_xlfn.XLOOKUP($A57,db_LCA50!$A:$A,db_LCA50!I:I) -> 0.0313 | AC57: =_xlfn.XLOOKUP($A57,db_LCA80!$A:$A,db_LCA80!I:I) -> 0.0247 | AE57: =_xlfn.XLOOKUP($A57,db_LCA50!$A:$A,db_LCA50!L:L) -> 0.00301 | AF57: =_xlfn.XLOOKUP($A57,db_LCA80!$A:$A,db_LCA80!L:L) -> 0.00248 | AH57: =_xlfn.XLOOKUP($A57,db_LCA50!$A:$A,db_LCA50!O:O) -> 0.00664 | AI57: =_xlfn.XLOOKUP($A57,db_LCA80!$A:$A,db_LCA80!O:O) -> 0.00524 | AK57: =_xlfn.XLOOKUP($A57,db_LCA50!$A:$A,db_LCA50!R:R) -> 0.000169 | AL57: =_xlfn.XLOOKUP($A57,db_LCA80!$A:$A,db_LCA80!R:R) -> 0.000166 | AN57: =_xlfn.XLOOKUP($A57,db_LCA50!$A:$A,db_LCA50!U:U) -> 109 | AO57: =_xlfn.XLOOKUP($A57,db_LCA80!$A:$A,db_LCA80!U:U) -> 96.7 | AQ57: =_xlfn.XLOOKUP($A57,db_LCA50!$A:$A,db_LCA50!X:X) -> 39.2 | AR57: =_xlfn.XLOOKUP($A57,db_LCA80!$A:$A,db_LCA80!X:X) -> 35.5 | AT57: =_xlfn.XLOOKUP($A57,db_LCA50!$A:$A,db_LCA50!AA:AA) -> 1.61 | AU57: =_xlfn.XLOOKUP($A57,db_LCA80!$A:$A,db_LCA80!AA:AA) -> 1.05
A58: R05 | D58: lille | E58: beton/cement | F58: beton/cement | J58: beton/cement | L58: træ | M58: tegl | N58: beton/cement | O58: metal | P58: træ | Q58: metal | R58: beton/cement | S58: metal | T58: tagpap | V58: =_xlfn.XLOOKUP(A58,db_LCA50!A:A,db_LCA50!C:C) -> 10.8 | W58: =_xlfn.XLOOKUP($A58,db_LCA80!$A:$A,db_LCA80!C:C) -> 9.5 | Y58: =_xlfn.XLOOKUP($A58,db_LCA50!$A:$A,db_LCA50!F:F) -> 1.76e-08 | Z58: =_xlfn.XLOOKUP($A58,db_LCA80!$A:$A,db_LCA80!F:F) -> 1.53e-08 | AB58: =_xlfn.XLOOKUP($A58,db_LCA50!$A:$A,db_LCA50!I:I) -> 0.03 | AC58: =_xlfn.XLOOKUP($A58,db_LCA80!$A:$A,db_LCA80!I:I) -> 0.0242 | AE58: =_xlfn.XLOOKUP($A58,db_LCA50!$A:$A,db_LCA50!L:L) -> 0.00292 | AF58: =_xlfn.XLOOKUP($A58,db_LCA80!$A:$A,db_LCA80!L:L) -> 0.00247 | AH58: =_xlfn.XLOOKUP($A58,db_LCA50!$A:$A,db_LCA50!O:O) -> 0.00758 | AI58: =_xlfn.XLOOKUP($A58,db_LCA80!$A:$A,db_LCA80!O:O) -> 0.00714 | AK58: =_xlfn.XLOOKUP($A58,db_LCA50!$A:$A,db_LCA50!R:R) -> 0.00018 | AL58: =_xlfn.XLOOKUP($A58,db_LCA80!$A:$A,db_LCA80!R:R) -> 0.000184 | AN58: =_xlfn.XLOOKUP($A58,db_LCA50!$A:$A,db_LCA50!U:U) -> 119 | AO58: =_xlfn.XLOOKUP($A58,db_LCA80!$A:$A,db_LCA80!U:U) -> 111 | AQ58: =_xlfn.XLOOKUP($A58,db_LCA50!$A:$A,db_LCA50!X:X) -> 45.8 | AR58: =_xlfn.XLOOKUP($A58,db_LCA80!$A:$A,db_LCA80!X:X) -> 43.5 | AT58: =_xlfn.XLOOKUP($A58,db_LCA50!$A:$A,db_LCA50!AA:AA) -> 1.28 | AU58: =_xlfn.XLOOKUP($A58,db_LCA80!$A:$A,db_LCA80!AA:AA) -> 0.838
A59: R06 | D59: lille | E59: beton/cement | F59: beton/cement | J59: træ | L59: træ | N59: træ | O59: metal | P59: træ | Q59: metal | R59: træ | T59: tagpap | V59: =_xlfn.XLOOKUP(A59,db_LCA50!A:A,db_LCA50!C:C) -> 4.42 | W59: =_xlfn.XLOOKUP($A59,db_LCA80!$A:$A,db_LCA80!C:C) -> 3.6 | Y59: =_xlfn.XLOOKUP($A59,db_LCA50!$A:$A,db_LCA50!F:F) -> 4.59e-08 | Z59: =_xlfn.XLOOKUP($A59,db_LCA80!$A:$A,db_LCA80!F:F) -> 2.88e-08 | AB59: =_xlfn.XLOOKUP($A59,db_LCA50!$A:$A,db_LCA50!I:I) -> 0.0113 | AC59: =_xlfn.XLOOKUP($A59,db_LCA80!$A:$A,db_LCA80!I:I) -> 0.00918 | AE59: =_xlfn.XLOOKUP($A59,db_LCA50!$A:$A,db_LCA50!L:L) -> 0.0017 | AF59: =_xlfn.XLOOKUP($A59,db_LCA80!$A:$A,db_LCA80!L:L) -> 0.00135 | AH59: =_xlfn.XLOOKUP($A59,db_LCA50!$A:$A,db_LCA50!O:O) -> 0.00342 | AI59: =_xlfn.XLOOKUP($A59,db_LCA80!$A:$A,db_LCA80!O:O) -> 0.00255 | AK59: =_xlfn.XLOOKUP($A59,db_LCA50!$A:$A,db_LCA50!R:R) -> 0.000163 | AL59: =_xlfn.XLOOKUP($A59,db_LCA80!$A:$A,db_LCA80!R:R) -> 0.000112 | AN59: =_xlfn.XLOOKUP($A59,db_LCA50!$A:$A,db_LCA50!U:U) -> 45.2 | AO59: =_xlfn.XLOOKUP($A59,db_LCA80!$A:$A,db_LCA80!U:U) -> 38 | AQ59: =_xlfn.XLOOKUP($A59,db_LCA50!$A:$A,db_LCA50!X:X) -> 28.7 | AR59: =_xlfn.XLOOKUP($A59,db_LCA80!$A:$A,db_LCA80!X:X) -> 24 | AT59: =_xlfn.XLOOKUP($A59,db_LCA50!$A:$A,db_LCA50!AA:AA) -> 0.569 | AU59: =_xlfn.XLOOKUP($A59,db_LCA80!$A:$A,db_LCA80!AA:AA) -> 0.357
A60: R07 | D60: lille | E60: beton/cement | F60: beton/cement | J60: træ | L60: træ | N60: træ | P60: træ | Q60: metal | R60: træ | T60: tagpap | V60: =_xlfn.XLOOKUP(A60,db_LCA50!A:A,db_LCA50!C:C) -> 5.8 | W60: =_xlfn.XLOOKUP($A60,db_LCA80!$A:$A,db_LCA80!C:C) -> 5.42 | Y60: =_xlfn.XLOOKUP($A60,db_LCA50!$A:$A,db_LCA50!F:F) -> 3.64e-08 | Z60: =_xlfn.XLOOKUP($A60,db_LCA80!$A:$A,db_LCA80!F:F) -> 2.77e-08 | AB60: =_xlfn.XLOOKUP($A60,db_LCA50!$A:$A,db_LCA50!I:I) -> 0.0137 | AC60: =_xlfn.XLOOKUP($A60,db_LCA80!$A:$A,db_LCA80!I:I) -> 0.0125 | AE60: =_xlfn.XLOOKUP($A60,db_LCA50!$A:$A,db_LCA50!L:L) -> 0.00198 | AF60: =_xlfn.XLOOKUP($A60,db_LCA80!$A:$A,db_LCA80!L:L) -> 0.00184 | AH60: =_xlfn.XLOOKUP($A60,db_LCA50!$A:$A,db_LCA50!O:O) -> 0.00531 | AI60: =_xlfn.XLOOKUP($A60,db_LCA80!$A:$A,db_LCA80!O:O) -> 0.00375 | AK60: =_xlfn.XLOOKUP($A60,db_LCA50!$A:$A,db_LCA50!R:R) -> 5.09e-05 | AL60: =_xlfn.XLOOKUP($A60,db_LCA80!$A:$A,db_LCA80!R:R) -> 4.48e-05 | AN60: =_xlfn.XLOOKUP($A60,db_LCA50!$A:$A,db_LCA50!U:U) -> 72.6 | AO60: =_xlfn.XLOOKUP($A60,db_LCA80!$A:$A,db_LCA80!U:U) -> 68.4 | AQ60: =_xlfn.XLOOKUP($A60,db_LCA50!$A:$A,db_LCA50!X:X) -> 28.6 | AR60: =_xlfn.XLOOKUP($A60,db_LCA80!$A:$A,db_LCA80!X:X) -> 26.1 | AT60: =_xlfn.XLOOKUP($A60,db_LCA50!$A:$A,db_LCA50!AA:AA) -> 0.228 | AU60: =_xlfn.XLOOKUP($A60,db_LCA80!$A:$A,db_LCA80!AA:AA) -> 0.151
A61: R08 | D61: lille | E61: beton/cement | F61: beton/cement | H61: beton/cement | J61: beton/cement | L61: tegl | N61: beton/cement | O61: træ | P61: træ | Q61: metal | R61: beton/cement | S61: træ | T61: tagpap | V61: =_xlfn.XLOOKUP(A61,db_LCA50!A:A,db_LCA50!C:C) -> 7.39 | W61: =_xlfn.XLOOKUP($A61,db_LCA80!$A:$A,db_LCA80!C:C) -> 5.79 | Y61: =_xlfn.XLOOKUP($A61,db_LCA50!$A:$A,db_LCA50!F:F) -> 8.64e-08 | Z61: =_xlfn.XLOOKUP($A61,db_LCA80!$A:$A,db_LCA80!F:F) -> 9.47e-08 | AB61: =_xlfn.XLOOKUP($A61,db_LCA50!$A:$A,db_LCA50!I:I) -> 0.0167 | AC61: =_xlfn.XLOOKUP($A61,db_LCA80!$A:$A,db_LCA80!I:I) -> 0.0135 | AE61: =_xlfn.XLOOKUP($A61,db_LCA50!$A:$A,db_LCA50!L:L) -> 0.00217 | AF61: =_xlfn.XLOOKUP($A61,db_LCA80!$A:$A,db_LCA80!L:L) -> 0.0017 | AH61: =_xlfn.XLOOKUP($A61,db_LCA50!$A:$A,db_LCA50!O:O) -> 0.00392 | AI61: =_xlfn.XLOOKUP($A61,db_LCA80!$A:$A,db_LCA80!O:O) -> 0.00293 | AK61: =_xlfn.XLOOKUP($A61,db_LCA50!$A:$A,db_LCA50!R:R) -> 7.1e-05 | AL61: =_xlfn.XLOOKUP($A61,db_LCA80!$A:$A,db_LCA80!R:R) -> 6.4e-05 | AN61: =_xlfn.XLOOKUP($A61,db_LCA50!$A:$A,db_LCA50!U:U) -> 72.5 | AO61: =_xlfn.XLOOKUP($A61,db_LCA80!$A:$A,db_LCA80!U:U) -> 59.4 | AQ61: =_xlfn.XLOOKUP($A61,db_LCA50!$A:$A,db_LCA50!X:X) -> 27.4 | AR61: =_xlfn.XLOOKUP($A61,db_LCA80!$A:$A,db_LCA80!X:X) -> 22.4 | AT61: =_xlfn.XLOOKUP($A61,db_LCA50!$A:$A,db_LCA50!AA:AA) -> 1.53 | AU61: =_xlfn.XLOOKUP($A61,db_LCA80!$A:$A,db_LCA80!AA:AA) -> 0.954
A62: R09 | D62: lille | E62: beton/cement | F62: beton/cement | H62: træ | J62: beton/cement | K62: træ | L62: træ | N62: beton/cement | O62: træ | P62: træ | Q62: metal | R62: træ | T62: tagpap | V62: =_xlfn.XLOOKUP(A62,db_LCA50!A:A,db_LCA50!C:C) -> 6.13 | W62: =_xlfn.XLOOKUP($A62,db_LCA80!$A:$A,db_LCA80!C:C) -> 5.28 | Y62: =_xlfn.XLOOKUP($A62,db_LCA50!$A:$A,db_LCA50!F:F) -> 6.23e-08 | Z62: =_xlfn.XLOOKUP($A62,db_LCA80!$A:$A,db_LCA80!F:F) -> 4.09e-08 | AB62: =_xlfn.XLOOKUP($A62,db_LCA50!$A:$A,db_LCA50!I:I) -> 0.0164 | AC62: =_xlfn.XLOOKUP($A62,db_LCA80!$A:$A,db_LCA80!I:I) -> 0.0139 | AE62: =_xlfn.XLOOKUP($A62,db_LCA50!$A:$A,db_LCA50!L:L) -> 0.00238 | AF62: =_xlfn.XLOOKUP($A62,db_LCA80!$A:$A,db_LCA80!L:L) -> 0.00198 | AH62: =_xlfn.XLOOKUP($A62,db_LCA50!$A:$A,db_LCA50!O:O) -> 0.00358 | AI62: =_xlfn.XLOOKUP($A62,db_LCA80!$A:$A,db_LCA80!O:O) -> 0.00283 | AK62: =_xlfn.XLOOKUP($A62,db_LCA50!$A:$A,db_LCA50!R:R) -> 0.000117 | AL62: =_xlfn.XLOOKUP($A62,db_LCA80!$A:$A,db_LCA80!R:R) -> 8.81e-05 | AN62: =_xlfn.XLOOKUP($A62,db_LCA50!$A:$A,db_LCA50!U:U) -> 67.3 | AO62: =_xlfn.XLOOKUP($A62,db_LCA80!$A:$A,db_LCA80!U:U) -> 60.2 | AQ62: =_xlfn.XLOOKUP($A62,db_LCA50!$A:$A,db_LCA50!X:X) -> 36.4 | AR62: =_xlfn.XLOOKUP($A62,db_LCA80!$A:$A,db_LCA80!X:X) -> 30.6 | AT62: =_xlfn.XLOOKUP($A62,db_LCA50!$A:$A,db_LCA50!AA:AA) -> 0.586 | AU62: =_xlfn.XLOOKUP($A62,db_LCA80!$A:$A,db_LCA80!AA:AA) -> 0.372
A63: R10 | D63: lille | E63: beton/cement | F63: beton/cement | H63: træ | I63: metal | J63: træ | L63: træ | N63: beton/cement | O63: træ | P63: træ | Q63: metal | R63: træ | T63: træ | V63: =_xlfn.XLOOKUP(A63,db_LCA50!A:A,db_LCA50!C:C) -> 5.9 | W63: =_xlfn.XLOOKUP($A63,db_LCA80!$A:$A,db_LCA80!C:C) -> 5.09 | Y63: =_xlfn.XLOOKUP($A63,db_LCA50!$A:$A,db_LCA50!F:F) -> 1.05e-07 | Z63: =_xlfn.XLOOKUP($A63,db_LCA80!$A:$A,db_LCA80!F:F) -> 8.26e-08 | AB63: =_xlfn.XLOOKUP($A63,db_LCA50!$A:$A,db_LCA50!I:I) -> 0.0179 | AC63: =_xlfn.XLOOKUP($A63,db_LCA80!$A:$A,db_LCA80!I:I) -> 0.0153 | AE63: =_xlfn.XLOOKUP($A63,db_LCA50!$A:$A,db_LCA50!L:L) -> 0.00279 | AF63: =_xlfn.XLOOKUP($A63,db_LCA80!$A:$A,db_LCA80!L:L) -> 0.00236 | AH63: =_xlfn.XLOOKUP($A63,db_LCA50!$A:$A,db_LCA50!O:O) -> 0.00365 | AI63: =_xlfn.XLOOKUP($A63,db_LCA80!$A:$A,db_LCA80!O:O) -> 0.00285 | AK63: =_xlfn.XLOOKUP($A63,db_LCA50!$A:$A,db_LCA50!R:R) -> 5.69e-05 | AL63: =_xlfn.XLOOKUP($A63,db_LCA80!$A:$A,db_LCA80!R:R) -> 5.05e-05 | AN63: =_xlfn.XLOOKUP($A63,db_LCA50!$A:$A,db_LCA50!U:U) -> 64.4 | AO63: =_xlfn.XLOOKUP($A63,db_LCA80!$A:$A,db_LCA80!U:U) -> 56.9 | AQ63: =_xlfn.XLOOKUP($A63,db_LCA50!$A:$A,db_LCA50!X:X) -> 47.8 | AR63: =_xlfn.XLOOKUP($A63,db_LCA80!$A:$A,db_LCA80!X:X) -> 41.3 | AT63: =_xlfn.XLOOKUP($A63,db_LCA50!$A:$A,db_LCA50!AA:AA) -> 0.552 | AU63: =_xlfn.XLOOKUP($A63,db_LCA80!$A:$A,db_LCA80!AA:AA) -> 0.367
A64: R11 | D64: lille | E64: beton/cement | F64: beton/cement | H64: beton/cement | J64: beton/cement | K64: træ | L64: tegl | N64: beton/cement | P64: træ | Q64: metal | R64: træ | T64: tegl | U64: tagpap | V64: =_xlfn.XLOOKUP(A64,db_LCA50!A:A,db_LCA50!C:C) -> 6.85 | W64: =_xlfn.XLOOKUP($A64,db_LCA80!$A:$A,db_LCA80!C:C) -> 5.26 | Y64: =_xlfn.XLOOKUP($A64,db_LCA50!$A:$A,db_LCA50!F:F) -> 1.34e-07 | Z64: =_xlfn.XLOOKUP($A64,db_LCA80!$A:$A,db_LCA80!F:F) -> 1.31e-07 | AB64: =_xlfn.XLOOKUP($A64,db_LCA50!$A:$A,db_LCA50!I:I) -> 0.0173 | AC64: =_xlfn.XLOOKUP($A64,db_LCA80!$A:$A,db_LCA80!I:I) -> 0.0139 | AE64: =_xlfn.XLOOKUP($A64,db_LCA50!$A:$A,db_LCA50!L:L) -> 0.0024 | AF64: =_xlfn.XLOOKUP($A64,db_LCA80!$A:$A,db_LCA80!L:L) -> 0.00188 | AH64: =_xlfn.XLOOKUP($A64,db_LCA50!$A:$A,db_LCA50!O:O) -> 0.00377 | AI64: =_xlfn.XLOOKUP($A64,db_LCA80!$A:$A,db_LCA80!O:O) -> 0.003 | AK64: =_xlfn.XLOOKUP($A64,db_LCA50!$A:$A,db_LCA50!R:R) -> 7.28e-05 | AL64: =_xlfn.XLOOKUP($A64,db_LCA80!$A:$A,db_LCA80!R:R) -> 6.23e-05 | AN64: =_xlfn.XLOOKUP($A64,db_LCA50!$A:$A,db_LCA50!U:U) -> 72.9 | AO64: =_xlfn.XLOOKUP($A64,db_LCA80!$A:$A,db_LCA80!U:U) -> 57.4 | AQ64: =_xlfn.XLOOKUP($A64,db_LCA50!$A:$A,db_LCA50!X:X) -> 36.4 | AR64: =_xlfn.XLOOKUP($A64,db_LCA80!$A:$A,db_LCA80!X:X) -> 27.4 | AT64: =_xlfn.XLOOKUP($A64,db_LCA50!$A:$A,db_LCA50!AA:AA) -> 0.905 | AU64: =_xlfn.XLOOKUP($A64,db_LCA80!$A:$A,db_LCA80!AA:AA) -> 0.57
A65: R12 | D65: mellem | E65: beton/cement | F65: beton/cement | J65: træ | L65: træ | N65: beton/cement | O65: metal | P65: træ | R65: træ | T65: beton/cement | V65: =_xlfn.XLOOKUP(A65,db_LCA50!A:A,db_LCA50!C:C) -> 5.87 | W65: =_xlfn.XLOOKUP($A65,db_LCA80!$A:$A,db_LCA80!C:C) -> 4.44 | Y65: =_xlfn.XLOOKUP($A65,db_LCA50!$A:$A,db_LCA50!F:F) -> 4.82e-08 | Z65: =_xlfn.XLOOKUP($A65,db_LCA80!$A:$A,db_LCA80!F:F) -> 3.31e-08 | AB65: =_xlfn.XLOOKUP($A65,db_LCA50!$A:$A,db_LCA50!I:I) -> 0.0171 | AC65: =_xlfn.XLOOKUP($A65,db_LCA80!$A:$A,db_LCA80!I:I) -> 0.0136 | AE65: =_xlfn.XLOOKUP($A65,db_LCA50!$A:$A,db_LCA50!L:L) -> 0.0025 | AF65: =_xlfn.XLOOKUP($A65,db_LCA80!$A:$A,db_LCA80!L:L) -> 0.00194 | AH65: =_xlfn.XLOOKUP($A65,db_LCA50!$A:$A,db_LCA50!O:O) -> 0.00442 | AI65: =_xlfn.XLOOKUP($A65,db_LCA80!$A:$A,db_LCA80!O:O) -> 0.00309 | AK65: =_xlfn.XLOOKUP($A65,db_LCA50!$A:$A,db_LCA50!R:R) -> 0.00021 | AL65: =_xlfn.XLOOKUP($A65,db_LCA80!$A:$A,db_LCA80!R:R) -> 0.000171 | AN65: =_xlfn.XLOOKUP($A65,db_LCA50!$A:$A,db_LCA50!U:U) -> 62.1 | AO65: =_xlfn.XLOOKUP($A65,db_LCA80!$A:$A,db_LCA80!U:U) -> 48.3 | AQ65: =_xlfn.XLOOKUP($A65,db_LCA50!$A:$A,db_LCA50!X:X) -> 30.6 | AR65: =_xlfn.XLOOKUP($A65,db_LCA80!$A:$A,db_LCA80!X:X) -> 23.6 | AT65: =_xlfn.XLOOKUP($A65,db_LCA50!$A:$A,db_LCA50!AA:AA) -> 0.865 | AU65: =_xlfn.XLOOKUP($A65,db_LCA80!$A:$A,db_LCA80!AA:AA) -> 0.555

Sheet db_LCA50 (hidden)
A1: 50år | B1: GWP | C1: kg CO2eq/m2/år | E1: ODP | F1: kg R11-ækv/m2/år | H1: AP | I1: kg SO2--ækv/m2/år | K1: EP | L1: kg PO4--ækv/m2/år | N1: POCP | O1: kg ethen--ækv/m2/år | Q1: ADPe | R1: kg Sb--ækv/m2/år | T1: ADPf | U1: MJ/m2/år | W1: Petot | X1: kWh/m2/år | Z1: Sek | AA1: kWh/m2/år
B2: Drift B6 | C2: Materialer A1-3, B4, C3-4 | D2: Alle faser A1-3, B4, B6, C3-4 | E2: Drift B6 | F2: Materialer A1-3, B4, C3-4 | G2: Alle faser A1-3, B4, B6, C3-4 | H2: Drift B6 | I2: Materialer A1-3, B4, C3-4 | J2: Alle faser A1-3, B4, B6, C3-4 | K2: Drift B6 | L2: Materialer A1-3, B4, C3-4 | M2: Alle faser A1-3, B4, B6, C3-4 | N2: Drift B6 | O2: Materialer A1-3, B4, C3-4 | P2: Alle faser A1-3, B4, B6, C3-4 | Q2: Drift B6 | R2: Materialer A1-3, B4, C3-4 | S2: Alle faser A1-3, B4, B6, C3-4 | T2: Drift B6 | U2: Materialer A1-3, B4, C3-4 | V2: Alle faser A1-3, B4, B6, C3-4 | W2: Drift B6 | X2: Materialer A1-3, B4, C3-4 | Y2: Alle faser A1-3, B4, B6, C3-4 | Z2: Drift B6 | AA2: Materialer A1-3, B4, C3-4 | AB2: Alle faser A1-3, B4, B6, C3-4
A3: Enf01 | B3: 3.08 | C3: 6.16 | D3: 9.24 | E3: 2.42e-10 | F3: 3.82e-08 | G3: 3.85e-08 | H3: 0.0134 | I3: 0.0183 | J3: 0.0317 | K3: 0.00261 | L3: 0.00216 | M3: 0.00476 | N3: 0.0014 | O3: 0.00324 | P3: 0.00464 | Q3: 0.000225 | R3: 6.79e-05 | S3: 0.000293 | T3: 28.7 | U3: 59.6 | V3: 88.3 | W3: 23.6 | X3: 24.7 | Y3: 48.4 | Z3: 0.42 | AA3: 0.781 | AB3: 1.2
A4: Enf02 | B4: 2.66 | C4: 7.1 | D4: 9.76 | E4: 2.12e-10 | F4: 5.16e-08 | G4: 5.19e-08 | H4: 0.011 | I4: 0.0174 | J4: 0.0284 | K4: 0.00208 | L4: 0.00235 | M4: 0.00442 | N4: 0.00104 | O4: 0.00446 | P4: 0.0055 | Q4: 0.000201 | R4: 5.34e-05 | S4: 0.000254 | T4: 24.8 | U4: 82.1 | V4: 107 | W4: 19.1 | X4: 34.1 | Y4: 53.2 | Z4: 0.272 | AA4: 0.794 | AB4: 1.07
A5: Enf03 | B5: 2.38 | C5: 5.79 | D5: 8.17 | E5: 1.95e-10 | F5: 8.87e-08 | G5: 8.89e-08 | H5: 0.00877 | I5: 0.0254 | J5: 0.0341 | K5: 0.00154 | L5: 0.00356 | M5: 0.00511 | N5: 0.000633 | O5: 0.000889 | P5: 0.00152 | Q5: 0.00019 | R5: 0.000302 | S5: 0.000492 | T5: 22.1 | U5: 72.1 | V5: 94.2 | W5: 14.9 | X5: 36.9 | Y5: 51.7 | Z5: 0.0867 | AA5: 0.182 | AB5: 0.269
A6: Enf04 | B6: 2.98 | C6: 7.4 | D6: 10.4 | E6: 2.19e-10 | F6: 4.38e-08 | G6: 4.4e-08 | H6: 0.0158 | I6: 0.0158 | J6: 0.0316 | K6: 0.00336 | L6: 0.00221 | M6: 0.00557 | N6: 0.00215 | O6: 0.00535 | P6: 0.0075 | Q6: 0.000189 | R6: 9.71e-05 | S6: 0.000286 | T6: 28 | U6: 80.3 | V6: 108 | W6: 28.9 | X6: 33.1 | Y6: 62.1 | Z6: 0.828 | AA6: 0.688 | AB6: 1.52
A7: Enf05 | B7: 2.78 | C7: 3.67 | D7: 6.45 | E7: 2.23e-10 | F7: 1.13e-07 | G7: 1.14e-07 | H7: 0.0112 | I7: 0.0135 | J7: 0.0247 | K7: 0.0021 | L7: 0.00224 | M7: 0.00434 | N7: 0.00102 | O7: 0.00184 | P7: 0.00285 | Q7: 0.000212 | R7: 8.54e-05 | S7: 0.000297 | T7: 25.9 | U7: 41.5 | V7: 67.4 | W7: 19.5 | X7: 34.1 | Y7: 53.6 | Z7: 0.248 | AA7: 0.323 | AB7: 0.57
A8: Enf06 | B8: 2.78 | C8: 7.98 | D8: 10.8 | E8: 2.23e-10 | F8: 4.51e-08 | G8: 4.53e-08 | H8: 0.0112 | I8: 0.0193 | J8: 0.0305 | K8: 0.0021 | L8: 0.00271 | M8: 0.0048 | N8: 0.00102 | O8: 0.0051 | P8: 0.00611 | Q8: 0.000212 | R8: 5.09e-05 | S8: 0.000263 | T8: 25.9 | U8: 91.4 | V8: 117 | W8: 19.5 | X8: 35 | Y8: 54.4 | Z8: 0.248 | AA8: 0.659 | AB8: 0.907
A9: Enf07 | B9: 0.564 | C9: 7.62 | D9: 8.18 | E9: 2.33e-11 | F9: 1.07e-07 | G9: 1.07e-07 | H9: 0.00648 | I9: 0.0148 | J9: 0.0213 | K9: 0.00167 | L9: 0.00195 | M9: 0.00362 | N9: 0.00139 | O9: 0.00698 | P9: 0.00837 | Q9: 3.14e-07 | R9: 6.8e-05 | S9: 6.84e-05 | T9: 5.48 | U9: 87.3 | V9: 92.8 | W9: 13 | X9: 38.6 | Y9: 51.6 | Z9: 0.679 | AA9: 1.06 | AB9: 1.74
A10: Enf08 | B10: 2.89 | C10: 9.36 | D10: 12.2 | E10: 2.28e-10 | F10: 1.85e-07 | G10: 1.85e-07 | H10: 0.0124 | I10: 0.0254 | J10: 0.0378 | K10: 0.0024 | L10: 0.00334 | M10: 0.00574 | N10: 0.00126 | O10: 0.00768 | P10: 0.00894 | Q10: 0.000213 | R10: 5.4e-05 | S10: 0.000267 | T10: 27 | U10: 99.1 | V10: 126 | W10: 21.8 | X10: 41.1 | Y10: 62.9 | Z10: 0.369 | AA10: 1.01 | AB10: 1.38
A11: Enf09 | B11: 1.46 | C11: 6.6 | D11: 8.07 | E11: 1.15e-10 | F11: 7.98e-08 | G11: 8e-08 | H11: 0.00643 | I11: 0.0173 | J11: 0.0238 | K11: 0.00126 | L11: 0.00269 | M11: 0.00395 | N11: 0.00068 | O11: 0.00444 | P11: 0.00512 | Q11: 0.000106 | R11: 5.11e-05 | S11: 0.000157 | T11: 13.7 | U11: 74.6 | V11: 88.3 | W11: 11.4 | X11: 38.2 | Y11: 49.5 | Z11: 0.208 | AA11: 0.567 | AB11: 0.775
A12: Enf10 | B12: 2.72 | C12: 8.52 | D12: 11.2 | E12: 2.17e-10 | F12: 1.31e-07 | G12: 1.32e-07 | H12: 0.0111 | I12: 0.0209 | J12: 0.032 | K12: 0.00208 | L12: 0.00284 | M12: 0.00492 | N12: 0.00103 | O12: 0.0065 | P12: 0.00752 | Q12: 0.000206 | R12: 4.89e-05 | S12: 0.000255 | T12: 25.3 | U12: 94.9 | V12: 120 | W12: 19.3 | X12: 35.3 | Y12: 54.6 | Z12: 0.26 | AA12: 1.02 | AB12: 1.28
A13: Enf11 | B13: - | C13: 9.12 | D13: - | E13: - | F13: 1.18e-07 | G13: - | H13: - | I13: 0.0241 | J13: - | K13: - | L13: 0.00316 | M13: - | N13: - | O13: 0.00711 | P13: - | Q13: - | R13: 0.000244 | S13: - | T13: - | U13: 97.1 | V13: - | W13: - | X13: 46.4 | Y13: - | Z13: - | AA13: 1.06 | AB13: -
A14: R01 | B14: 0.221 | C14: 8.17 | D14: 8.39 | E14: 9.14e-12 | F14: 1.33e-08 | G14: 1.33e-08 | H14: 0.00254 | I14: 0.0298 | J14: 0.0323 | K14: 0.000654 | L14: 0.00286 | M14: 0.00352 | N14: 0.000544 | O14: 0.00409 | P14: 0.00463 | Q14: 1.23e-07 | R14: 0.000149 | S14: 0.000149 | T14: 2.15 | U14: 84.3 | V14: 86.4 | W14: 5.08 | X14: 32.2 | Y14: 37.3 | Z14: 0.266 | AA14: 0.774 | AB14: 1.04
A15: R02 | B15: 2.78 | C15: 7.44 | D15: 10.2 | E15: 2.23e-10 | F15: 3.53e-08 | G15: 3.56e-08 | H15: 0.0112 | I15: 0.0255 | J15: 0.0367 | K15: 0.0021 | L15: 0.00312 | M15: 0.00522 | N15: 0.00102 | O15: 0.00434 | P15: 0.00535 | Q15: 0.000212 | R15: 0.000271 | S15: 0.000483 | T15: 25.9 | U15: 82.4 | V15: 108 | W15: 19.5 | X15: 36.3 | Y15: 55.8 | Z15: 0.248 | AA15: 0.455 | AB15: 0.703
A16: R03 | B16: 2.48 | C16: 8.11 | D16: 10.6 | E16: 1.96e-10 | F16: 9.74e-09 | G16: 9.93e-09 | H16: 0.0104 | I16: 0.0244 | J16: 0.0349 | K16: 0.002 | L16: 0.00242 | M16: 0.00441 | N16: 0.00103 | O16: 0.0053 | P16: 0.00633 | Q16: 0.000184 | R16: 0.000229 | S16: 0.000413 | T16: 23.1 | U16: 94.5 | V16: 118 | W16: 18.3 | X16: 33.1 | Y16: 51.4 | Z16: 0.288 | AA16: 0.759 | AB16: 1.05
A17: R04 | B17: 3.36 | C17: 10.8 | D17: 14.2 | E17: 2.3e-10 | F17: 1.4e-08 | G17: 1.42e-08 | H17: 0.00843 | I17: 0.0313 | J17: 0.0397 | K17: 0.0013 | L17: 0.00301 | M17: 0.00431 | N17: 0.000287 | O17: 0.00664 | P17: 0.00693 | Q17: 0.000231 | R17: 0.000169 | S17: 0.0004 | T17: 25.1 | U17: 109 | V17: 134 | W17: 13.6 | X17: 39.2 | Y17: 52.8 | Z17: -0.131 | AA17: 1.61 | AB17: 1.48
A18: R05 | B18: 3.7 | C18: 10.8 | D18: 14.5 | E18: 2.6e-10 | F18: 1.76e-08 | G18: 1.79e-08 | H18: 0.01 | I18: 0.03 | J18: 0.04 | K18: 0.0016 | L18: 0.00292 | M18: 0.00452 | N18: 0.000432 | O18: 0.00758 | P18: 0.00801 | Q18: 0.00026 | R18: 0.00018 | S18: 0.000441 | T18: 28.6 | U18: 119 | V18: 147 | W18: 16.3 | X18: 45.8 | Y18: 62.2 | Z18: -0.0943 | AA18: 1.28 | AB18: 1.19
A19: R06 | B19: 2.16 | C19: 4.42 | D19: 6.58 | E19: 1.71e-10 | F19: 4.59e-08 | G19: 4.6e-08 | H19: 0.00917 | I19: 0.0113 | J19: 0.0205 | K19: 0.00176 | L19: 0.0017 | M19: 0.00346 | N19: 0.000915 | O19: 0.00342 | P19: 0.00434 | Q19: 0.00016 | R19: 0.000163 | S19: 0.000323 | T19: 20.2 | U19: 45.2 | V19: 65.3 | W19: 16.1 | X19: 28.7 | Y19: 44.8 | Z19: 0.26 | AA19: 0.569 | AB19: 0.829
A20: R07 | B20: 2.77 | C20: 5.8 | D20: 8.57 | E20: 2.16e-10 | F20: 3.64e-08 | G20: 3.66e-08 | H20: 0.0123 | I20: 0.0137 | J20: 0.026 | K20: 0.00241 | L20: 0.00198 | M20: 0.0044 | N20: 0.00132 | O20: 0.00531 | P20: 0.00663 | Q20: 0.0002 | R20: 5.09e-05 | S20: 0.000251 | T20: 25.9 | U20: 72.6 | V20: 98.5 | W20: 21.8 | X20: 28.6 | Y20: 50.4 | Z20: 0.412 | AA20: 0.228 | AB20: 0.639
A21: R08 | B21: 2.6 | C21: 7.39 | D21: 9.99 | E21: 2.07e-10 | F21: 8.64e-08 | G21: 8.66e-08 | H21: 0.0107 | I21: 0.0167 | J21: 0.0273 | K21: 0.00201 | L21: 0.00217 | M21: 0.00417 | N21: 0.000996 | O21: 0.00392 | P21: 0.00492 | Q21: 0.000196 | R21: 7.1e-05 | S21: 0.000267 | T21: 24.2 | U21: 72.5 | V21: 96.7 | W21: 18.5 | X21: 27.4 | Y21: 45.9 | Z21: 0.257 | AA21: 1.53 | AB21: 1.78
A22: R09 | B22: 2.55 | C22: 6.13 | D22: 8.67 | E22: 2.1e-10 | F22: 6.23e-08 | G22: 6.25e-08 | H22: 0.00919 | I22: 0.0164 | J22: 0.0256 | K22: 0.00159 | L22: 0.00238 | M22: 0.00398 | N22: 0.000622 | O22: 0.00358 | P22: 0.0042 | Q22: 0.000205 | R22: 0.000117 | S22: 0.000322 | T22: 23.7 | U22: 67.3 | V22: 90.9 | W22: 15.5 | X22: 36.4 | Y22: 51.9 | Z22: 0.0635 | AA22: 0.586 | AB22: 0.649
A23: R10 | B23: 2.6 | C23: 5.9 | D23: 8.5 | E23: 2.07e-10 | F23: 1.05e-07 | G23: 1.05e-07 | H23: 0.0107 | I23: 0.0179 | J23: 0.0285 | K23: 0.00201 | L23: 0.00279 | M23: 0.0048 | N23: 0.000996 | O23: 0.00365 | P23: 0.00465 | Q23: 0.000196 | R23: 5.69e-05 | S23: 0.000253 | T23: 24.2 | U23: 64.4 | V23: 88.6 | W23: 18.5 | X23: 47.8 | Y23: 66.4 | Z23: 0.257 | AA23: 0.552 | AB23: 0.808
A24: R11 | B24: 2.78 | C24: 6.85 | D24: 9.63 | E24: 2.22e-10 | F24: 1.34e-07 | G24: 1.34e-07 | H24: 0.0113 | I24: 0.0173 | J24: 0.0286 | K24: 0.00212 | L24: 0.0024 | M24: 0.00452 | N24: 0.00104 | O24: 0.00377 | P24: 0.00481 | Q24: 0.000211 | R24: 7.28e-05 | S24: 0.000284 | T24: 25.9 | U24: 72.9 | V24: 98.8 | W24: 19.7 | X24: 36.4 | Y24: 56.1 | Z24: 0.261 | AA24: 0.905 | AB24: 1.17
A25: R12 | B25: 4.58 | C25: 5.87 | D25: 10.5 | E25: 3.89e-10 | F25: 4.82e-08 | G25: 4.86e-08 | H25: 0.0142 | I25: 0.0171 | J25: 0.0313 | K25: 0.00218 | L25: 0.0025 | M25: 0.00468 | N25: 0.000462 | O25: 0.00442 | P25: 0.00488 | Q25: 0.000393 | R25: 0.00021 | S25: 0.000603 | T25: 42.5 | U25: 62.1 | V25: 105 | W25: 22.8 | X25: 30.6 | Y25: 53.4 | Z25: -0.235 | AA25: 0.865 | AB25: 0.63
A26: E01 | B26: 1.91 | C26: 6.95 | D26: 8.86 | E26: 1.52e-10 | F26: 2.27e-08 | G26: 2.29e-08 | H26: 0.008 | I26: 0.0178 | J26: 0.0258 | K26: 0.00152 | L26: 0.00204 | M26: 0.00356 | N26: 0.000777 | O26: 0.00281 | P26: 0.00359 | Q26: 0.000143 | R26: 0.00011 | S26: 0.000253 | T26: 17.8 | U26: 64.3 | V26: 82.1 | W26: 14 | X26: 24.1 | Y26: 38.1 | Z26: 0.212 | AA26: 1.74 | AB26: 1.95
A27: E02 | B27: 1.92 | C27: 7.05 | D27: 8.96 | E27: 1.53e-10 | F27: 1.13e-08 | G27: 1.14e-08 | H27: 0.00784 | I27: 0.0155 | J27: 0.0233 | K27: 0.00147 | L27: 0.00195 | M27: 0.00343 | N27: 0.00073 | O27: 0.00441 | P27: 0.00514 | Q27: 0.000145 | R27: 6.29e-05 | S27: 0.000208 | T27: 17.9 | U27: 62.6 | V27: 80.4 | W27: 13.6 | X27: 21.9 | Y27: 35.6 | Z27: 0.187 | AA27: 1.88 | AB27: 2.07
A28: E03 | B28: 2.37 | C28: 6.32 | D28: 8.68 | E28: 1.91e-10 | F28: 1.49e-08 | G28: 1.5e-08 | H28: 0.00933 | I28: 0.0151 | J28: 0.0244 | K28: 0.00171 | L28: 0.0021 | M28: 0.00381 | N28: 0.000798 | O28: 0.00252 | P28: 0.00332 | Q28: 0.000183 | R28: 7.22e-05 | S28: 0.000255 | T28: 22.1 | U28: 50.4 | V28: 72.4 | W28: 16.1 | X28: 17.3 | Y28: 33.4 | Z28: 0.176 | AA28: 2.08 | AB28: 2.25
A29: E04 | B29: 2.19 | C29: 7.03 | D29: 9.21 | E29: 1.78e-10 | F29: 1.25e-08 | G29: 1.26e-08 | H29: 0.00835 | I29: 0.0188 | J29: 0.0271 | K29: 0.0015 | L29: 0.00253 | M29: 0.00404 | N29: 0.000663 | O29: 0.00208 | P29: 0.00275 | Q29: 0.000171 | R29: 7.99e-05 | S29: 0.000251 | T29: 20.3 | U29: 58.1 | V29: 78.5 | W29: 14.3 | X29: 22.8 | Y29: 37.1 | Z29: 0.123 | AA29: 2.02 | AB29: 2.15
A30: E05 | B30: 1.3 | C30: 8.8 | D30: 10.1 | E30: 1.12e-10 | F30: 2.19e-08 | G30: 2.2e-08 | H30: 0.00374 | I30: 0.0177 | J30: 0.0215 | K30: 0.000531 | L30: 0.00246 | M30: 0.00299 | N30: 4.66e-05 | O30: 0.00358 | P30: 0.00363 | Q30: 0.000115 | R30: 0.000134 | S30: 0.000249 | T30: 12.1 | U30: 71.2 | V30: 83.3 | W30: 5.85 | X30: 25.5 | Y30: 31.4 | Z30: -0.112 | AA30: 2.8 | AB30: 2.69
A31: E06 | B31: 2.91 | C31: 9.17 | D31: 12.1 | E31: 2.28e-10 | F31: 4.92e-09 | G31: 5.15e-09 | H31: 0.0128 | I31: 0.0219 | J31: 0.0348 | K31: 0.0025 | L31: 0.00265 | M31: 0.00516 | N31: 0.00136 | O31: 0.00224 | P31: 0.0036 | Q31: 0.000212 | R31: 0.000596 | S31: 0.000808 | T31: 27.2 | U31: 89.5 | V31: 117 | W31: 22.6 | X31: 33.2 | Y31: 55.8 | Z31: 0.415 | AA31: 1.41 | AB31: 1.82
A32: E07 | B32: 1.95 | C32: 5.14 | D32: 7.09 | E32: 1.53e-10 | F32: 1.07e-07 | G32: 1.07e-07 | H32: 0.00841 | I32: 0.0157 | J32: 0.0241 | K32: 0.00163 | L32: 0.00236 | M32: 0.00398 | N32: 0.000863 | O32: 0.00213 | P32: 0.00299 | Q32: 0.000143 | R32: 0.000162 | S32: 0.000305 | T32: 18.2 | U32: 58.4 | V32: 76.6 | W32: 14.8 | X32: 36.6 | Y32: 51.4 | Z32: 0.254 | AA32: 0.695 | AB32: 0.95
A33: E08 | B33: 2.32 | C33: 8.61 | D33: 10.9 | E33: 1.91e-10 | F33: 1.15e-08 | G33: 1.17e-08 | H33: 0.00837 | I33: 0.0206 | J33: 0.0289 | K33: 0.00145 | L33: 0.00238 | M33: 0.00383 | N33: 0.000567 | O33: 0.00609 | P33: 0.00666 | Q33: 0.000187 | R33: 0.000236 | S33: 0.000423 | T33: 21.6 | U33: 84.2 | V33: 106 | W33: 14.1 | X33: 29.4 | Y33: 43.5 | Z33: 0.0578 | AA33: 1.76 | AB33: 1.82
A34: E09 | B34: 2.31 | C34: 6.64 | D34: 8.95 | E34: 1.79e-10 | F34: 9.67e-09 | G34: 9.85e-09 | H34: 0.0104 | I34: 0.0147 | J34: 0.0251 | K34: 0.00207 | L34: 0.00191 | M34: 0.00398 | N34: 0.00115 | O34: 0.00331 | P34: 0.00447 | Q34: 0.000165 | R34: 7.85e-05 | S34: 0.000243 | T34: 21.6 | U34: 63.3 | V34: 84.8 | W34: 18.5 | X34: 21.2 | Y34: 39.8 | Z34: 0.371 | AA34: 1.43 | AB34: 1.8
A35: E10 | B35: 2.07 | C35: 7.97 | D35: 10 | E35: 1.68e-10 | F35: 2.47e-08 | G35: 2.49e-08 | H35: 0.00798 | I35: 0.0169 | J35: 0.0249 | K35: 0.00145 | L35: 0.00227 | M35: 0.00371 | N35: 0.000648 | O35: 0.0024 | P35: 0.00304 | Q35: 0.000162 | R35: 6.64e-05 | S35: 0.000228 | T35: 19.3 | U35: 66.8 | V35: 86.1 | W35: 13.7 | X35: 24.1 | Y35: 37.8 | Z35: 0.127 | AA35: 2.37 | AB35: 2.5
A36: E11 | B36: 2.07 | C36: 8.77 | D36: 10.8 | E36: 1.68e-10 | F36: 5.06e-08 | G36: 5.08e-08 | H36: 0.00798 | I36: 0.0221 | J36: 0.03 | K36: 0.00145 | L36: 0.00257 | M36: 0.00402 | N36: 0.000648 | O36: 0.00301 | P36: 0.00366 | Q36: 0.000162 | R36: 5.76e-05 | S36: 0.000219 | T36: 19.3 | U36: 89 | V36: 108 | W36: 13.7 | X36: 32.5 | Y36: 46.2 | Z36: 0.127 | AA36: 1.93 | AB36: 2.06
A37: K01 | B37: 2.38 | C37: 7.14 | D37: 9.52 | E37: 1.83e-10 | F37: 8.62e-09 | G37: 8.8e-09 | H37: 0.0112 | I37: 0.0209 | J37: 0.032 | K37: 0.00225 | L37: 0.00236 | M37: 0.00461 | N37: 0.0013 | O37: 0.00364 | P37: 0.00494 | Q37: 0.000166 | R37: 0.000322 | S37: 0.000488 | T37: 22.3 | U37: 67.9 | V37: 90.2 | W37: 20 | X37: 24.8 | Y37: 44.8 | Z37: 0.443 | AA37: 1.13 | AB37: 1.57
A38: K02 | B38: 2.03 | C38: 6.09 | D38: 8.11 | E38: 1.48e-10 | F38: 1.15e-08 | G38: 1.16e-08 | H38: 0.011 | I38: 0.0138 | J38: 0.0248 | K38: 0.00235 | L38: 0.00177 | M38: 0.00412 | N38: 0.00153 | O38: 0.0025 | P38: 0.00402 | Q38: 0.000126 | R38: 0.00011 | S38: 0.000236 | T38: 19 | U38: 45.8 | V38: 64.8 | W38: 20.2 | X38: 19.6 | Y38: 39.8 | Z38: 0.599 | AA38: 2.25 | AB38: 2.85
A39: K03 | B39: 1.82 | C39: 8.13 | D39: 9.94 | E39: 1.33e-10 | F39: 6.98e-08 | G39: 7e-08 | H39: 0.00981 | I39: 0.0221 | J39: 0.0319 | K39: 0.0021 | L39: 0.00249 | M39: 0.00459 | N39: 0.00136 | O39: 0.00302 | P39: 0.00438 | Q39: 0.000113 | R39: 8.18e-05 | S39: 0.000195 | T39: 17.1 | U39: 78.6 | V39: 95.7 | W39: 18 | X39: 26.6 | Y39: 44.6 | Z39: 0.532 | AA39: 1.76 | AB39: 2.29
A40: K04 | B40: 1.68 | C40: 6.68 | D40: 8.36 | E40: 1.26e-10 | F40: 1.04e-08 | G40: 1.05e-08 | H40: 0.00844 | I40: 0.0144 | J40: 0.0228 | K40: 0.00176 | L40: 0.00176 | M40: 0.00351 | N40: 0.00108 | O40: 0.00436 | P40: 0.00544 | Q40: 0.000111 | R40: 3.27 | S40: 3.27 | T40: 15.7 | U40: 60.6 | V40: 76.3 | W40: 15.3 | X40: 20.4 | Y40: 35.7 | Z40: 0.398 | AA40: 1.58 | AB40: 1.98
A41: K05 | B41: 2.06 | C41: 8.64 | D41: 10.7 | E41: 1.52e-10 | F41: 2.27e-08 | G41: 2.29e-08 | H41: 0.0107 | I41: 0.0281 | J41: 0.0388 | K41: 0.00226 | L41: 0.00325 | M41: 0.00551 | N41: 0.00143 | O41: 0.00301 | P41: 0.00444 | Q41: 0.000132 | R41: 0.000285 | S41: 0.000417 | T41: 19.3 | U41: 90.3 | V41: 110 | W41: 19.6 | X41: 34.8 | Y41: 54.4 | Z41: 0.545 | AA41: 1.39 | AB41: 1.94
A42: K06 | B42: 1.64 | C42: 6.26 | D42: 7.9 | E42: 1.15e-10 | F42: 1.04e-08 | G42: 1.05e-08 | H42: 0.00972 | I42: 0.0168 | J42: 0.0265 | K42: 0.00215 | L42: 0.00182 | M42: 0.00398 | N42: 0.00147 | O42: 0.00295 | P42: 0.00442 | Q42: 9.34e-05 | R42: 0.000172 | S42: 0.000265 | T42: 15.4 | U42: 64.8 | V42: 80.2 | W42: 18.1 | X42: 22.9 | Y42: 41 | Z42: 0.61 | AA42: 1.09 | AB42: 1.7
A43: K07 | B43: 2.11 | C43: 10.3 | D43: 12.4 | E43: 1.59e-10 | F43: 1.94e-08 | G43: 1.96e-08 | H43: 0.0105 | I43: 0.0219 | J43: 0.0324 | K43: 0.00216 | L43: 0.00279 | M43: 0.00496 | N43: 0.00132 | O43: 0.0142 | P43: 0.0156 | Q43: 0.000141 | R43: 0.000106 | S43: 0.000247 | T43: 19.8 | U43: 102 | V43: 122 | W43: 18.9 | X43: 34 | Y43: 52.9 | Z43: 0.478 | AA43: 2.25 | AB43: 2.73
A44: K08 | B44: 2.65 | C44: 8.96 | D44: 11.6 | E44: 1.89e-10 | F44: 9.37e-09 | G44: 9.55e-09 | H44: 0.0152 | I44: 0.027 | J44: 0.0422 | K44: 0.00333 | L44: 0.00346 | M44: 0.00678 | N44: 0.00223 | O44: 0.00621 | P44: 0.00844 | Q44: 0.000156 | R44: 0.000167 | S44: 0.000324 | T44: 24.9 | U44: 97.4 | V44: 122 | W44: 28.2 | X44: 36.2 | Y44: 64.4 | Z44: 0.909 | AA44: 0.796 | AB44: 1.71
A45: K09 | B45: 1.91 | C45: 7.84 | D45: 9.75 | E45: 1.35e-10 | F45: 9.29e-09 | G45: 9.42e-09 | H45: 0.0112 | I45: 0.0207 | J45: 0.0319 | K45: 0.00246 | L45: 0.00284 | M45: 0.0053 | N45: 0.00167 | O45: 0.00295 | P45: 0.00461 | Q45: 0.000111 | R45: 0.000229 | S45: 0.000339 | T45: 18 | U45: 73.3 | V45: 91.3 | W45: 20.8 | X45: 27.1 | Y45: 47.9 | Z45: 0.685 | AA45: 1.62 | AB45: 2.31
A46: K10 | B46: 2.14 | C46: 10.8 | D46: 13 | E46: 1.51e-10 | F46: 2.06e-08 | G46: 2.08e-08 | H46: 0.0125 | I46: 0.0279 | J46: 0.0405 | K46: 0.00276 | L46: 0.00366 | M46: 0.00643 | N46: 0.00188 | O46: 0.00522 | P46: 0.0071 | Q46: 0.000123 | R46: 0.000239 | S46: 0.000362 | T46: 20.1 | U46: 115 | V46: 136 | W46: 23.3 | X46: 39.6 | Y46: 62.9 | Z46: 0.773 | AA46: 1.71 | AB46: 2.48
A47: K11 | B47: 1.42 | C47: 5.32 | D47: 6.75 | E47: 8.67e-11 | F47: 1.9e-08 | G47: 1.91e-08 | H47: 0.011 | I47: 0.013 | J47: 0.024 | K47: 0.00263 | L47: 0.00169 | M47: 0.00432 | N47: 0.002 | O47: 0.00132 | P47: 0.00332 | Q47: 5.51e-05 | R47: 3.67e-05 | S47: 9.19e-05 | T47: 13.6 | U47: 44.4 | V47: 58 | W47: 21.3 | X47: 16.4 | Y47: 37.7 | Z47: 0.914 | AA47: 1.62 | AB47: 2.54
A48: K12 | B48: 2.66 | C48: 6.41 | D48: 9.07 | E48: 1.94e-10 | F48: 5.91e-09 | G48: 6.1e-09 | H48: 0.0145 | I48: 0.0187 | J48: 0.0331 | K48: 0.0031 | L48: 0.00283 | M48: 0.00593 | N48: 0.00202 | O48: 0.00222 | P48: 0.00424 | Q48: 0.000165 | R48: 0.000123 | S48: 0.000287 | T48: 25 | U48: 61.4 | V48: 86.4 | W48: 26.6 | X48: 20.2 | Y48: 46.8 | Z48: 0.793 | AA48: 1.17 | AB48: 1.97
A49: K13 | B49: 1.83 | C49: 4.86 | D49: 6.69 | E49: 1.32e-10 | F49: 5.93e-09 | G49: 6.07e-09 | H49: 0.0102 | I49: 0.0133 | J49: 0.0234 | K49: 0.0022 | L49: 0.00167 | M49: 0.00387 | N49: 0.00145 | O49: 0.00246 | P49: 0.00392 | Q49: 0.000111 | R49: 0.000103 | S49: 0.000214 | T49: 17.2 | U49: 43.5 | V49: 60.6 | W49: 18.8 | X49: 16.6 | Y49: 35.4 | Z49: 0.58 | AA49: 1.06 | AB49: 1.64
A50: K14 | B50: 1.82 | C50: 7.75 | D50: 9.56 | E50: 1.29e-10 | F50: 1.24e-08 | G50: 1.26e-08 | H50: 0.0106 | I50: 0.0163 | J50: 0.0269 | K50: 0.00233 | L50: 0.00218 | M50: 0.00452 | N50: 0.00158 | O50: 0.00744 | P50: 0.00902 | Q50: 0.000105 | R50: 6.95e-05 | S50: 0.000175 | T50: 17.1 | U50: 79.5 | V50: 96.6 | W50: 19.7 | X50: 26.3 | Y50: 46 | Z50: 0.649 | AA50: 1.45 | AB50: 2.1
A51: K15 | B51: 2.26 | C51: 6.58 | D51: 8.84 | E51: 1.69e-10 | F51: 1.17e-08 | G51: 1.18e-08 | H51: 0.0115 | I51: 0.0149 | J51: 0.0264 | K51: 0.00239 | L51: 0.00186 | M51: 0.00426 | N51: 0.00148 | O51: 0.00432 | P51: 0.0058 | Q51: 0.000149 | R51: 7.96e-05 | S51: 0.000228 | T51: 21.2 | U51: 59.2 | V51: 80.4 | W51: 20.8 | X51: 20.4 | Y51: 41.3 | Z51: 0.55 | AA51: 1.67 | AB51: 2.22
A52: K16 | B52: 1.68 | C52: 6.7 | D52: 8.37 | E52: 1.19e-10 | F52: 9.79e-09 | G52: 9.91e-09 | H52: 0.00972 | I52: 0.0171 | J52: 0.0269 | K52: 0.00214 | L52: 0.0024 | M52: 0.00453 | N52: 0.00144 | O52: 0.00348 | P52: 0.00492 | Q52: 9.8e-05 | R52: 9.48e-05 | S52: 0.000193 | T52: 15.8 | U52: 60 | V52: 75.8 | W52: 18.1 | X52: 22.2 | Y52: 40.3 | Z52: 0.59 | AA52: 1.4 | AB52: 1.99
A53: K17 | B53: 2.61 | C53: 6.98 | D53: 9.59 | E53: 1.81e-10 | F53: 9.64e-09 | G53: 9.82e-09 | H53: 0.016 | I53: 0.0159 | J53: 0.0319 | K53: 0.00359 | L53: 0.00222 | M53: 0.00581 | N53: 0.0025 | O53: 0.00565 | P53: 0.00815 | Q53: 0.000143 | R53: 9.46e-05 | S53: 0.000238 | T53: 24.6 | U53: 70 | V53: 94.6 | W53: 30 | X53: 26.9 | Y53: 56.9 | Z53: 1.05 | AA53: 1.36 | AB53: 2.42
A54: K18 | B54: 1.49 | C54: 10.3 | D54: 11.8 | E54: 6.16e-11 | F54: 8.45e-09 | G54: 8.51e-09 | H54: 0.0171 | I54: 0.0245 | J54: 0.0416 | K54: 0.0044 | L54: 0.00304 | M54: 0.00744 | N54: 0.00367 | O54: 0.00424 | P54: 0.00791 | Q54: 8.28e-07 | R54: 7.54e-05 | S54: 7.62e-05 | T54: 14.5 | U54: 85.6 | V54: 100 | W54: 34.2 | X54: 31.2 | Y54: 65.5 | Z54: 1.79 | AA54: 2.82 | AB54: 4.61
A55: K19 | B55: 2.21 | C55: 6.9 | D55: 9.11 | E55: 1.55e-10 | F55: 3.65e-08 | G55: 3.66e-08 | H55: 0.0133 | I55: 0.016 | J55: 0.0293 | K55: 0.00295 | L55: 0.00226 | M55: 0.0052 | N55: 0.00202 | O55: 0.0032 | P55: 0.00523 | Q55: 0.000125 | R55: 0.000183 | S55: 0.000308 | T55: 20.9 | U55: 56.1 | V55: 76.9 | W55: 24.8 | X55: 22.7 | Y55: 47.5 | Z55: 0.844 | AA55: 2.12 | AB55: 2.97
A56: K20 | B56: 2.02 | C56: 8.53 | D56: 10.6 | E56: 1.43e-10 | F56: 1.91e-08 | G56: 1.92e-08 | H56: 0.0117 | I56: 0.0233 | J56: 0.035 | K56: 0.00257 | L56: 0.00347 | M56: 0.00604 | N56: 0.00173 | O56: 0.00278 | P56: 0.00451 | Q56: 0.000118 | R56: 0.000106 | S56: 0.000224 | T56: 19 | U56: 82.5 | V56: 102 | W56: 21.7 | X56: 27.6 | Y56: 49.3 | Z56: 0.708 | AA56: 2.21 | AB56: 2.91
A57: K21 | B57: 2.32 | C57: 6.46 | D57: 8.77 | E57: 1.64e-10 | F57: 1.03e-08 | G57: 1.05e-08 | H57: 0.0135 | I57: 0.0148 | J57: 0.0283 | K57: 0.00297 | L57: 0.00191 | M57: 0.00488 | N57: 0.00201 | O57: 0.00294 | P57: 0.00495 | Q57: 0.000135 | R57: 9.09e-05 | S57: 0.000226 | T57: 21.8 | U57: 54.1 | V57: 75.9 | W57: 25.1 | X57: 18.7 | Y57: 43.8 | Z57: 0.826 | AA57: 1.92 | AB57: 2.75
A58: K22 | B58: 1.87 | C58: 5.8 | D58: 7.67 | E58: 1.33e-10 | F58: 8.22e-09 | G58: 8.36e-09 | H58: 0.0109 | I58: 0.0147 | J58: 0.0256 | K58: 0.00239 | L58: 0.00191 | M58: 0.0043 | N58: 0.00162 | O58: 0.00224 | P58: 0.00385 | Q58: 0.000109 | R58: 0.000192 | S58: 0.000301 | T58: 17.6 | U58: 55 | V58: 72.6 | W58: 20.2 | X58: 20.4 | Y58: 40.7 | Z58: 0.664 | AA58: 1.28 | AB58: 1.94
A59: A05 | B59: 2.9 | C59: 6.62 | D59: 9.52 | E59: 2.15e-10 | F59: 2.64e-08 | G59: 2.66e-08 | H59: 0.015 | I59: 0.0214 | J59: 0.0364 | K59: 0.00316 | L59: 0.00285 | M59: 0.00601 | N59: 0.00199 | O59: 0.00255 | P59: 0.00454 | Q59: 0.000188 | R59: 0.000281 | S59: 0.000469 | T59: 27.2 | U59: 71.8 | V59: 99 | W59: 27.4 | X59: 30 | Y59: 57.4 | Z59: 0.751 | AA59: 0.569 | AB59: 1.32
A60: A06 | B60: 2.9 | C60: 6.25 | D60: 9.15 | E60: 2.15e-10 | F60: 2.66e-08 | G60: 2.68e-08 | H60: 0.015 | I60: 0.0204 | J60: 0.0354 | K60: 0.00316 | L60: 0.00288 | M60: 0.00604 | N60: 0.00199 | O60: 0.00244 | P60: 0.00443 | Q60: 0.000188 | R60: 0.000281 | S60: 0.000469 | T60: 27.2 | U60: 71.7 | V60: 98.9 | W60: 27.4 | X60: 33.2 | Y60: 60.6 | Z60: 0.751 | AA60: 0.429 | AB60: 1.18
A61: A07 | B61: 2.22 | C61: 10.1 | D61: 12.3 | E61: 1.66e-10 | F61: 1.34e-08 | G61: 1.35e-08 | H61: 0.0112 | I61: 0.0297 | J61: 0.0409 | K61: 0.00234 | L61: 0.00306 | M61: 0.0054 | N61: 0.00145 | O61: 0.00379 | P61: 0.00524 | Q61: 0.000146 | R61: 7.2e-05 | S61: 0.000218 | T61: 20.8 | U61: 94.8 | V61: 116 | W61: 20.4 | X61: 37.2 | Y61: 57.6 | Z61: 0.535 | AA61: 1.47 | AB61: 2.01
A62: A08 | B62: 2.23 | C62: 7.61 | D62: 9.84 | E62: 1.66e-10 | F62: 1.05e-08 | G62: 1.06e-08 | H62: 0.0116 | I62: 0.0196 | J62: 0.0311 | K62: 0.00244 | L62: 0.00254 | M62: 0.00498 | N62: 0.00154 | O62: 0.00285 | P62: 0.00439 | Q62: 0.000144 | R62: 9.25e-05 | S62: 0.000237 | T62: 21 | U62: 69.1 | V62: 90 | W62: 21.2 | X62: 24.1 | Y62: 45.3 | Z62: 0.584 | AA62: 1.73 | AB62: 2.32

Sheet db_LCA80 (hidden)
A1: 80år | B1: GWP | C1: kg CO2eq/m2/år | E1: ODP | F1: kg R11-ækv/m2/år | H1: AP | I1: kg SO2--ækv/m2/år | K1: EP | L1: kg PO4--ækv/m2/år | N1: POCP | O1: kg ethen--ækv/m2/år | Q1: ADPe | R1: kg Sb--ækv/m2/år | T1: ADPf | U1: MJ/m2/år | W1: Petot | X1: kWh/m2/år | Z1: Sek | AA1: kWh/m2/år
B2: Drift B6 | C2: Materialer A1-3, B4, C3-4 | D2: Alle faser A1-3, B4, B6, C3-4 | E2: Drift B6 | F2: Materialer A1-3, B4, C3-4 | G2: Alle faser A1-3, B4, B6, C3-4 | H2: Drift B6 | I2: Materialer A1-3, B4, C3-4 | J2: Alle faser A1-3, B4, B6, C3-4 | K2: Drift B6 | L2: Materialer A1-3, B4, C3-4 | M2: Alle faser A1-3, B4, B6, C3-4 | N2: Drift B6 | O2: Materialer A1-3, B4, C3-4 | P2: Alle faser A1-3, B4, B6, C3-4 | Q2: Drift B6 | R2: Materialer A1-3, B4, C3-4 | S2: Alle faser A1-3, B4, B6, C3-4 | T2: Drift B6 | U2: Materialer A1-3, B4, C3-4 | V2: Alle faser A1-3, B4, B6, C3-4 | W2: Drift B6 | X2: Materialer A1-3, B4, C3-4 | Y2: Alle faser A1-3, B4, B6, C3-4 | Z2: Drift B6 | AA2: Materialer A1-3, B4, C3-4 | AB2: Alle faser A1-3, B4, B6, C3-4
A3: Enf01 | B3: 2.82 | C3: 4.95 | D3: 7.77 | E3: 2.29e-10 | F3: 2.6e-08 | G3: 2.62e-08 | H3: 0.0115 | I3: 0.0145 | J3: 0.026 | K3: 0.00225 | L3: 0.00177 | M3: 0.00402 | N3: 0.00114 | O3: 0.00234 | P3: 0.00348 | Q3: 0.000215 | R3: 5.19e-05 | S3: 0.000267 | T3: 25.9 | U3: 50.4 | V3: 76.3 | W3: 21.5 | X3: 19.9 | Y3: 41.5 | Z3: 0.412 | AA3: 0.504 | AB3: 0.917
A4: Enf02 | B4: 2.45 | C4: 5.19 | D4: 7.64 | E4: 2.01e-10 | F4: 3.23e-08 | G4: 3.25e-08 | H4: 0.00944 | I4: 0.0128 | J4: 0.0222 | K4: 0.0018 | L4: 0.00174 | M4: 0.00354 | N4: 0.000849 | O4: 0.00296 | P4: 0.00381 | Q4: 0.000192 | R4: 5.39e-05 | S4: 0.000246 | T4: 22.4 | U4: 61.1 | V4: 83.5 | W4: 17.4 | X4: 24.4 | Y4: 41.8 | Z4: 0.268 | AA4: 0.496 | AB4: 0.764
A5: Enf03 | B5: 2.21 | C5: 4.56 | D5: 6.76 | E5: 1.85e-10 | F5: 7.65e-08 | G5: 7.67e-08 | H5: 0.00752 | I5: 0.0195 | J5: 0.027 | K5: 0.00136 | L5: 0.00284 | M5: 0.0042 | N5: 0.000522 | O5: 0.000959 | P5: 0.00148 | Q5: 0.000181 | R5: 0.000202 | S5: 0.000383 | T5: 20.1 | U5: 56.3 | V5: 76.4 | W5: 13.3 | X5: 29.9 | Y5: 43.2 | Z5: 0.0858 | AA5: 0.121 | AB5: 0.207
A6: Enf04 | B6: 2.67 | C6: 6.26 | D6: 8.94 | E6: 2.08e-10 | F6: 4.38e-08 | G6: 4.4e-08 | H6: 0.0136 | I6: 0.0127 | J6: 0.0263 | K6: 0.00285 | L6: 0.00182 | M6: 0.00467 | N6: 0.00174 | O6: 0.00369 | P6: 0.00543 | Q6: 0.000181 | R6: 6.88e-05 | S6: 0.000249 | T6: 24.7 | U6: 67.9 | V6: 92.6 | W6: 26.8 | X6: 28.7 | Y6: 55.4 | Z6: 0.813 | AA6: 0.43 | AB6: 1.24
A7: Enf05 | B7: 2.56 | C7: 3.11 | D7: 5.67 | E7: 2.11e-10 | F7: 7.15e-08 | G7: 7.17e-08 | H7: 0.00965 | I7: 0.0111 | J7: 0.0208 | K7: 0.00182 | L7: 0.00172 | M7: 0.00354 | N7: 0.000831 | O7: 0.0015 | P7: 0.00233 | Q7: 0.000203 | R7: 7.19e-05 | S7: 0.000275 | T7: 23.5 | U7: 35.8 | V7: 59.3 | W7: 17.6 | X7: 25 | Y7: 42.6 | Z7: 0.244 | AA7: 0.227 | AB7: 0.471
A8: Enf06 | B8: 2.56 | C8: 5.82 | D8: 8.38 | E8: 2.11e-10 | F8: 4.36e-08 | G8: 4.38e-08 | H8: 0.00965 | I8: 0.0153 | J8: 0.0249 | K8: 0.00182 | L8: 0.00217 | M8: 0.00399 | N8: 0.000831 | O8: 0.00356 | P8: 0.00439 | Q8: 0.000203 | R8: 4.45e-05 | S8: 0.000247 | T8: 23.5 | U8: 66.5 | V8: 90 | W8: 17.6 | X8: 26.8 | Y8: 44.4 | Z8: 0.244 | AA8: 0.456 | AB8: 0.7
A9: Enf07 | B9: 0.44 | C9: 6.61 | D9: 7.05 | E9: 2.22e-11 | F9: 1.22e-07 | G9: 1.22e-07 | H9: 0.00562 | I9: 0.0129 | J9: 0.0185 | K9: 0.00137 | L9: 0.00166 | M9: 0.00303 | N9: 0.00112 | O9: 0.00525 | P9: 0.00637 | Q9: 3.2e-07 | R9: 6.37e-05 | S9: 6.41e-05 | T9: 4.34 | U9: 80.9 | V9: 85.2 | W9: 12.4 | X9: 37.8 | Y9: 50.1 | Z9: 0.666 | AA9: 0.674 | AB9: 1.34
A10: Enf08 | B10: 2.65 | C10: 8.54 | D10: 11.2 | E10: 2.16e-10 | F10: 1.99e-07 | G10: 1.99e-07 | H10: 0.0107 | I10: 0.0244 | J10: 0.0351 | K10: 0.00207 | L10: 0.00312 | M10: 0.00519 | N10: 0.00103 | O10: 0.00606 | P10: 0.00709 | Q10: 0.000203 | R10: 5.19e-05 | S10: 0.000255 | T10: 24.3 | U10: 93.4 | V10: 118 | W10: 19.9 | X10: 36.8 | Y10: 56.7 | Z10: 0.363 | AA10: 0.639 | AB10: 1
A11: Enf09 | B11: 1.34 | C11: 5.53 | D11: 6.86 | E11: 1.09e-10 | F11: 5.21e-08 | G11: 5.22e-08 | H11: 0.00553 | I11: 0.0149 | J11: 0.0204 | K11: 0.00108 | L11: 0.00227 | M11: 0.00336 | N11: 0.000554 | O11: 0.00317 | P11: 0.00372 | Q11: 0.000102 | R11: 4.26e-05 | S11: 0.000144 | T11: 12.3 | U11: 63.8 | V11: 76.1 | W11: 10.4 | X11: 30.5 | Y11: 40.8 | Z11: 0.204 | AA11: 0.36 | AB11: 0.564
A12: Enf10 | B12: 2.5 | C12: 6.76 | D12: 9.26 | E12: 2.06e-10 | F12: 1.48e-07 | G12: 1.48e-07 | H12: 0.00952 | I12: 0.018 | J12: 0.0275 | K12: 0.00181 | L12: 0.00246 | M12: 0.00427 | N12: 0.000838 | O12: 0.00482 | P12: 0.00566 | Q12: 0.000197 | R12: 4.29e-05 | S12: 0.00024 | T12: 22.9 | U12: 76.7 | V12: 99.6 | W12: 17.5 | X12: 29.1 | Y12: 46.6 | Z12: 0.255 | AA12: 0.647 | AB12: 0.902
A13: Enf11 | B13: - | C13: 7.3 | D13: - | E13: - | F13: 1.12e-07 | G13: - | H13: - | I13: 0.0203 | J13: - | K13: - | L13: 0.00257 | M13: - | N13: - | O13: 0.0055 | P13: - | Q13: - | R13: 0.000224 | S13: - | T13: - | U13: 80 | V13: - | W13: - | X13: 38 | Y13: - | Z13: - | AA13: 0.666 | AB13: -
A14: R01 | B14: 0.172 | C14: 6.47 | D14: 6.64 | E14: 8.7e-12 | F14: 8.67e-09 | G14: 8.68e-09 | H14: 0.0022 | I14: 0.0224 | J14: 0.0246 | K14: 0.000537 | L14: 0.00225 | M14: 0.00279 | N14: 0.000437 | O14: 0.00313 | P14: 0.00356 | Q14: 1.25e-07 | R14: 0.000136 | S14: 0.000136 | T14: 1.7 | U14: 70.2 | V14: 71.9 | W14: 4.85 | X14: 27.3 | Y14: 32.2 | Z14: 0.261 | AA14: 0.488 | AB14: 0.749
A15: R02 | B15: 2.56 | C15: 6.37 | D15: 8.93 | E15: 2.11e-10 | F15: 2.26e-08 | G15: 2.28e-08 | H15: 0.00965 | I15: 0.0218 | J15: 0.0315 | K15: 0.00182 | L15: 0.00265 | M15: 0.00447 | N15: 0.000831 | O15: 0.00333 | P15: 0.00416 | Q15: 0.000203 | R15: 0.000225 | S15: 0.000427 | T15: 23.5 | U15: 71.7 | V15: 95.2 | W15: 17.6 | X15: 29.7 | Y15: 47.3 | Z15: 0.244 | AA15: 0.306 | AB15: 0.55
A16: R03 | B16: 2.27 | C16: 6.72 | D16: 8.99 | E16: 1.86e-10 | F16: 6.89e-09 | G16: 7.08e-09 | H16: 0.00898 | I16: 0.0198 | J16: 0.0287 | K16: 0.00173 | L16: 0.00193 | M16: 0.00366 | N16: 0.000841 | O16: 0.00373 | P16: 0.00457 | Q16: 0.000176 | R16: 0.000186 | S16: 0.000362 | T16: 20.8 | U16: 80.3 | V16: 101 | W16: 16.6 | X16: 27.8 | Y16: 44.4 | Z16: 0.283 | AA16: 0.478 | AB16: 0.761
A17: R04 | B17: 2.54 | C17: 9.06 | D17: 11.6 | E17: 2.18e-10 | F17: 1.35e-08 | G17: 1.37e-08 | H17: 0.00721 | I17: 0.0247 | J17: 0.0319 | K17: 0.00118 | L17: 0.00248 | M17: 0.00366 | N17: 0.000247 | O17: 0.00524 | P17: 0.00548 | Q17: 0.000221 | R17: 0.000166 | S17: 0.000387 | T17: 23 | U17: 96.7 | V17: 120 | W17: 11.9 | X17: 35.5 | Y17: 47.5 | Z17: -0.128 | AA17: 1.05 | AB17: 0.924
A18: R05 | B18: 2.89 | C18: 9.5 | D18: 12.4 | E18: 2.47e-10 | F18: 1.53e-08 | G18: 1.56e-08 | H18: 0.00856 | I18: 0.0242 | J18: 0.0328 | K18: 0.00144 | L18: 0.00247 | M18: 0.00391 | N18: 0.000367 | O18: 0.00714 | P18: 0.0075 | Q18: 0.000249 | R18: 0.000184 | S18: 0.000433 | T18: 26.3 | U18: 111 | V18: 137 | W18: 14.4 | X18: 43.5 | Y18: 57.9 | Z18: -0.0914 | AA18: 0.838 | AB18: 0.746
A19: R06 | B19: 1.98 | C19: 3.6 | D19: 5.59 | E19: 1.62e-10 | F19: 2.88e-08 | G19: 2.9e-08 | H19: 0.00788 | I19: 0.00918 | J19: 0.0171 | K19: 0.00152 | L19: 0.00135 | M19: 0.00287 | N19: 0.000747 | O19: 0.00255 | P19: 0.00329 | Q19: 0.000153 | R19: 0.000112 | S19: 0.000265 | T19: 18.2 | U19: 38 | V19: 56.1 | W19: 14.6 | X19: 24 | Y19: 38.6 | Z19: 0.255 | AA19: 0.357 | AB19: 0.612
A20: R07 | B20: 2.53 | C20: 5.42 | D20: 7.95 | E20: 2.05e-10 | F20: 2.77e-08 | G20: 2.79e-08 | H20: 0.0106 | I20: 0.0125 | J20: 0.0231 | K20: 0.00208 | L20: 0.00184 | M20: 0.00392 | N20: 0.00108 | O20: 0.00375 | P20: 0.00483 | Q20: 0.000191 | R20: 4.48e-05 | S20: 0.000236 | T20: 23.3 | U20: 68.4 | V20: 91.7 | W20: 19.9 | X20: 26.1 | Y20: 45.9 | Z20: 0.405 | AA20: 0.151 | AB20: 0.556
A21: R08 | B21: 2.39 | C21: 5.79 | D21: 8.17 | E21: 1.96e-10 | F21: 9.47e-08 | G21: 9.49e-08 | H21: 0.00915 | I21: 0.0135 | J21: 0.0226 | K21: 0.00174 | L21: 0.0017 | M21: 0.00344 | N21: 0.000814 | O21: 0.00293 | P21: 0.00375 | Q21: 0.000187 | R21: 6.4e-05 | S21: 0.000251 | T21: 21.9 | U21: 59.4 | V21: 81.3 | W21: 16.8 | X21: 22.4 | Y21: 39.2 | Z21: 0.253 | AA21: 0.954 | AB21: 1.21
A22: R09 | B22: 2.37 | C22: 5.28 | D22: 7.65 | E22: 1.99e-10 | F22: 4.09e-08 | G22: 4.11e-08 | H22: 0.00788 | I22: 0.0139 | J22: 0.0218 | K22: 0.00141 | L22: 0.00198 | M22: 0.00338 | N22: 0.000515 | O22: 0.00283 | P22: 0.00335 | Q22: 0.000196 | R22: 8.81e-05 | S22: 0.000284 | T22: 21.6 | U22: 60.2 | V22: 81.7 | W22: 13.8 | X22: 30.6 | Y22: 44.5 | Z22: 0.0631 | AA22: 0.372 | AB22: 0.435
A23: R10 | B23: 2.39 | C23: 5.09 | D23: 7.48 | E23: 1.96e-10 | F23: 8.26e-08 | G23: 8.28e-08 | H23: 0.00915 | I23: 0.0153 | J23: 0.0245 | K23: 0.00174 | L23: 0.00236 | M23: 0.0041 | N23: 0.000814 | O23: 0.00285 | P23: 0.00366 | Q23: 0.000187 | R23: 5.05e-05 | S23: 0.000238 | T23: 21.9 | U23: 56.9 | V23: 78.8 | W23: 16.8 | X23: 41.3 | Y23: 58.1 | Z23: 0.253 | AA23: 0.367 | AB23: 0.62
A24: R11 | B24: 2.56 | C24: 5.26 | D24: 7.82 | E24: 2.11e-10 | F24: 1.31e-07 | G24: 1.31e-07 | H24: 0.00972 | I24: 0.0139 | J24: 0.0236 | K24: 0.00184 | L24: 0.00188 | M24: 0.00372 | N24: 0.000851 | O24: 0.003 | P24: 0.00385 | Q24: 0.000202 | R24: 6.23e-05 | S24: 0.000264 | T24: 23.4 | U24: 57.4 | V24: 80.8 | W24: 17.8 | X24: 27.4 | Y24: 45.2 | Z24: 0.257 | AA24: 0.57 | AB24: 0.827
A25: R12 | B25: 4.3 | C25: 4.44 | D25: 8.75 | E25: 3.69e-10 | F25: 3.31e-08 | G25: 3.34e-08 | H25: 0.0121 | I25: 0.0136 | J25: 0.0257 | K25: 0.00198 | L25: 0.00194 | M25: 0.00392 | N25: 0.0004 | O25: 0.00309 | P25: 0.00349 | Q25: 0.000376 | R25: 0.000171 | S25: 0.000547 | T25: 39.1 | U25: 48.3 | V25: 87.4 | W25: 20 | X25: 23.6 | Y25: 43.6 | Z25: -0.229 | AA25: 0.555 | AB25: 0.326
A26: E01 | B26: 1.76 | C26: 5.04 | D26: 6.79 | E26: 1.44e-10 | F26: 1.63e-08 | G26: 1.64e-08 | H26: 0.00687 | I26: 0.0128 | J26: 0.0197 | K26: 0.00132 | L26: 0.0015 | M26: 0.00282 | N26: 0.000635 | O26: 0.0023 | P26: 0.00294 | Q26: 0.000137 | R26: 7.97e-05 | S26: 0.000216 | T26: 16.1 | U26: 48.8 | V26: 64.9 | W26: 12.7 | X26: 18.7 | Y26: 31.4 | Z26: 0.209 | AA26: 1.1 | AB26: 1.31
A27: E02 | B27: 1.76 | C27: 5.11 | D27: 6.87 | E27: 1.45e-10 | F27: 7.34e-09 | G27: 7.48e-09 | H27: 0.00674 | I27: 0.0119 | J27: 0.0186 | K27: 0.00128 | L27: 0.00151 | M27: 0.0028 | N27: 0.000597 | O27: 0.0032 | P27: 0.0038 | Q27: 0.000138 | R27: 5.67e-05 | S27: 0.000195 | T27: 16.1 | U27: 47.7 | V27: 63.9 | W27: 12.4 | X27: 16.9 | Y27: 29.2 | Z27: 0.184 | AA27: 1.18 | AB27: 1.37
A28: E03 | B28: 2.19 | C28: 4.8 | D28: 6.99 | E28: 1.81e-10 | F28: 1.21e-08 | G28: 1.23e-08 | H28: 0.00801 | I28: 0.0126 | J28: 0.0206 | K28: 0.0015 | L28: 0.00171 | M28: 0.0032 | N28: 0.000655 | O28: 0.00226 | P28: 0.00292 | Q28: 0.000175 | R28: 6.16e-05 | S28: 0.000236 | T28: 20 | U28: 41.9 | V28: 61.9 | W28: 14.5 | X28: 14.6 | Y28: 29.1 | Z28: 0.173 | AA28: 1.32 | AB28: 1.49
A29: E04 | B29: 2.02 | C29: 5.52 | D29: 7.54 | E29: 1.68e-10 | F29: 8.48e-09 | G29: 8.64e-09 | H29: 0.00716 | I29: 0.0164 | J29: 0.0236 | K29: 0.00132 | L29: 0.00215 | M29: 0.00347 | N29: 0.000545 | O29: 0.00187 | P29: 0.00242 | Q29: 0.000164 | R29: 7.17e-05 | S29: 0.000236 | T29: 18.5 | U29: 49.5 | V29: 68 | W29: 12.8 | X29: 20.1 | Y29: 32.9 | Z29: 0.121 | AA29: 1.28 | AB29: 1.4
A30: E05 | B30: 1.23 | C30: 7.15 | D30: 8.38 | E30: 1.07e-10 | F30: 1.47e-08 | G30: 1.48e-08 | H30: 0.00319 | I30: 0.0151 | J30: 0.0183 | K30: 0.000491 | L30: 0.00202 | M30: 0.00251 | N30: 4.59e-05 | O30: 0.00275 | P30: 0.00279 | Q30: 0.00011 | R30: 0.000112 | S30: 0.000222 | T30: 11.1 | U30: 64.5 | V30: 75.7 | W30: 5.07 | X30: 23 | Y30: 28.1 | Z30: -0.109 | AA30: 1.76 | AB30: 1.65
A31: E06 | B31: 2.67 | C31: 7.33 | D31: 10 | E31: 2.16e-10 | F31: 3.14e-09 | G31: 3.36e-09 | H31: 0.011 | I31: 0.0177 | J31: 0.0287 | K31: 0.00216 | L31: 0.00208 | M31: 0.00424 | N31: 0.00111 | O31: 0.00184 | P31: 0.00295 | Q31: 0.000202 | R31: 0.000394 | S31: 0.000596 | T31: 24.5 | U31: 75 | V31: 99.5 | W31: 20.7 | X31: 26.8 | Y31: 47.4 | Z31: 0.408 | AA31: 0.892 | AB31: 1.3
A32: E07 | B32: 1.78 | C32: 3.8 | D32: 5.58 | E32: 1.45e-10 | F32: 7.38e-08 | G32: 7.39e-08 | H32: 0.00722 | I32: 0.012 | J32: 0.0192 | K32: 0.0014 | L32: 0.00176 | M32: 0.00316 | N32: 0.000704 | O32: 0.00166 | P32: 0.00236 | Q32: 0.000137 | R32: 0.000114 | S32: 0.00025 | T32: 16.4 | U32: 47.3 | V32: 63.7 | W32: 13.5 | X32: 28.4 | Y32: 41.9 | Z32: 0.25 | AA32: 0.441 | AB32: 0.691
A33: E08 | B33: 2.16 | C33: 6.85 | D33: 9.01 | E33: 1.81e-10 | F33: 7.95e-09 | G33: 8.13e-09 | H33: 0.00718 | I33: 0.0166 | J33: 0.0238 | K33: 0.00128 | L33: 0.00188 | M33: 0.00316 | N33: 0.000469 | O33: 0.00506 | P33: 0.00553 | Q33: 0.000179 | R33: 0.000181 | S33: 0.000359 | T33: 19.7 | U33: 72 | V33: 91.6 | W33: 12.6 | X33: 25.6 | Y33: 38.2 | Z33: 0.0575 | AA33: 1.1 | AB33: 1.16
A34: E09 | B34: 2.11 | C34: 5.04 | D34: 7.15 | E34: 1.7e-10 | F34: 6.79e-09 | G34: 6.96e-09 | H34: 0.00897 | I34: 0.0112 | J34: 0.0202 | K34: 0.00178 | L34: 0.00144 | M34: 0.00322 | N34: 0.000939 | O34: 0.00236 | P34: 0.0033 | Q34: 0.000158 | R34: 6.67e-05 | S34: 0.000224 | T34: 19.4 | U34: 50.9 | V34: 70.3 | W34: 16.9 | X34: 17.2 | Y34: 34.2 | Z34: 0.364 | AA34: 0.895 | AB34: 1.26
A35: E10 | B35: 1.92 | C35: 6.26 | D35: 8.18 | E35: 1.59e-10 | F35: 1.72e-08 | G35: 1.74e-08 | H35: 0.00685 | I35: 0.0138 | J35: 0.0207 | K35: 0.00127 | L35: 0.00177 | M35: 0.00304 | N35: 0.000532 | O35: 0.00179 | P35: 0.00232 | Q35: 0.000155 | R35: 6.66e-05 | S35: 0.000221 | T35: 17.5 | U35: 58.6 | V35: 76.1 | W35: 12.3 | X35: 20.8 | Y35: 33.1 | Z35: 0.125 | AA35: 1.48 | AB35: 1.61
A36: E11 | B36: 1.92 | C36: 6.33 | D36: 8.24 | E36: 1.59e-10 | F36: 5.32e-08 | G36: 5.34e-08 | H36: 0.00685 | I36: 0.0168 | J36: 0.0237 | K36: 0.00127 | L36: 0.00197 | M36: 0.00323 | N36: 0.000532 | O36: 0.00217 | P36: 0.00271 | Q36: 0.000155 | R36: 4.81e-05 | S36: 0.000203 | T36: 17.5 | U36: 65.9 | V36: 83.4 | W36: 12.3 | X36: 24.2 | Y36: 36.5 | Z36: 0.125 | AA36: 1.69 | AB36: 1.81
A37: K01 | B37: 2.17 | C37: 6.14 | D37: 8.3 | E37: 1.73e-10 | F37: 5.63e-09 | G37: 5.8e-09 | H37: 0.0096 | I37: 0.0188 | J37: 0.0284 | K37: 0.00193 | L37: 0.00204 | M37: 0.00397 | N37: 0.00106 | O37: 0.00284 | P37: 0.0039 | Q37: 0.000159 | R37: 0.000343 | S37: 0.000502 | T37: 19.9 | U37: 61.5 | V37: 81.4 | W37: 18.3 | X37: 22.7 | Y37: 41.1 | Z37: 0.435 | AA37: 0.721 | AB37: 1.16
A38: K02 | B38: 1.81 | C38: 4.24 | D38: 6.06 | E38: 1.4e-10 | F38: 7.3e-09 | G38: 7.44e-09 | H38: 0.00946 | I38: 0.0102 | J38: 0.0197 | K38: 0.00199 | L38: 0.0013 | M38: 0.0033 | N38: 0.00124 | O38: 0.00179 | P38: 0.00302 | Q38: 0.00012 | R38: 7.85e-05 | S38: 0.000199 | T38: 16.8 | U38: 34.8 | V38: 51.6 | W38: 18.7 | X38: 14.9 | Y38: 33.6 | Z38: 0.588 | AA38: 1.4 | AB38: 1.99
A39: K03 | B39: 1.63 | C39: 6.95 | D39: 8.57 | E39: 1.26e-10 | F39: 8.12e-08 | G39: 8.13e-08 | H39: 0.00845 | I39: 0.0202 | J39: 0.0287 | K39: 0.00178 | L39: 0.00218 | M39: 0.00395 | N39: 0.0011 | O39: 0.00287 | P39: 0.00397 | Q39: 0.000108 | R39: 7.35e-05 | S39: 0.000182 | T39: 15.1 | U39: 73 | V39: 88 | W39: 16.7 | X39: 24.5 | Y39: 41.2 | Z39: 0.522 | AA39: 1.12 | AB39: 1.64
A40: K04 | B40: 1.51 | C40: 5.33 | D40: 6.85 | E40: 1.19e-10 | F40: 8.04e-09 | G40: 8.16e-09 | H40: 0.00727 | I40: 0.0122 | J40: 0.0194 | K40: 0.0015 | L40: 0.00141 | M40: 0.00291 | N40: 0.000876 | O40: 0.00404 | P40: 0.00491 | Q40: 0.000106 | R40: 4.09 | S40: 4.09 | T40: 14 | U40: 52.4 | V40: 66.3 | W40: 14.1 | X40: 17.8 | Y40: 31.9 | Z40: 0.391 | AA40: 0.99 | AB40: 1.38
A41: K05 | B41: 1.85 | C41: 7.31 | D41: 9.16 | E41: 1.44e-10 | F41: 1.67e-08 | G41: 1.68e-08 | H41: 0.00924 | I41: 0.0244 | J41: 0.0336 | K41: 0.00192 | L41: 0.00289 | M41: 0.00482 | N41: 0.00116 | O41: 0.00255 | P41: 0.0037 | Q41: 0.000126 | R41: 0.00026 | S41: 0.000386 | T41: 17.1 | U41: 77.9 | V41: 95 | W41: 18.1 | X41: 29.5 | Y41: 47.6 | Z41: 0.535 | AA41: 0.894 | AB41: 1.43
A42: K06 | B42: 1.45 | C42: 5.11 | D42: 6.56 | E42: 1.09e-10 | F42: 7.28e-09 | G42: 7.39e-09 | H42: 0.00838 | I42: 0.0138 | J42: 0.0221 | K42: 0.00181 | L42: 0.00149 | M42: 0.0033 | N42: 0.00119 | O42: 0.00243 | P42: 0.00362 | Q42: 8.93e-05 | R42: 0.000125 | S42: 0.000214 | T42: 13.5 | U42: 56.8 | V42: 70.4 | W42: 16.9 | X42: 20.3 | Y42: 37.2 | Z42: 0.598 | AA42: 0.681 | AB42: 1.28
A43: K07 | B43: 1.91 | C43: 8.32 | D43: 10.2 | E43: 1.51e-10 | F43: 1.4e-08 | G43: 1.42e-08 | H43: 0.00901 | I43: 0.0178 | J43: 0.0268 | K43: 0.00184 | L43: 0.00221 | M43: 0.00405 | N43: 0.00107 | O43: 0.0145 | P43: 0.0156 | Q43: 0.000135 | R43: 9.57e-05 | S43: 0.000231 | T43: 17.6 | U43: 89.1 | V43: 107 | W43: 17.4 | X43: 29.5 | Y43: 47 | Z43: 0.469 | AA43: 1.42 | AB43: 1.89
A44: K08 | B44: 2.36 | C44: 7.9 | D44: 10.3 | E44: 1.79e-10 | F44: 7.89e-09 | G44: 8.07e-09 | H44: 0.0131 | I44: 0.0238 | J44: 0.0369 | K44: 0.00281 | L44: 0.00311 | M44: 0.00592 | N44: 0.00181 | O44: 0.00598 | P44: 0.00778 | Q44: 0.000149 | R44: 0.000154 | S44: 0.000304 | T44: 21.9 | U44: 90.3 | V44: 112 | W44: 26.2 | X44: 34.8 | Y44: 61 | Z44: 0.892 | AA44: 0.499 | AB44: 1.39
A45: K09 | B45: 1.69 | C45: 6.04 | D45: 7.73 | E45: 1.28e-10 | F45: 6.26e-09 | G45: 6.39e-09 | H45: 0.00962 | I45: 0.0169 | J45: 0.0265 | K45: 0.00207 | L45: 0.00236 | M45: 0.00444 | N45: 0.00135 | O45: 0.00234 | P45: 0.00369 | Q45: 0.000106 | R45: 0.000167 | S45: 0.000272 | T45: 15.8 | U45: 59.8 | V45: 75.5 | W45: 19.3 | X45: 22.5 | Y45: 41.8 | Z45: 0.672 | AA45: 1.02 | AB45: 1.69
A46: K10 | B46: 1.89 | C46: 9.27 | D46: 11.2 | E46: 1.43e-10 | F46: 1.6e-08 | G46: 1.61e-08 | H46: 0.0108 | I46: 0.0237 | J46: 0.0345 | K46: 0.00233 | L46: 0.00312 | M46: 0.00544 | N46: 0.00152 | O46: 0.00525 | P46: 0.00677 | Q46: 0.000118 | R46: 0.000195 | S46: 0.000313 | T46: 17.6 | U46: 105 | V46: 123 | W46: 21.7 | X46: 35.2 | Y46: 56.9 | Z46: 0.759 | AA46: 1.09 | AB46: 1.85
A47: K11 | B47: 1.21 | C47: 3.71 | D47: 4.92 | E47: 8.24e-11 | F47: 1.19e-08 | G47: 1.2e-08 | H47: 0.00952 | I47: 0.00931 | J47: 0.0188 | K47: 0.00219 | L47: 0.00122 | M47: 0.0034 | N47: 0.00161 | O47: 0.000947 | P47: 0.00256 | Q47: 5.27e-05 | R47: 3.04e-05 | S47: 8.32e-05 | T47: 11.5 | U47: 33.1 | V47: 44.6 | W47: 20 | X47: 12 | Y47: 32 | Z47: 0.896 | AA47: 1.02 | AB47: 1.91
A48: K12 | B48: 2.38 | C48: 5.28 | D48: 7.66 | E48: 1.84e-10 | F48: 4.16e-09 | G48: 4.34e-09 | H48: 0.0125 | I48: 0.0162 | J48: 0.0287 | K48: 0.00263 | L48: 0.00248 | M48: 0.00511 | N48: 0.00163 | O48: 0.0018 | P48: 0.00343 | Q48: 0.000158 | R48: 8.72e-05 | S48: 0.000245 | T48: 22 | U48: 53.6 | V48: 75.6 | W48: 24.6 | X48: 17.4 | Y48: 42.1 | Z48: 0.778 | AA48: 0.74 | AB48: 1.52
A49: K13 | B49: 1.63 | C49: 4.13 | D49: 5.77 | E49: 1.25e-10 | F49: 4.14e-09 | G49: 4.27e-09 | H49: 0.00877 | I49: 0.012 | J49: 0.0208 | K49: 0.00186 | L49: 0.00149 | M49: 0.00335 | N49: 0.00118 | O49: 0.00199 | P49: 0.00316 | Q49: 0.000106 | R49: 9.22e-05 | S49: 0.000198 | T49: 15.1 | U49: 39.4 | V49: 54.5 | W49: 17.4 | X49: 15.7 | Y49: 33.2 | Z49: 0.57 | AA49: 0.668 | AB49: 1.24
A50: K14 | B50: 1.61 | C50: 6.37 | D50: 7.98 | E50: 1.22e-10 | F50: 9.09e-09 | G50: 9.21e-09 | H50: 0.00913 | I50: 0.0134 | J50: 0.0225 | K50: 0.00197 | L50: 0.00181 | M50: 0.00377 | N50: 0.00128 | O50: 0.0065 | P50: 0.00778 | Q50: 0.000101 | R50: 5.9e-05 | S50: 0.00016 | T50: 15 | U50: 68.8 | V50: 83.8 | W50: 18.3 | X50: 22.7 | Y50: 41.1 | Z50: 0.636 | AA50: 0.909 | AB50: 1.54
A51: K15 | B51: 2.04 | C51: 4.8 | D51: 6.84 | E51: 1.61e-10 | F51: 8.21e-09 | G51: 8.37e-09 | H51: 0.00987 | I51: 0.0112 | J51: 0.021 | K51: 0.00204 | L51: 0.0014 | M51: 0.00343 | N51: 0.0012 | O51: 0.00327 | P51: 0.00447 | Q51: 0.000142 | R51: 7.09e-05 | S51: 0.000213 | T51: 18.8 | U51: 46.1 | V51: 64.9 | W51: 19.2 | X51: 15.8 | Y51: 35 | Z51: 0.54 | AA51: 1.04 | AB51: 1.58
A52: K16 | B52: 1.49 | C52: 5.56 | D52: 7.05 | E52: 1.13e-10 | F52: 7.37e-09 | G52: 7.49e-09 | H52: 0.00838 | I52: 0.0153 | J52: 0.0237 | K52: 0.0018 | L52: 0.00212 | M52: 0.00392 | N52: 0.00117 | O52: 0.00305 | P52: 0.00422 | Q52: 9.36e-05 | R52: 8.44e-05 | S52: 0.000178 | T52: 13.9 | U52: 53.4 | V52: 67.2 | W52: 16.8 | X52: 20.1 | Y52: 36.9 | Z52: 0.579 | AA52: 0.874 | AB52: 1.45
A53: K17 | B53: 2.3 | C53: 5.88 | D53: 8.18 | E53: 1.71e-10 | F53: 7.04e-09 | G53: 7.21e-09 | H53: 0.0138 | I53: 0.0138 | J53: 0.0276 | K53: 0.00301 | L53: 0.00192 | M53: 0.00494 | N53: 0.00201 | O53: 0.00511 | P53: 0.00712 | Q53: 0.000137 | R53: 8.01e-05 | S53: 0.000217 | T53: 21.5 | U53: 63.1 | V53: 84.5 | W53: 28 | X53: 24.5 | Y53: 52.5 | Z53: 1.03 | AA53: 0.856 | AB53: 1.89
A54: K18 | B54: 1.16 | C54: 7.88 | D54: 9.04 | E54: 5.86e-11 | F54: 5.42e-09 | G54: 5.48e-09 | H54: 0.0148 | I54: 0.0195 | J54: 0.0343 | K54: 0.00362 | L54: 0.00236 | M54: 0.00598 | N54: 0.00294 | O54: 0.00312 | P54: 0.00606 | Q54: 8.44e-07 | R54: 5.82e-05 | S54: 5.91e-05 | T54: 11.4 | U54: 70.6 | V54: 82 | W54: 32.7 | X54: 26 | Y54: 58.7 | Z54: 1.76 | AA54: 1.77 | AB54: 3.53
A55: K19 | B55: 1.96 | C55: 5.3 | D55: 7.26 | E55: 1.47e-10 | F55: 3.61e-08 | G55: 3.62e-08 | H55: 0.0114 | I55: 0.0132 | J55: 0.0246 | K55: 0.00248 | L55: 0.00184 | M55: 0.00432 | N55: 0.00164 | O55: 0.00287 | P55: 0.0045 | Q55: 0.000119 | R55: 0.000209 | S55: 0.000328 | T55: 18.2 | U55: 47.5 | V55: 65.8 | W55: 23.1 | X55: 20.1 | Y55: 43.2 | Z55: 0.828 | AA55: 1.34 | AB55: 2.17
A56: K20 | B56: 1.79 | C56: 6.86 | D56: 8.65 | E56: 1.36e-10 | F56: 1.57e-08 | G56: 1.58e-08 | H56: 0.0101 | I56: 0.0203 | J56: 0.0303 | K56: 0.00216 | L56: 0.003 | M56: 0.00516 | N56: 0.0014 | O56: 0.00233 | P56: 0.00373 | Q56: 0.000113 | R56: 9.28e-05 | S56: 0.000206 | T56: 16.7 | U56: 72.8 | V56: 89.5 | W56: 20.2 | X56: 24.3 | Y56: 44.5 | Z56: 0.695 | AA56: 1.41 | AB56: 2.1
A57: K21 | B57: 2.06 | C57: 4.76 | D57: 6.81 | E57: 1.56e-10 | F57: 6.5e-09 | G57: 6.65e-09 | H57: 0.0116 | I57: 0.0116 | J57: 0.0232 | K57: 0.0025 | L57: 0.00147 | M57: 0.00398 | N57: 0.00163 | O57: 0.0021 | P57: 0.00373 | Q57: 0.000129 | R57: 7.97e-05 | S57: 0.000208 | T57: 19.1 | U57: 42.7 | V57: 61.8 | W57: 23.4 | X57: 14.7 | Y57: 38 | Z57: 0.81 | AA57: 1.2 | AB57: 2.01
A58: K22 | B58: 1.66 | C58: 4.6 | D58: 6.26 | E58: 1.26e-10 | F58: 5.53e-09 | G58: 5.65e-09 | H58: 0.00938 | I58: 0.0124 | J58: 0.0218 | K58: 0.00202 | L58: 0.00156 | M58: 0.00358 | N58: 0.00131 | O58: 0.00164 | P58: 0.00295 | Q58: 0.000104 | R58: 0.000162 | S58: 0.000266 | T58: 15.4 | U58: 46.7 | V58: 62.2 | W58: 18.8 | X58: 17.2 | Y58: 36 | Z58: 0.651 | AA58: 0.8 | AB58: 1.45
A59: A05 | B59: 2.61 | C59: 5.66 | D59: 8.27 | E59: 2.04e-10 | F59: 2.13e-08 | G59: 2.15e-08 | H59: 0.0129 | I59: 0.0188 | J59: 0.0318 | K59: 0.00269 | L59: 0.00246 | M59: 0.00515 | N59: 0.00161 | O59: 0.0022 | P59: 0.00381 | Q59: 0.000179 | R59: 0.00026 | S59: 0.00044 | T59: 24.1 | U59: 63.5 | V59: 87.7 | W59: 25.3 | X59: 25.9 | Y59: 51.2 | Z59: 0.737 | AA59: 0.357 | AB59: 1.09
A60: A06 | B60: 2.61 | C60: 5.48 | D60: 8.1 | E60: 2.04e-10 | F60: 2.04e-08 | G60: 2.06e-08 | H60: 0.0129 | I60: 0.0183 | J60: 0.0312 | K60: 0.00269 | L60: 0.00254 | M60: 0.00522 | N60: 0.00161 | O60: 0.00214 | P60: 0.00375 | Q60: 0.000179 | R60: 0.00026 | S60: 0.00044 | T60: 24.1 | U60: 65.6 | V60: 89.7 | W60: 25.3 | X60: 30.5 | Y60: 55.7 | Z60: 0.737 | AA60: 0.269 | AB60: 1.01
A61: A07 | B61: 2 | C61: 7.24 | D61: 9.25 | E61: 1.58e-10 | F61: 1e-08 | G61: 1.02e-08 | H61: 0.00967 | I61: 0.0217 | J61: 0.0314 | K61: 0.00199 | L61: 0.00239 | M61: 0.00438 | N61: 0.00117 | O61: 0.00269 | P61: 0.00386 | Q61: 0.00014 | R61: 6.62e-05 | S61: 0.000206 | T61: 18.5 | U61: 69.8 | V61: 88.3 | W61: 18.8 | X61: 27.4 | Y61: 46.2 | Z61: 0.526 | AA61: 0.924 | AB61: 1.45
A62: A08 | B62: 2.01 | C62: 6.05 | D62: 8.06 | E62: 1.57e-10 | F62: 7.36e-09 | G62: 7.51e-09 | H62: 0.00999 | I62: 0.0166 | J62: 0.0266 | K62: 0.00208 | L62: 0.00219 | M62: 0.00426 | N62: 0.00125 | O62: 0.00219 | P62: 0.00343 | Q62: 0.000138 | R62: 8.83e-05 | S62: 0.000226 | T62: 18.6 | U62: 58.5 | V62: 77.1 | W62: 19.5 | X62: 20.4 | Y62: 39.9 | Z62: 0.573 | AA62: 1.1 | AB62: 1.67

Sheet diagram (hidden)
U1: =_xlfn.XLOOKUP($B$2,B$4:S$4,B5:S5) -> 3.11 | V1: =A5 -> minimum | W1: =VLOOKUP(X1,U$1:V$6,2,FALSE) -> minimum | X1: =SMALL(U:U,ROW(U1)) -> 3.11
B2: =category&""&aar -> GWP80 | U2: 5.0775 | V2: første kvartil | W2: =VLOOKUP(X2,U$1:V$6,2,FALSE) -> min bygning | X2: =SMALL(U:U,ROW(U2)) -> 4.443744746
U3: 5.725 | V3: median | W3: =VLOOKUP(X3,U$1:V$6,2,FALSE) -> første kvartil | X3: =SMALL(U:U,ROW(U3)) -> 5.0775
A4: navn | B4: GWP50 | C4: GWP80 | D4: ODP50 | E4: ODP80 | F4: AP50 | G4: AP80 | H4: EP50 | I4: EP80 | J4: POCP50 | K4: POCP80 | L4: ADPf50 | M4: ADPf80 | N4: ADPe50 | O4: ADPe80 | P4: PEtot50 | Q4: PEtot80 | R4: Sek50 | S4: Sek80 | U4: 6.7825 | V4: tredje kvartil | W4: =VLOOKUP(X4,U$1:V$6,2,FALSE) -> median | X4: =SMALL(U:U,ROW(U4)) -> 5.725
A5: minimum | B5: =QUARTILE(INDIRECT("db_"&B$4),0) -> 3.67 | C5: =QUARTILE(INDIRECT("db_"&C$4),0) -> 3.11 | D5: 4.92e-09 | E5: 3.14e-09 | F5: 0.0113 | G5: 0.00918 | H5: 0.00167 | I5: 0.00122 | J5: 0.000889 | K5: 0.000947 | L5: 41.5 | M5: 33.1 | N5: 3.67e-05 | O5: 3.04e-05 | P5: 16.4 | Q5: 12 | R5: 0.182 | S5: 0.121 | U5: 9.5 | V5: maksimum | W5: =VLOOKUP(X5,U$1:V$6,2,FALSE) -> tredje kvartil | X5: =SMALL(U:U,ROW(U5)) -> 6.7825
A6: første kvartil | B6: =QUARTILE(INDIRECT("db_"&B$4),1) -> 6.305 | C6: =QUARTILE(INDIRECT("db_"&C$4),1) -> 5.0775 | D6: 1.0475e-08 | E6: 7.3675e-09 | F6: 0.015775 | G6: 0.012775 | H6: 0.002145 | I6: 0.0017175 | J6: 0.0028025 | K6: 0.0021975 | L6: 61.2 | M6: 50.175 | N6: 7.175e-05 | O6: 6.335e-05 | P6: 23.8 | Q6: 20.1 | R6: 0.77925 | S6: 0.494 | U6: 4.443744746 | V6: min bygning | W6: =IF(ISERROR(VLOOKUP(X6,U$1:V$6,2,FALSE)),"-",VLOOKUP(X6,U$1:V$6,2,FALSE)) -> maksimum | X6: =IF(ISERROR(SMALL(U:U,ROW(U6))),0,SMALL(U:U,ROW(U6))) -> 9.5
A7: median | B7: =QUARTILE(INDIRECT("db_"&B$4),2) -> 7.075 | C7: =QUARTILE(INDIRECT("db_"&C$4),2) -> 5.725 | D7: 2e-08 | E7: 1.55e-08 | F7: 0.01785 | G7: 0.0152 | H7: 0.00241 | I7: 0.001975 | J7: 0.00361 | K7: 0.00286 | L7: 71.95 | M7: 61.3 | N7: 0.0001045 | O7: 8.58e-05 | P7: 29.7 | Q7: 24.5 | R7: 1.32 | S7: 0.847
A8: tredje kvartil | B8: =QUARTILE(INDIRECT("db_"&B$4),3) -> 8.5225 | C8: =QUARTILE(INDIRECT("db_"&C$4),3) -> 6.7825 | D8: 4.88e-08 | E8: 4.1575e-08 | F8: 0.0221 | G8: 0.018975 | H8: 0.0028425 | I8: 0.0023675 | J8: 0.00513 | K8: 0.0037 | L8: 86.025 | M8: 71.775 | N8: 0.00018525 | O8: 0.000168 | P8: 35.525 | Q8: 29.2 | R8: 1.7325 | S8: 1.1
A9: maksimum | B9: =QUARTILE(INDIRECT("db_"&B$4),4) -> 10.8 | C9: =QUARTILE(INDIRECT("db_"&C$4),4) -> 9.5 | D9: 1.85e-07 | E9: 1.99e-07 | F9: 0.0313 | G9: 0.0247 | H9: 0.00366 | I9: 0.00312 | J9: 0.0142 | K9: 0.0145 | L9: 119 | M9: 111 | N9: 3.27 | O9: 4.09 | P9: 47.8 | Q9: 43.5 | R9: 2.82 | S9: 1.77
A10: =_xlfn.SINGLE(v_navn) -> min bygning | B10: =forside!$C$29 -> 4.443744746 | C10: =forside!$C$29 -> 4.443744746 | D10: =forside!$C$29 -> 4.443744746 | E10: =forside!$C$29 -> 4.443744746 | F10: =forside!$C$29 -> 4.443744746 | G10: =forside!$C$29 -> 4.443744746 | H10: =forside!$C$29 -> 4.443744746 | I10: =forside!$C$29 -> 4.443744746 | J10: =forside!$C$29 -> 4.443744746 | K10: =forside!$C$29 -> 4.443744746 | L10: =forside!$C$29 -> 4.443744746 | M10: =forside!$C$29 -> 4.443744746 | N10: =forside!$C$29 -> 4.443744746 | O10: =forside!$C$29 -> 4.443744746 | P10: =forside!$C$29 -> 4.443744746 | Q10: =forside!$C$29 -> 4.443744746 | R10: =forside!$C$29 -> 4.443744746 | S10: =forside!$C$29 -> 4.443744746
A14: =W1 -> minimum | B14: 3.11
A15: min bygning | B15: 4.443744746
A16: første kvartil | B16: 5.0775
A17: median | B17: 5.725
A18: tredje kvartil | B18: 6.7825
A19: maksimum | B19: 9.5
A23: matches
A24: ="01. "&beregning!C7 -> 01. E07 | B24: =_xlfn.XLOOKUP(category,beregning!$L$7:$L$15,beregning!M$7:M$15) -> 3.8
A25: ="02. "& beregning!E7 -> 02. Enf03 | B25: =_xlfn.XLOOKUP(category,beregning!$L$7:$L$15,beregning!O$7:O$15) -> 4.56
A26: ="03. "&beregning!G7 -> 03. R09 | B26: =_xlfn.XLOOKUP(category,beregning!$L$7:$L$15,beregning!Q$7:Q$15) -> 5.28
A27: =A10 -> min bygning | B27: =forside!$C$29 -> 4.443744746
A32: andel bygningsdele
A33: fundament | B33: =B$27*C33 -> 0.3642413727 | C33: ='andel bygningsdele'!F5 -> 0.08196721311
A34: terrændæk | B34: =B$27*C34 -> 0.3642413727 | C34: ='andel bygningsdele'!F6 -> 0.08196721311
A35: dæk | B35: 1.019875843 | C35: ='andel bygningsdele'!F7 -> 0.2295081967
A36: ydervægge | B36: 0.5099379217 | C36: ='andel bygningsdele'!F8 -> 0.1147540984
A37: vinduer | B37: 0.7284827453 | C37: ='andel bygningsdele'!F9 -> 0.1639344262
A38: facadebeklædning | B38: 0.3642413727 | C38: ='andel bygningsdele'!F10 -> 0.08196721311
A39: indervægge | B39: 0.2185448236 | C39: ='andel bygningsdele'!F11 -> 0.04918032787
A40: tage | B40: 0.2913930981 | C40: ='andel bygningsdele'!F12 -> 0.06557377049
A41: tagbeklædning | B41: 0.5827861963 | C41: ='andel bygningsdele'!F13 -> 0.131147541
C43: =SUM(C33:C41) -> 1

Sheet menuer (hidden)
A1: menuer | B1: 1
A5: vælg tilstand | C5: vælg materialet | E5: GWP | J5: GWP | K5: CO2eq | L5: kg | M5: tons
A6: god | C6: beton/cement | E6: GWP samlet [tons] | G6: 50 | J6: ODP | K6: R11eq | L6: kg | M6: tons
A7: middel | C7: træ | E7: GWP / m2 [kg] | G7: 80 | J7: AP | K7: SO2eq | L7: kg | M7: tons
A8: under middel | C8: metal | J8: EP | K8: PO4eq | L8: kg | M8: tons
A9: dårlig | C9: tegl | J9: POCP | K9: ethen.eq | L9: kg | M9: tons
A10: ingen data | C10: tagpap | J10: ADPf | L10: MJ | M10: GJ
C11: natursten | J11: ADPe | K11: Sb.eq | L11: kg | M11: tons
C12: fibercement | J12: PEtot | L12: kWh | M12: MWh
C13: glas | J13: Sek | L13: kWh | M13: MWh
C26: renoverings GWP antaget
C27: 2.4

Sheet beregning (hidden)
Z3: bedst match
Z4: =C7 -> E07
U5: resultat | V5: tons | W5: tons | X5: tons | Z5: resultat | AA5: tons | AB5: tons | AC5: tons
C6: match 1 | D6: match 1 - score | E6: match 2 | F6: match 2 - score | G6: match 3 | H6: match 3 - score | J6: varians | M6: 1 | N6: faktor | O6: 2 | P6: faktor | Q6: 3 | R6: faktor | U6: /m2 a | V6: ="/m2/"&aar&" år" -> /m2/80 år | W6: per år | X6: total | Z6: /m2 a | AA6: ="/m2/"&aar&" år" -> /m2/80 år | AB6: per år | AC6: total
C7: E07 | D7: 100.0999985 | E7: Enf03 | F7: 70.90000153 | G7: R09 | H7: 67.19999695 | I7: alle | J7: =SQRT((300-(D8+F8+H8))/300) -> 0.4542392964 | K7: =_xlfn.VAR.S(M7,O7,Q7) -> 0.5477333333 | L7: =T7 -> GWP | M7: =_xlfn.XLOOKUP(C$7,db_names,INDIRECT("db_"&$L7&""&aar),"") -> 3.8 | N7: =M7*($D$7) -> 380.3799942 | O7: =_xlfn.XLOOKUP(E$7,db_names,INDIRECT("db_"&$L7&""&aar),"") -> 4.56 | P7: =O7*($F$7) -> 323.304007 | Q7: =_xlfn.XLOOKUP(G$7,db_names,INDIRECT("db_"&$L7&""&aar),"") -> 5.28 | R7: =Q7*$H$7 -> 354.8159839 | T7: =menuer!J5 -> GWP | U7: =IF(M7>0,IF(ISERROR((N7+P7+R7)/(D$7+F$7+H$7)),"-",(N7+P7+R7)/(D$7+F$7+H$7)),0) -> 4.443744746 | V7: =IF(ISERROR(U7*aar/1000),"-",U7*aar/1000) -> 0.3554995797 | W7: =IF(ISERROR(U7*areal/1000),"-",U7*areal/1000) -> 13.33123424 | X7: =IF(ISERROR(U7*aar*areal/1000),"-",U7*aar*areal/1000) -> 1066.498739 | Z7: =IF(ISERROR(M7),"-",M7) -> 3.8 | AA7: =IF(ISERROR(Z7*aar/1000),"-",Z7*aar/1000) -> 0.304 | AB7: =IF(ISERROR(Z7*areal/1000),"-",Z7*areal/1000) -> 11.4 | AC7: =IF(ISERROR(Z7*aar*areal/1000),"-",Z7*aar*areal/1000) -> 912
D8: =IF(D7>100,100,D7) -> 100 | F8: =IF(F7>100,100,F7) -> 70.90000153 | H8: =IF(H7>100,100,H7) -> 67.19999695 | I8: =C7 -> E07 | J8: =1-D8/100 -> 0 | L8: ODP | M8: =_xlfn.XLOOKUP(C$7,db_names,INDIRECT("db_"&L8&""&aar),"") -> 7.38e-08 | N8: 7.387379887e-06 | O8: =_xlfn.XLOOKUP(E$7,db_names,INDIRECT("db_"&$L8&""&aar),"") -> 7.65e-08 | P8: 5.423850117e-06 | Q8: =_xlfn.XLOOKUP(G$7,db_names,INDIRECT("db_"&$L8&""&aar),"") -> 4.09e-08 | R8: 2.748479875e-06 | T8: =menuer!J6 -> ODP | U8: =IF(M8>0,IF(ISERROR((N8+P8+R8)/(D$7+F$7+H$7)),"-",(N8+P8+R8)/(D$7+F$7+H$7)),0) -> 6.532204063e-08 | V8: 5.225763251e-09 | W8: 1.959661219e-07 | X8: 1.567728975e-05 | Z8: =IF(ISERROR(M8),"-",M8) -> 7.38e-08 | AA8: 5.904e-09 | AB8: 2.214e-07 | AC8: 1.7712e-05
L9: AP | M9: =_xlfn.XLOOKUP(C$7,db_names,INDIRECT("db_"&L9&""&aar),"") -> 0.012 | N9: 1.201199982 | O9: =_xlfn.XLOOKUP(E$7,db_names,INDIRECT("db_"&$L9&""&aar),"") -> 0.0195 | P9: 1.38255003 | Q9: =_xlfn.XLOOKUP(G$7,db_names,INDIRECT("db_"&$L9&""&aar),"") -> 0.0139 | R9: 0.9340799576 | T9: =menuer!J7 -> AP | U9: 0.01476838797 | V9: 0.001181471037 | W9: 0.04430516391 | X9: 3.544413112 | Z9: 0.012 | AA9: 0.00096 | AB9: 0.036 | AC9: 2.88
L10: EP | M10: =_xlfn.XLOOKUP(C$7,db_names,INDIRECT("db_"&L10&""&aar),"") -> 0.00176 | N10: 0.1761759973 | O10: =_xlfn.XLOOKUP(E$7,db_names,INDIRECT("db_"&$L10&""&aar),"") -> 0.00284 | P10: 0.2013560043 | Q10: =_xlfn.XLOOKUP(G$7,db_names,INDIRECT("db_"&$L10&""&aar),"") -> 0.00198 | R10: 0.133055994 | T10: =menuer!J8 -> EP | U10: 0.002143526457 | V10: 0.0001714821166 | W10: 0.006430579372 | X10: 0.5144463498 | Z10: 0.00176 | AA10: 0.0001408 | AB10: 0.00528 | AC10: 0.4224
L11: POCP | M11: =_xlfn.XLOOKUP(C$7,db_names,INDIRECT("db_"&L11&""&aar),"") -> 0.00166 | N11: 0.1661659975 | O11: =_xlfn.XLOOKUP(E$7,db_names,INDIRECT("db_"&$L11&""&aar),"") -> 0.000959 | P11: 0.06799310146 | Q11: =_xlfn.XLOOKUP(G$7,db_names,INDIRECT("db_"&$L11&""&aar),"") -> 0.00283 | R11: 0.1901759914 | T11: =menuer!J9 -> POCP | U11: 0.001781423576 | V11: 0.0001425138861 | W11: 0.005344270727 | X11: 0.4275416582 | Z11: 0.00166 | AA11: 0.0001328 | AB11: 0.00498 | AC11: 0.3984
L12: ADPf | M12: =_xlfn.XLOOKUP(C$7,db_names,INDIRECT("db_"&L12&""&aar),"") -> 47.3 | N12: 4734.729928 | O12: =_xlfn.XLOOKUP(E$7,db_names,INDIRECT("db_"&$L12&""&aar),"") -> 56.3 | P12: 3991.670086 | Q12: =_xlfn.XLOOKUP(G$7,db_names,INDIRECT("db_"&$L12&""&aar),"") -> 60.2 | R12: 4045.439816 | T12: =menuer!J10 -> ADPf | U12: 53.61813599 | V12: 4.289450879 | W12: 160.854408 | X12: 12868.35264 | Z12: 47.3 | AA12: 3.784 | AB12: 141.9 | AC12: 11352
L13: ADPe | M13: =_xlfn.XLOOKUP(C$7,db_names,INDIRECT("db_"&L13&""&aar),"") -> 0.000114 | N13: 0.01141139983 | O13: =_xlfn.XLOOKUP(E$7,db_names,INDIRECT("db_"&$L13&""&aar),"") -> 0.000202 | P13: 0.01432180031 | Q13: =_xlfn.XLOOKUP(G$7,db_names,INDIRECT("db_"&$L13&""&aar),"") -> 8.81e-05 | R13: 0.005920319731 | T13: =menuer!J11 -> ADPe | U13: 0.0001328863152 | V13: 1.063090521e-05 | W13: 0.0003986589455 | X13: 0.03189271564 | Z13: 0.000114 | AA13: 9.12e-06 | AB13: 0.000342 | AC13: 0.02736
L14: PEtot | M14: =_xlfn.XLOOKUP(C$7,db_names,INDIRECT("db_"&L14&""&aar),"") -> 28.4 | N14: 2842.839957 | O14: =_xlfn.XLOOKUP(E$7,db_names,INDIRECT("db_"&$L14&""&aar),"") -> 29.9 | P14: 2119.910046 | Q14: =_xlfn.XLOOKUP(G$7,db_names,INDIRECT("db_"&$L14&""&aar),"") -> 30.6 | R14: 2056.319907 | T14: =menuer!J12 -> PEtot | U14: 29.46712846 | V14: 2.357370277 | W14: 88.40138538 | X14: 7072.11083 | Z14: 28.4 | AA14: 2.272 | AB14: 85.2 | AC14: 6816
L15: Sek | M15: =_xlfn.XLOOKUP(C$7,db_names,INDIRECT("db_"&L15&""&aar),"") -> 0.441 | N15: 44.14409933 | O15: =_xlfn.XLOOKUP(E$7,db_names,INDIRECT("db_"&$L15&""&aar),"") -> 0.121 | P15: 8.578900185 | Q15: =_xlfn.XLOOKUP(G$7,db_names,INDIRECT("db_"&$L15&""&aar),"") -> 0.372 | R15: 24.99839886 | T15: =menuer!J13 -> Sek | U15: 0.3262863114 | V15: 0.02610290491 | W15: 0.9788589342 | X15: 78.30871473 | Z15: 0.441 | AA15: 0.03528 | AB15: 1.323 | AC15: 105.84

Sheet andel bygningsdele (hidden)
D5: fundament | E5: 0.5 | F5: =E5/E$15 -> 0.08196721311 | G5: =ROUND(F5*100,0) -> 8
D6: terrændæk | E6: 0.5 | F6: 0.08196721311 | G6: =ROUND(F6*100,0) -> 8
D7: dæk | E7: 1.4 | F7: 0.2295081967 | G7: 23
D8: ydervægge | E8: 0.7 | F8: 0.1147540984 | G8: 11
D9: vinduer | E9: 1 | F9: 0.1639344262 | G9: 16
D10: facadebeklædning | E10: 0.5 | F10: 0.08196721311 | G10: 8
D11: indervægge | E11: 0.3 | F11: 0.04918032787 | G11: 5
D12: tage | E12: 0.4 | F12: 0.06557377049 | G12: 7
D13: tagbeklædning | E13: 0.8 | F13: 0.131147541 | G13: 13
E15: =SUM(E5:E13) -> 6.1 | F15: =SUM(F5:F13) -> 1
